Organisation Code,Organisation Label,Effective Date,Organisational Unit,Service Division Label,Category Internal Name,Purpose,Detailed Expenditure Code,Payment Date,Transaction Number,Irrecoverable VAT Amount,Amount,Capital Or Revenue,Benificiary Name,Procurement Card
Http://opendatacommunities.org/id/metropolitan-district-council/leeds,Leeds City Council,30/09/2018,Adults and Health,Public Health,Employees,Training & Development,70,13-Sep-2018,1809-00001,0.00,200.00,R,(Aso) Association For The Study Of,No
Http://opendatacommunities.org/id/metropolitan-district-council/leeds,Leeds City Council,30/09/2018,Resources and Housing,Leeds Building Services,Supplies and Services,Operational Materials,205,21-Sep-2018,1809-00002,0.00,79.00,R,A & A Electrical Distributors Ltd,No
Http://opendatacommunities.org/id/metropolitan-district-council/leeds,Leeds City Council,30/09/2018,Communities and Environment,Cleaner Neighbourhood Teams  ,Supplies and Services,Operational Furniture And Equipment,203,30-Aug-2018,1809-00003,0.00,43.32,R,A & E Squire Ltd,Yes
Http://opendatacommunities.org/id/metropolitan-district-council/leeds,Leeds City Council,30/09/2018,Children and Families,Social Care,Third Party Payments,Services Rendered By Other Organisations,511,21-Sep-2018,1809-00004,0.00,119.00,R,REDACTED PERSONAL DATA,No
Http://opendatacommunities.org/id/metropolitan-district-council/leeds,Leeds City Council,30/09/2018,Children and Families,Social Care,Third Party Payments,Services Rendered By Other Organisations,511,21-Sep-2018,1809-00005,0.00,446.25,R,REDACTED PERSONAL DATA,No
Http://opendatacommunities.org/id/metropolitan-district-council/leeds,Leeds City Council,30/09/2018,City Development,Libraries  Arts & Heritage,Supplies and Services,Other Hired And Contracted Services,265,07-Sep-2018,1809-00006,0.00,500.00,R,A D Todd,No
Http://opendatacommunities.org/id/metropolitan-district-council/leeds,Leeds City Council,30/09/2018,Children and Families,Social Care,Third Party Payments,Services Rendered By Voluntary Sector,505,19-Sep-2018,1809-00007,0.00,2142.00,R,REDACTED PERSONAL DATA,No
Http://opendatacommunities.org/id/metropolitan-district-council/leeds,Leeds City Council,30/09/2018,Children and Families,Social Care,Third Party Payments,Services Rendered By Voluntary Sector,505,21-Sep-2018,1809-00008,0.00,3748.50,R,REDACTED PERSONAL DATA,No
Http://opendatacommunities.org/id/metropolitan-district-council/leeds,Leeds City Council,30/09/2018,City Development,Highways,Supplies and Services,Other Hired And Contracted Services,265,21-Sep-2018,1809-00009,0.00,99457.08,R,A E Yates Ltd,No
Http://opendatacommunities.org/id/metropolitan-district-council/leeds,Leeds City Council,30/09/2018,City Development,Highways,Capital,Construction,3,26-Sep-2018,1809-00010,0.00,336130.69,C,A E Yates Ltd,No
Http://opendatacommunities.org/id/metropolitan-district-council/leeds,Leeds City Council,30/09/2018,Children and Families,Social Care,Third Party Payments,Services Rendered By Other Organisations,511,21-Sep-2018,1809-00011,0.00,1011.50,R,REDACTED PERSONAL DATA,No
Http://opendatacommunities.org/id/metropolitan-district-council/leeds,Leeds City Council,30/09/2018,Children and Families,Social Care,Third Party Payments,Services Rendered By Other Organisations,511,21-Sep-2018,1809-00012,0.00,520.63,R,REDACTED PERSONAL DATA,No
Http://opendatacommunities.org/id/metropolitan-district-council/leeds,Leeds City Council,30/09/2018,Children and Families,Social Care,Third Party Payments,Services Rendered By Other Organisations,511,21-Sep-2018,1809-00013,0.00,223.13,R,REDACTED PERSONAL DATA,No
Http://opendatacommunities.org/id/metropolitan-district-council/leeds,Leeds City Council,30/09/2018,Resources and Housing,Human Resources,Employees,Training & Development,70,19-Sep-2018,1809-00014,0.00,138.80,R,A Haythornthwaite,No
Http://opendatacommunities.org/id/metropolitan-district-council/leeds,Leeds City Council,30/09/2018,Children and Families,Social Care,Third Party Payments,Services Rendered By Other Organisations,511,21-Sep-2018,1809-00015,0.00,223.13,R,REDACTED PERSONAL DATA,No
Http://opendatacommunities.org/id/metropolitan-district-council/leeds,Leeds City Council,30/09/2018,Children and Families,Social Care,Third Party Payments,Services Rendered By Other Organisations,511,21-Sep-2018,1809-00016,0.00,446.25,R,REDACTED PERSONAL DATA,No
Http://opendatacommunities.org/id/metropolitan-district-council/leeds,Leeds City Council,30/09/2018,Resources and Housing,Leeds Building Services,Supplies and Services,Operational Materials,205,07-Sep-2018,1809-00017,0.00,454.00,R,A J H  Pump Supply & Repair Ltd,No
Http://opendatacommunities.org/id/metropolitan-district-council/leeds,Leeds City Council,30/09/2018,Resources and Housing,Leeds Building Services,Supplies and Services,Operational Materials,205,07-Sep-2018,1809-00018,0.00,876.50,R,A J H  Pump Supply & Repair Ltd,No
Http://opendatacommunities.org/id/metropolitan-district-council/leeds,Leeds City Council,30/09/2018,Resources and Housing,Leeds Building Services,Supplies and Services,Operational Materials,205,07-Sep-2018,1809-00019,0.00,59.00,R,A J H  Pump Supply & Repair Ltd,No
Http://opendatacommunities.org/id/metropolitan-district-council/leeds,Leeds City Council,30/09/2018,Resources and Housing,Leeds Building Services,Supplies and Services,Operational Materials,205,14-Sep-2018,1809-00020,0.00,146.00,R,A J H  Pump Supply & Repair Ltd,No
Http://opendatacommunities.org/id/metropolitan-district-council/leeds,Leeds City Council,30/09/2018,Resources and Housing,Leeds Building Services,Supplies and Services,Operational Materials,205,14-Sep-2018,1809-00021,0.00,659.60,R,A J H  Pump Supply & Repair Ltd,No
Http://opendatacommunities.org/id/metropolitan-district-council/leeds,Leeds City Council,30/09/2018,Resources and Housing,Leeds Building Services,Supplies and Services,Operational Materials,205,14-Sep-2018,1809-00022,0.00,117.00,R,A J H  Pump Supply & Repair Ltd,No
Http://opendatacommunities.org/id/metropolitan-district-council/leeds,Leeds City Council,30/09/2018,Resources and Housing,Leeds Building Services,Supplies and Services,Operational Materials,205,14-Sep-2018,1809-00023,0.00,265.00,R,A J H  Pump Supply & Repair Ltd,No
Http://opendatacommunities.org/id/metropolitan-district-council/leeds,Leeds City Council,30/09/2018,Resources and Housing,Leeds Building Services,Supplies and Services,Operational Materials,205,14-Sep-2018,1809-00024,0.00,36.50,R,A J H  Pump Supply & Repair Ltd,No
Http://opendatacommunities.org/id/metropolitan-district-council/leeds,Leeds City Council,30/09/2018,Resources and Housing,Leeds Building Services,Supplies and Services,Operational Materials,205,14-Sep-2018,1809-00025,0.00,31.03,R,A J H  Pump Supply & Repair Ltd,No
Http://opendatacommunities.org/id/metropolitan-district-council/leeds,Leeds City Council,30/09/2018,Resources and Housing,Leeds Building Services,Supplies and Services,Operational Materials,205,14-Sep-2018,1809-00026,0.00,45.94,R,A J H  Pump Supply & Repair Ltd,No
Http://opendatacommunities.org/id/metropolitan-district-council/leeds,Leeds City Council,30/09/2018,Resources and Housing,Leeds Building Services,Supplies and Services,Operational Materials,205,14-Sep-2018,1809-00027,0.00,40.50,R,A J H  Pump Supply & Repair Ltd,No
Http://opendatacommunities.org/id/metropolitan-district-council/leeds,Leeds City Council,30/09/2018,Resources and Housing,Leeds Building Services,Supplies and Services,Operational Materials,205,14-Sep-2018,1809-00028,0.00,227.80,R,A J H  Pump Supply & Repair Ltd,No
Http://opendatacommunities.org/id/metropolitan-district-council/leeds,Leeds City Council,30/09/2018,Resources and Housing,Leeds Building Services,Supplies and Services,Operational Materials,205,14-Sep-2018,1809-00029,0.00,83.75,R,A J H  Pump Supply & Repair Ltd,No
Http://opendatacommunities.org/id/metropolitan-district-council/leeds,Leeds City Council,30/09/2018,Resources and Housing,Leeds Building Services,Supplies and Services,Operational Materials,205,14-Sep-2018,1809-00030,0.00,218.70,R,A J H  Pump Supply & Repair Ltd,No
Http://opendatacommunities.org/id/metropolitan-district-council/leeds,Leeds City Council,30/09/2018,Resources and Housing,Leeds Building Services,Supplies and Services,Operational Materials,205,14-Sep-2018,1809-00031,0.00,211.95,R,A J H  Pump Supply & Repair Ltd,No
Http://opendatacommunities.org/id/metropolitan-district-council/leeds,Leeds City Council,30/09/2018,Resources and Housing,Leeds Building Services,Supplies and Services,Operational Materials,205,14-Sep-2018,1809-00032,0.00,336.00,R,A J H  Pump Supply & Repair Ltd,No
Http://opendatacommunities.org/id/metropolitan-district-council/leeds,Leeds City Council,30/09/2018,Resources and Housing,Leeds Building Services,Supplies and Services,Operational Materials,205,14-Sep-2018,1809-00033,0.00,30.00,R,A J H  Pump Supply & Repair Ltd,No
Http://opendatacommunities.org/id/metropolitan-district-council/leeds,Leeds City Council,30/09/2018,Resources and Housing,Leeds Building Services,Supplies and Services,Operational Materials,205,14-Sep-2018,1809-00034,0.00,157.12,R,A J H  Pump Supply & Repair Ltd,No
Http://opendatacommunities.org/id/metropolitan-district-council/leeds,Leeds City Council,30/09/2018,Resources and Housing,Leeds Building Services,Supplies and Services,Operational Materials,205,14-Sep-2018,1809-00035,0.00,197.70,R,A J H  Pump Supply & Repair Ltd,No
Http://opendatacommunities.org/id/metropolitan-district-council/leeds,Leeds City Council,30/09/2018,Resources and Housing,Leeds Building Services,Supplies and Services,Operational Materials,205,20-Sep-2018,1809-00036,0.00,1823.90,R,A J H  Pump Supply & Repair Ltd,No
Http://opendatacommunities.org/id/metropolitan-district-council/leeds,Leeds City Council,30/09/2018,Resources and Housing,Leeds Building Services,Supplies and Services,Operational Materials,205,25-Sep-2018,1809-00037,0.00,112.47,R,A J H  Pump Supply & Repair Ltd,No
Http://opendatacommunities.org/id/metropolitan-district-council/leeds,Leeds City Council,30/09/2018,Resources and Housing,Leeds Building Services,Supplies and Services,Operational Materials,205,25-Sep-2018,1809-00038,0.00,28.00,R,A J H  Pump Supply & Repair Ltd,No
Http://opendatacommunities.org/id/metropolitan-district-council/leeds,Leeds City Council,30/09/2018,Resources and Housing,Leeds Building Services,Supplies and Services,Operational Materials,205,25-Sep-2018,1809-00039,0.00,475.32,R,A J H  Pump Supply & Repair Ltd,No
Http://opendatacommunities.org/id/metropolitan-district-council/leeds,Leeds City Council,30/09/2018,Resources and Housing,Leeds Building Services,Supplies and Services,Operational Materials,205,25-Sep-2018,1809-00040,0.00,38.00,R,A J H  Pump Supply & Repair Ltd,No
Http://opendatacommunities.org/id/metropolitan-district-council/leeds,Leeds City Council,30/09/2018,Resources and Housing,Leeds Building Services,Supplies and Services,Operational Materials,205,28-Sep-2018,1809-00041,0.00,245.08,R,A J H  Pump Supply & Repair Ltd,No
Http://opendatacommunities.org/id/metropolitan-district-council/leeds,Leeds City Council,30/09/2018,Resources and Housing,Leeds Building Services,Supplies and Services,Operational Materials,205,28-Sep-2018,1809-00042,0.00,39.42,R,A J H  Pump Supply & Repair Ltd,No
Http://opendatacommunities.org/id/metropolitan-district-council/leeds,Leeds City Council,30/09/2018,Resources and Housing,Leeds Building Services,Supplies and Services,Operational Materials,205,28-Sep-2018,1809-00043,0.00,191.15,R,A J H  Pump Supply & Repair Ltd,No
Http://opendatacommunities.org/id/metropolitan-district-council/leeds,Leeds City Council,30/09/2018,Resources and Housing,Leeds Building Services,Supplies and Services,Operational Materials,205,28-Sep-2018,1809-00044,0.00,323.67,R,A J H  Pump Supply & Repair Ltd,No
Http://opendatacommunities.org/id/metropolitan-district-council/leeds,Leeds City Council,30/09/2018,Resources and Housing,Leeds Building Services,Supplies and Services,Operational Materials,205,28-Sep-2018,1809-00045,0.00,3.72,R,A J H  Pump Supply & Repair Ltd,No
Http://opendatacommunities.org/id/metropolitan-district-council/leeds,Leeds City Council,30/09/2018,Resources and Housing,Leeds Building Services,Supplies and Services,Operational Materials,205,28-Sep-2018,1809-00046,0.00,22.50,R,A J H  Pump Supply & Repair Ltd,No
Http://opendatacommunities.org/id/metropolitan-district-council/leeds,Leeds City Council,30/09/2018,Resources and Housing,Leeds Building Services,Supplies and Services,Operational Materials,205,28-Sep-2018,1809-00047,0.00,2100.00,R,A J H  Pump Supply & Repair Ltd,No
Http://opendatacommunities.org/id/metropolitan-district-council/leeds,Leeds City Council,30/09/2018,Communities and Environment,Customer Access,Supplies and Services,Resaleable Materials,204,10-Sep-2018,1809-00048,0.00,43.80,R,A J Promotions,No
Http://opendatacommunities.org/id/metropolitan-district-council/leeds,Leeds City Council,30/09/2018,Communities and Environment,Parks and Countryside,Supplies and Services,Resaleable Materials,204,10-Sep-2018,1809-00049,0.00,720.00,R,A J Promotions,No
Http://opendatacommunities.org/id/metropolitan-district-council/leeds,Leeds City Council,30/09/2018,City Development,Libraries  Arts & Heritage,Supplies and Services,Art Galleries Total Stores,003,19-Sep-2018,1809-00050,0.00,101.90,R,A J Promotions,No
Http://opendatacommunities.org/id/metropolitan-district-council/leeds,Leeds City Council,30/09/2018,Communities and Environment,Parks and Countryside,Supplies and Services,Resaleable Materials,204,19-Sep-2018,1809-00051,0.00,415.00,R,A J Promotions,No
Http://opendatacommunities.org/id/metropolitan-district-council/leeds,Leeds City Council,30/09/2018,City Development,Libraries  Arts & Heritage,Supplies and Services,Art Galleries Total Stores,003,19-Sep-2018,1809-00052,0.00,345.00,R,A J Promotions,No
Http://opendatacommunities.org/id/metropolitan-district-council/leeds,Leeds City Council,30/09/2018,City Development,Libraries  Arts & Heritage,Supplies and Services,Art Galleries Total Stores,003,28-Sep-2018,1809-00053,0.00,463.60,R,A J Promotions,No
Http://opendatacommunities.org/id/metropolitan-district-council/leeds,Leeds City Council,30/09/2018,City Development,Libraries  Arts & Heritage,Supplies and Services,Other Hired And Contracted Services,265,14-Sep-2018,1809-00054,0.00,460.00,R,A J Wightman,No
Http://opendatacommunities.org/id/metropolitan-district-council/leeds,Leeds City Council,30/09/2018,Children and Families,Social Care,Third Party Payments,Services Rendered By Other Organisations,511,19-Sep-2018,1809-00055,0.00,535.50,R,REDACTED PERSONAL DATA,No
Http://opendatacommunities.org/id/metropolitan-district-council/leeds,Leeds City Council,30/09/2018,Children and Families,Social Care,Third Party Payments,Services Rendered By Other Organisations,511,21-Sep-2018,1809-00056,0.00,297.50,R,REDACTED PERSONAL DATA,No
Http://opendatacommunities.org/id/metropolitan-district-council/leeds,Leeds City Council,30/09/2018,Communities and Environment,Communities,Supplies and Services,Other Hired And Contracted Services,265,11-Sep-2018,1809-00057,0.00,459.37,R,A Little Something Extra Ltd,No
Http://opendatacommunities.org/id/metropolitan-district-council/leeds,Leeds City Council,30/09/2018,Communities and Environment,Customer Access,Supplies and Services,Other Hired And Contracted Services,265,06-Sep-2018,1809-00058,0.00,63.50,R,A Musalam,No
Http://opendatacommunities.org/id/metropolitan-district-council/leeds,Leeds City Council,30/09/2018,Communities and Environment,Customer Access,Supplies and Services,Other Hired And Contracted Services,265,04-Sep-2018,1809-00059,0.00,401.25,R,A Namaki,No
Http://opendatacommunities.org/id/metropolitan-district-council/leeds,Leeds City Council,30/09/2018,Resources and Housing,Shared Services,Supplies and Services,Other Hired And Contracted Services,265,13-Sep-2018,1809-00060,0.00,65.00,R,A Star Couriers Ltd,No
Http://opendatacommunities.org/id/metropolitan-district-council/leeds,Leeds City Council,30/09/2018,Resources and Housing,Shared Services,Supplies and Services,Other Hired And Contracted Services,265,13-Sep-2018,1809-00061,0.00,92.50,R,A Star Couriers Ltd,No
Http://opendatacommunities.org/id/metropolitan-district-council/leeds,Leeds City Council,30/09/2018,Resources and Housing,Shared Services,Supplies and Services,Other Hired And Contracted Services,265,21-Sep-2018,1809-00062,0.00,81.25,R,A Star Couriers Ltd,No
Http://opendatacommunities.org/id/metropolitan-district-council/leeds,Leeds City Council,30/09/2018,Communities and Environment,Communities,Supplies and Services,Other Hired And Contracted Services,265,18-Sep-2018,1809-00063,0.00,75.00,R,A Strniskova,No
Http://opendatacommunities.org/id/metropolitan-district-council/leeds,Leeds City Council,30/09/2018,City Development,Markets & City Centre Management,Supplies and Services,Publication And Promotion,267,28-Sep-2018,1809-00064,0.00,450.00,R,A T Graphics Limited,No
Http://opendatacommunities.org/id/metropolitan-district-council/leeds,Leeds City Council,30/09/2018,Children and Families,Social Care,Third Party Payments,Services Rendered By Other Organisations,511,19-Sep-2018,1809-00065,0.00,116.03,R,REDACTED PERSONAL DATA,No
Http://opendatacommunities.org/id/metropolitan-district-council/leeds,Leeds City Council,30/09/2018,Children and Families,Social Care,Third Party Payments,Services Rendered By Other Organisations,511,21-Sep-2018,1809-00066,0.00,42.50,R,REDACTED PERSONAL DATA,No
Http://opendatacommunities.org/id/metropolitan-district-council/leeds,Leeds City Council,30/09/2018,Children and Families,Social Care,Third Party Payments,Services Rendered By Other Organisations,511,19-Sep-2018,1809-00067,0.00,267.75,R,REDACTED PERSONAL DATA,No
Http://opendatacommunities.org/id/metropolitan-district-council/leeds,Leeds City Council,30/09/2018,Children and Families,Social Care,Third Party Payments,Services Rendered By Other Organisations,511,21-Sep-2018,1809-00068,0.00,223.13,R,REDACTED PERSONAL DATA,No
Http://opendatacommunities.org/id/metropolitan-district-council/leeds,Leeds City Council,30/09/2018,Children and Families,Social Care,Third Party Payments,Services Rendered By Other Organisations,511,21-Sep-2018,1809-00069,0.00,471.75,R,REDACTED PERSONAL DATA,No
Http://opendatacommunities.org/id/metropolitan-district-council/leeds,Leeds City Council,30/09/2018,Insurance,Insurance,Supplies and Services,Insurance Claims,248,20-Sep-2018,1809-00070,0.00,8250.00,R,REDACTED PERSONAL DATA,No
Http://opendatacommunities.org/id/metropolitan-district-council/leeds,Leeds City Council,30/09/2018,Resources and Housing,Strategic Housing Partnership & Support,Supplies and Services,Other Hired And Contracted Services,265,28-Sep-2018,1809-00071,0.00,650.00,R,Aatsham Ul'Haq,No
Http://opendatacommunities.org/id/metropolitan-district-council/leeds,Leeds City Council,30/09/2018,Adults and Health,Social Services Support Services,Transport,Public Transport Expenses,310,07-Sep-2018,1809-00072,0.00,340.00,R,Ab Cars,No
Http://opendatacommunities.org/id/metropolitan-district-council/leeds,Leeds City Council,30/09/2018,Communities and Environment,Parks And Countryside  ,Supplies and Services,Resaleable Materials,204,14-Aug-2018,1809-00073,0.00,174.84,R,Abacus Cards Ltd,Yes
Http://opendatacommunities.org/id/metropolitan-district-council/leeds,Leeds City Council,30/09/2018,Children and Families,Social Care,Support Services,Legal Disbursements,411,05-Sep-2018,1809-00074,0.00,31.02,R,Abacus Express Limited,No
Http://opendatacommunities.org/id/metropolitan-district-council/leeds,Leeds City Council,30/09/2018,Children and Families,Social Care,Support Services,Legal Disbursements,411,05-Sep-2018,1809-00075,0.00,31.02,R,Abacus Express Limited,No
Http://opendatacommunities.org/id/metropolitan-district-council/leeds,Leeds City Council,30/09/2018,Children and Families,Social Care,Support Services,Legal Disbursements,411,05-Sep-2018,1809-00076,0.00,76.79,R,Abacus Express Limited,No
Http://opendatacommunities.org/id/metropolitan-district-council/leeds,Leeds City Council,30/09/2018,City Development,Planning & Sustainable Development,Support Services,Legal Disbursements,411,05-Sep-2018,1809-00077,0.00,286.49,R,Abacus Express Limited,No
Http://opendatacommunities.org/id/metropolitan-district-council/leeds,Leeds City Council,30/09/2018,City Development,Planning & Sustainable Development,Supplies and Services,Postages,212,07-Sep-2018,1809-00078,0.00,15.59,R,Abacus Express Limited,No
Http://opendatacommunities.org/id/metropolitan-district-council/leeds,Leeds City Council,30/09/2018,Adults and Health,Services For Older People - 65 And Over,Third Party Payments,Nursing Care Dementia,574,19-Sep-2018,1809-00079,0.00,1556.00,R,Abbendon Nursing Home,No
Http://opendatacommunities.org/id/metropolitan-district-council/leeds,Leeds City Council,30/09/2018,Adults and Health,Services For Adults Under 65 Mental/Dis,Third Party Payments,Nursing Home,570,19-Sep-2018,1809-00080,0.00,1852.00,R,Abbey Grange Nursing Home,No
Http://opendatacommunities.org/id/metropolitan-district-council/leeds,Leeds City Council,30/09/2018,Communities and Environment,Cleaner Neighbourhood Teams,Supplies and Services,Bought In Professional Services,277,20-Sep-2018,1809-00081,0.00,16.25,R,Abbey House Veterinary Hospital,No
Http://opendatacommunities.org/id/metropolitan-district-council/leeds,Leeds City Council,30/09/2018,Communities and Environment,Cleaner Neighbourhood Teams,Supplies and Services,Bought In Professional Services,277,21-Sep-2018,1809-00082,0.00,38.59,R,Abbey House Veterinary Hospital,No
Http://opendatacommunities.org/id/metropolitan-district-council/leeds,Leeds City Council,30/09/2018,Communities and Environment,Cleaner Neighbourhood Teams,Supplies and Services,Bought In Professional Services,277,21-Sep-2018,1809-00083,0.00,50.00,R,Abbey House Veterinary Hospital,No
Http://opendatacommunities.org/id/metropolitan-district-council/leeds,Leeds City Council,30/09/2018,Communities and Environment,Cleaner Neighbourhood Teams,Supplies and Services,Bought In Professional Services,277,28-Sep-2018,1809-00084,0.00,51.59,R,Abbey House Veterinary Hospital,No
Http://opendatacommunities.org/id/metropolitan-district-council/leeds,Leeds City Council,30/09/2018,Children and Families,Social Care,Third Party Payments,Services Rendered By Other Organisations,511,19-Sep-2018,1809-00085,0.00,2428.88,R,Abc Daycare And Ozone Out Of School,No
Http://opendatacommunities.org/id/metropolitan-district-council/leeds,Leeds City Council,30/09/2018,Children and Families,Social Care,Third Party Payments,Services Rendered By Other Organisations,511,21-Sep-2018,1809-00086,0.00,6815.94,R,Abc Daycare And Ozone Out Of School,No
Http://opendatacommunities.org/id/metropolitan-district-council/leeds,Leeds City Council,30/09/2018,Children and Families,Social Care,Third Party Payments,Services Rendered By Other Organisations,511,19-Sep-2018,1809-00087,0.00,1338.75,R,Abc Nursery At Lufc,No
Http://opendatacommunities.org/id/metropolitan-district-council/leeds,Leeds City Council,30/09/2018,Children and Families,Social Care,Third Party Payments,Services Rendered By Other Organisations,511,21-Sep-2018,1809-00088,0.00,11481.38,R,Abc Nursery At Lufc,No
Http://opendatacommunities.org/id/metropolitan-district-council/leeds,Leeds City Council,30/09/2018,Children and Families,Social Care,Third Party Payments,Services Rendered By Other Organisations,511,19-Sep-2018,1809-00089,0.00,1071.00,R,Abc@D'S Childcare Services,No
Http://opendatacommunities.org/id/metropolitan-district-council/leeds,Leeds City Council,30/09/2018,Children and Families,Social Care,Third Party Payments,Services Rendered By Other Organisations,511,21-Sep-2018,1809-00090,0.00,6024.38,R,Abc@D'S Childcare Services,No
Http://opendatacommunities.org/id/metropolitan-district-council/leeds,Leeds City Council,30/09/2018,Communities and Environment,Customer Access,Supplies and Services,Other Hired And Contracted Services,265,04-Sep-2018,1809-00091,0.00,217.25,R,Abdulahad Denha,No
Http://opendatacommunities.org/id/metropolitan-district-council/leeds,Leeds City Council,30/09/2018,Adults and Health,Services For Older People - 65 And Over,Third Party Payments,Nursing Home,570,19-Sep-2018,1809-00092,0.00,48664.35,R,Aberford Hall,No
Http://opendatacommunities.org/id/metropolitan-district-council/leeds,Leeds City Council,30/09/2018,Adults and Health,Services For Older People - 65 And Over,Third Party Payments,Nursing Care Dementia,574,19-Sep-2018,1809-00093,0.00,3517.84,R,Aberford Hall,No
Http://opendatacommunities.org/id/metropolitan-district-council/leeds,Leeds City Council,30/09/2018,Adults and Health,Services For Older People - 65 And Over,Third Party Payments,Residential,580,19-Sep-2018,1809-00094,0.00,1545.72,R,Aberford Hall,No
Http://opendatacommunities.org/id/metropolitan-district-council/leeds,Leeds City Council,30/09/2018,Resources and Housing,Leeds Building Services,Supplies and Services,Operational Materials,205,20-Sep-2018,1809-00095,0.00,260.45,R,Abi Garage Doors Ltd,No
Http://opendatacommunities.org/id/metropolitan-district-council/leeds,Leeds City Council,30/09/2018,Resources and Housing,Leeds Building Services,Supplies and Services,Operational Materials,205,21-Sep-2018,1809-00096,0.00,520.92,R,Abi Garage Doors Ltd,No
Http://opendatacommunities.org/id/metropolitan-district-council/leeds,Leeds City Council,30/09/2018,City Development,Recreation  ,Supplies and Services,Hospitality,255,07-Aug-2018,1809-00097,0.00,6.00,R,Abo Leeds,Yes
Http://opendatacommunities.org/id/metropolitan-district-council/leeds,Leeds City Council,30/09/2018,City Development,Libraries  Arts & Heritage  ,Supplies and Services,Operational Materials,205,21-Aug-2018,1809-00098,0.00,309.63,R,Absoluteproduct.Co,Yes
Http://opendatacommunities.org/id/metropolitan-district-council/leeds,Leeds City Council,30/09/2018,City Development,Libraries  Arts & Heritage  ,Supplies and Services,Operational Materials,205,24-Aug-2018,1809-00099,0.00,31.92,R,Absoluteproduct.Co,Yes
Http://opendatacommunities.org/id/metropolitan-district-council/leeds,Leeds City Council,30/09/2018,Children and Families,Social Care,Employees,Agency Staff,8,07-Sep-2018,1809-00100,0.00,504.00,R,Academic Appointments Ltd,No
Http://opendatacommunities.org/id/metropolitan-district-council/leeds,Leeds City Council,30/09/2018,Children and Families,Social Care,Employees,Agency Staff,8,13-Sep-2018,1809-00101,0.00,1260.00,R,Academic Appointments Ltd,No
Http://opendatacommunities.org/id/metropolitan-district-council/leeds,Leeds City Council,30/09/2018,Communities and Environment,Parks and Countryside,Transport,External Hire -Occasional,304,14-Sep-2018,1809-00102,0.00,834.29,R,Access Hire Nationwide Ltd,No
Http://opendatacommunities.org/id/metropolitan-district-council/leeds,Leeds City Council,30/09/2018,Communities and Environment,Parks and Countryside,Transport,Hire Of Movable Plant & Machinery,315,14-Sep-2018,1809-00103,0.00,355.00,R,Access Hire Nationwide Ltd,No
Http://opendatacommunities.org/id/metropolitan-district-council/leeds,Leeds City Council,30/09/2018,Communities and Environment,Parks and Countryside,Transport,Repair & Maintenance of  Plant,342,21-Sep-2018,1809-00104,0.00,461.23,R,Access Hire Nationwide Ltd,No
Http://opendatacommunities.org/id/metropolitan-district-council/leeds,Leeds City Council,30/09/2018,Resources and Housing,Commercial Services  ,Supplies and Services,Operational Materials,205,16-Aug-2018,1809-00105,0.00,636.05,R,Access Locksmiths,Yes
Http://opendatacommunities.org/id/metropolitan-district-council/leeds,Leeds City Council,30/09/2018,Strategic Landlord,Housing Management,Supplies and Services,Resaleable Materials,204,03-Sep-2018,1809-00106,0.00,719.43,R,Access Locksmiths (Leeds) Limited,No
Http://opendatacommunities.org/id/metropolitan-district-council/leeds,Leeds City Council,30/09/2018,Strategic Landlord,Property and Contracts,Premises,General Maintenance,104,04-Sep-2018,1809-00107,0.00,7717.80,R,Access Locksmiths (Leeds) Limited,No
Http://opendatacommunities.org/id/metropolitan-district-council/leeds,Leeds City Council,30/09/2018,Strategic Landlord,Property and Contracts,Premises,General Maintenance,104,04-Sep-2018,1809-00108,0.00,135.08,R,Access Locksmiths (Leeds) Limited,No
Http://opendatacommunities.org/id/metropolitan-district-council/leeds,Leeds City Council,30/09/2018,Strategic Landlord,Housing Management,Supplies and Services,Resaleable Materials,204,04-Sep-2018,1809-00109,0.00,29.40,R,Access Locksmiths (Leeds) Limited,No
Http://opendatacommunities.org/id/metropolitan-district-council/leeds,Leeds City Council,30/09/2018,Strategic Landlord,Property and Contracts,Premises,General Maintenance,104,07-Sep-2018,1809-00110,0.00,163.12,R,Access Locksmiths (Leeds) Limited,No
Http://opendatacommunities.org/id/metropolitan-district-council/leeds,Leeds City Council,30/09/2018,Strategic Landlord,Property and Contracts,Premises,General Maintenance,104,07-Sep-2018,1809-00111,0.00,139.03,R,Access Locksmiths (Leeds) Limited,No
Http://opendatacommunities.org/id/metropolitan-district-council/leeds,Leeds City Council,30/09/2018,Resources and Housing,Leeds Building Services,Supplies and Services,Operational Materials,205,14-Sep-2018,1809-00112,0.00,9.52,R,Access Locksmiths (Leeds) Limited,No
Http://opendatacommunities.org/id/metropolitan-district-council/leeds,Leeds City Council,30/09/2018,Strategic Landlord,Housing Management,Income,Other Income,973,14-Sep-2018,1809-00113,0.00,165.30,R,Access Locksmiths (Leeds) Limited,No
Http://opendatacommunities.org/id/metropolitan-district-council/leeds,Leeds City Council,30/09/2018,Strategic Landlord,Housing Management,Supplies and Services,Resaleable Materials,204,14-Sep-2018,1809-00114,0.00,130.00,R,Access Locksmiths (Leeds) Limited,No
Http://opendatacommunities.org/id/metropolitan-district-council/leeds,Leeds City Council,30/09/2018,Strategic Landlord,Property and Contracts,Premises,General Maintenance,104,14-Sep-2018,1809-00115,0.00,99.08,R,Access Locksmiths (Leeds) Limited,No
Http://opendatacommunities.org/id/metropolitan-district-council/leeds,Leeds City Council,30/09/2018,Strategic Landlord,Housing Management,Supplies and Services,Resaleable Materials,204,14-Sep-2018,1809-00116,0.00,52.50,R,Access Locksmiths (Leeds) Limited,No
Http://opendatacommunities.org/id/metropolitan-district-council/leeds,Leeds City Council,30/09/2018,Communities and Environment,Cleaner Neighbourhood Teams,Supplies and Services,Operational Furniture And Equipment,203,14-Sep-2018,1809-00117,0.00,36.82,R,Access Locksmiths (Leeds) Limited,No
Http://opendatacommunities.org/id/metropolitan-district-council/leeds,Leeds City Council,30/09/2018,Strategic Landlord,Housing Management,Supplies and Services,Resaleable Materials,204,26-Sep-2018,1809-00118,0.00,31.26,R,Access Locksmiths (Leeds) Limited,No
Http://opendatacommunities.org/id/metropolitan-district-council/leeds,Leeds City Council,30/09/2018,Strategic Landlord,Housing Management,Premises,General Maintenance,104,28-Sep-2018,1809-00119,0.00,40.56,R,Access Locksmiths (Leeds) Limited,No
Http://opendatacommunities.org/id/metropolitan-district-council/leeds,Leeds City Council,30/09/2018,Strategic Landlord,Housing Management,Supplies and Services,Resaleable Materials,204,28-Sep-2018,1809-00120,0.00,22.80,R,Access Locksmiths (Leeds) Limited,No
Http://opendatacommunities.org/id/metropolitan-district-council/leeds,Leeds City Council,30/09/2018,Strategic Landlord,Housing Management,Supplies and Services,Resaleable Materials,204,28-Sep-2018,1809-00121,0.00,7.50,R,Access Locksmiths (Leeds) Limited,No
Http://opendatacommunities.org/id/metropolitan-district-council/leeds,Leeds City Council,30/09/2018,Strategic Landlord,Housing Management,Transport,Car Parking Fees,312,28-Sep-2018,1809-00122,0.00,68.40,R,Access Locksmiths (Leeds) Limited,No
Http://opendatacommunities.org/id/metropolitan-district-council/leeds,Leeds City Council,30/09/2018,Strategic Landlord,Housing Management,Supplies and Services,Resaleable Materials,204,28-Sep-2018,1809-00123,0.00,63.20,R,Access Locksmiths (Leeds) Limited,No
Http://opendatacommunities.org/id/metropolitan-district-council/leeds,Leeds City Council,30/09/2018,Resources and Housing,Leeds Building Services,Supplies and Services,Operational Materials,205,28-Sep-2018,1809-00124,0.00,31.54,R,Access Locksmiths (Leeds) Limited,No
Http://opendatacommunities.org/id/metropolitan-district-council/leeds,Leeds City Council,30/09/2018,Resources and Housing,Leeds Building Services,Supplies and Services,Operational Materials,205,28-Sep-2018,1809-00125,0.00,31.50,R,Access Locksmiths (Leeds) Limited,No
Http://opendatacommunities.org/id/metropolitan-district-council/leeds,Leeds City Council,30/09/2018,Resources and Housing,Leeds Building Services,Supplies and Services,Operational Materials,205,28-Sep-2018,1809-00126,0.00,8.92,R,Access Locksmiths (Leeds) Limited,No
Http://opendatacommunities.org/id/metropolitan-district-council/leeds,Leeds City Council,30/09/2018,Resources and Housing,Leeds Building Services,Supplies and Services,Operational Materials,205,28-Sep-2018,1809-00127,0.00,16.99,R,Access Locksmiths (Leeds) Limited,No
Http://opendatacommunities.org/id/metropolitan-district-council/leeds,Leeds City Council,30/09/2018,Resources and Housing,Leeds Building Services,Supplies and Services,Operational Materials,205,28-Sep-2018,1809-00128,0.00,20.65,R,Access Locksmiths (Leeds) Limited,No
Http://opendatacommunities.org/id/metropolitan-district-council/leeds,Leeds City Council,30/09/2018,Resources and Housing,Leeds Building Services,Supplies and Services,Operational Materials,205,28-Sep-2018,1809-00129,0.00,26.73,R,Access Locksmiths (Leeds) Limited,No
Http://opendatacommunities.org/id/metropolitan-district-council/leeds,Leeds City Council,30/09/2018,Resources and Housing,Leeds Building Services,Supplies and Services,Operational Materials,205,28-Sep-2018,1809-00130,0.00,26.73,R,Access Locksmiths (Leeds) Limited,No
Http://opendatacommunities.org/id/metropolitan-district-council/leeds,Leeds City Council,30/09/2018,Resources and Housing,Leeds Building Services,Supplies and Services,Operational Materials,205,28-Sep-2018,1809-00131,0.00,26.73,R,Access Locksmiths (Leeds) Limited,No
Http://opendatacommunities.org/id/metropolitan-district-council/leeds,Leeds City Council,30/09/2018,Resources and Housing,Leeds Building Services,Supplies and Services,Operational Materials,205,28-Sep-2018,1809-00132,0.00,16.05,R,Access Locksmiths (Leeds) Limited,No
Http://opendatacommunities.org/id/metropolitan-district-council/leeds,Leeds City Council,30/09/2018,Resources and Housing,Leeds Building Services,Supplies and Services,Operational Materials,205,28-Sep-2018,1809-00133,0.00,10.00,R,Access Locksmiths (Leeds) Limited,No
Http://opendatacommunities.org/id/metropolitan-district-council/leeds,Leeds City Council,30/09/2018,Resources and Housing,Leeds Building Services,Supplies and Services,Operational Materials,205,28-Sep-2018,1809-00134,0.00,8.20,R,Access Locksmiths (Leeds) Limited,No
Http://opendatacommunities.org/id/metropolitan-district-council/leeds,Leeds City Council,30/09/2018,Resources and Housing,Leeds Building Services,Supplies and Services,Operational Materials,205,28-Sep-2018,1809-00135,0.00,10.00,R,Access Locksmiths (Leeds) Limited,No
Http://opendatacommunities.org/id/metropolitan-district-council/leeds,Leeds City Council,30/09/2018,Resources and Housing,Leeds Building Services,Supplies and Services,Operational Materials,205,28-Sep-2018,1809-00136,0.00,19.90,R,Access Locksmiths (Leeds) Limited,No
Http://opendatacommunities.org/id/metropolitan-district-council/leeds,Leeds City Council,30/09/2018,Resources and Housing,Leeds Building Services,Supplies and Services,Operational Materials,205,28-Sep-2018,1809-00137,0.00,57.50,R,Access Locksmiths (Leeds) Limited,No
Http://opendatacommunities.org/id/metropolitan-district-council/leeds,Leeds City Council,30/09/2018,Resources and Housing,Leeds Building Services,Supplies and Services,Operational Materials,205,06-Sep-2018,1809-00138,0.00,85.00,R,Access Opening Systems,No
Http://opendatacommunities.org/id/metropolitan-district-council/leeds,Leeds City Council,30/09/2018,Resources and Housing,Leeds Building Services,Supplies and Services,Operational Materials,205,06-Sep-2018,1809-00139,0.00,28.62,R,Access Opening Systems,No
Http://opendatacommunities.org/id/metropolitan-district-council/leeds,Leeds City Council,30/09/2018,Resources and Housing,Leeds Building Services,Supplies and Services,Operational Materials,205,06-Sep-2018,1809-00140,0.00,20.00,R,Access Opening Systems,No
Http://opendatacommunities.org/id/metropolitan-district-council/leeds,Leeds City Council,30/09/2018,Resources and Housing,Leeds Building Services,Supplies and Services,Other Hired And Contracted Services,265,07-Sep-2018,1809-00141,0.00,142.50,R,Access Opening Systems,No
Http://opendatacommunities.org/id/metropolitan-district-council/leeds,Leeds City Council,30/09/2018,Resources and Housing,Leeds Building Services,Supplies and Services,Operational Materials,205,07-Sep-2018,1809-00142,0.00,321.27,R,Access Opening Systems,No
Http://opendatacommunities.org/id/metropolitan-district-council/leeds,Leeds City Council,30/09/2018,Resources and Housing,Leeds Building Services,Supplies and Services,Other Hired And Contracted Services,265,07-Sep-2018,1809-00143,0.00,95.00,R,Access Opening Systems,No
Http://opendatacommunities.org/id/metropolitan-district-council/leeds,Leeds City Council,30/09/2018,Resources and Housing,Leeds Building Services,Supplies and Services,Operational Materials,205,07-Sep-2018,1809-00144,0.00,221.26,R,Access Opening Systems,No
Http://opendatacommunities.org/id/metropolitan-district-council/leeds,Leeds City Council,30/09/2018,Resources and Housing,Leeds Building Services,Supplies and Services,Operational Materials,205,14-Sep-2018,1809-00145,0.00,160.00,R,Access Opening Systems,No
Http://opendatacommunities.org/id/metropolitan-district-council/leeds,Leeds City Council,30/09/2018,Resources and Housing,Leeds Building Services,Supplies and Services,Operational Materials,205,14-Sep-2018,1809-00146,0.00,1423.44,R,Access Opening Systems,No
Http://opendatacommunities.org/id/metropolitan-district-council/leeds,Leeds City Council,30/09/2018,Resources and Housing,Leeds Building Services,Supplies and Services,Operational Materials,205,14-Sep-2018,1809-00147,0.00,28.62,R,Access Opening Systems,No
Http://opendatacommunities.org/id/metropolitan-district-council/leeds,Leeds City Council,30/09/2018,Resources and Housing,Leeds Building Services,Supplies and Services,Other Hired And Contracted Services,265,14-Sep-2018,1809-00148,0.00,95.00,R,Access Opening Systems,No
Http://opendatacommunities.org/id/metropolitan-district-council/leeds,Leeds City Council,30/09/2018,Resources and Housing,Leeds Building Services,Supplies and Services,Other Hired And Contracted Services,265,14-Sep-2018,1809-00149,0.00,95.00,R,Access Opening Systems,No
Http://opendatacommunities.org/id/metropolitan-district-council/leeds,Leeds City Council,30/09/2018,Resources and Housing,Leeds Building Services,Supplies and Services,Other Hired And Contracted Services,265,14-Sep-2018,1809-00150,0.00,765.10,R,Access Opening Systems,No
Http://opendatacommunities.org/id/metropolitan-district-council/leeds,Leeds City Council,30/09/2018,Resources and Housing,Leeds Building Services,Supplies and Services,Other Hired And Contracted Services,265,18-Sep-2018,1809-00151,0.00,95.00,R,Access Opening Systems,No
Http://opendatacommunities.org/id/metropolitan-district-council/leeds,Leeds City Council,30/09/2018,Resources and Housing,Leeds Building Services,Supplies and Services,Other Hired And Contracted Services,265,20-Sep-2018,1809-00152,0.00,142.50,R,Access Opening Systems,No
Http://opendatacommunities.org/id/metropolitan-district-council/leeds,Leeds City Council,30/09/2018,Resources and Housing,Leeds Building Services,Supplies and Services,Other Hired And Contracted Services,265,25-Sep-2018,1809-00153,0.00,95.00,R,Access Opening Systems,No
Http://opendatacommunities.org/id/metropolitan-district-council/leeds,Leeds City Council,30/09/2018,Resources and Housing,Leeds Building Services,Supplies and Services,Other Hired And Contracted Services,265,25-Sep-2018,1809-00154,0.00,95.00,R,Access Opening Systems,No
Http://opendatacommunities.org/id/metropolitan-district-council/leeds,Leeds City Council,30/09/2018,Resources and Housing,Leeds Building Services,Supplies and Services,Operational Materials,205,26-Sep-2018,1809-00155,0.00,276.00,R,Access Opening Systems,No
Http://opendatacommunities.org/id/metropolitan-district-council/leeds,Leeds City Council,30/09/2018,Resources and Housing,Leeds Building Services,Supplies and Services,Operational Materials,205,28-Sep-2018,1809-00156,0.00,812.00,R,Access Opening Systems,No
Http://opendatacommunities.org/id/metropolitan-district-council/leeds,Leeds City Council,30/09/2018,Children and Families,Social Care,Supplies and Services,Operational Furniture And Equipment,203,14-Sep-2018,1809-00157,0.00,151.65,R,Acco Uk Ltd,No
Http://opendatacommunities.org/id/metropolitan-district-council/leeds,Leeds City Council,30/09/2018,Children and Families,Social Care,Supplies and Services,Operational Furniture And Equipment,203,14-Sep-2018,1809-00158,0.00,-151.65,R,Acco Uk Ltd,No
Http://opendatacommunities.org/id/metropolitan-district-council/leeds,Leeds City Council As Accountable Body,30/09/2018,Social Services Pooled Budgets,Leeds Community Equip Store Pooled Budgt,Supplies and Services,Stationery & External Printing,210,20-Sep-2018,1809-00159,0.00,150.00,R,Acco Uk Ltd,No
Http://opendatacommunities.org/id/metropolitan-district-council/leeds,Leeds City Council As Accountable Body,30/09/2018,Social Services Pooled Budgets,Leeds Community Equip Store Pooled Budgt,Supplies and Services,Other Equipment,203,05-Sep-2018,1809-00160,0.00,102.00,R,Accora,No
Http://opendatacommunities.org/id/metropolitan-district-council/leeds,Leeds City Council As Accountable Body,30/09/2018,Social Services Pooled Budgets,Leeds Community Equip Store Pooled Budgt,Supplies and Services,Other Equipment,203,05-Sep-2018,1809-00161,0.00,1219.00,R,Accora,No
Http://opendatacommunities.org/id/metropolitan-district-council/leeds,Leeds City Council,30/09/2018,Insurance,Insurance,Supplies and Services,Insurance Claims,248,07-Sep-2018,1809-00162,0.00,30000.00,R,Accountant General Of The Senior Courts,No
Http://opendatacommunities.org/id/metropolitan-district-council/leeds,Leeds City Council,30/09/2018,City Development,Recreation,Supplies and Services,Other Hired And Contracted Services,265,03-Sep-2018,1809-00163,0.00,93.00,R,Ace Container Services Limited,No
Http://opendatacommunities.org/id/metropolitan-district-council/leeds,Leeds City Council,30/09/2018,City Development,Recreation,Supplies and Services,Other Hired And Contracted Services,265,06-Sep-2018,1809-00164,0.00,93.00,R,Ace Container Services Limited,No
Http://opendatacommunities.org/id/metropolitan-district-council/leeds,Leeds City Council,30/09/2018,City Development,Recreation,Transport,External Hire -Occasional,304,28-Sep-2018,1809-00165,0.00,124.50,R,Ace Container Services Limited,No
Http://opendatacommunities.org/id/metropolitan-district-council/leeds,Leeds City Council,30/09/2018,Communities and Environment,Parks and Countryside,Supplies and Services,Publication And Promotion,267,11-Sep-2018,1809-00166,0.00,975.00,R,Ace Leaflet Distribution & Print Ltd,No
Http://opendatacommunities.org/id/metropolitan-district-council/leeds,Leeds City Council,30/09/2018,Resources and Housing,Strategic Housing Partnership & Support,Supplies and Services,Other Hired And Contracted Services,265,21-Sep-2018,1809-00167,0.00,700.83,R,Ace Leaflet Distribution & Print Ltd,No
Http://opendatacommunities.org/id/metropolitan-district-council/leeds,Leeds City Council,30/09/2018,Resources and Housing,Leeds Building Services,Supplies and Services,Other Hired And Contracted Services,265,28-Sep-2018,1809-00168,0.00,2055.00,R,Acme Facilities Group Ltd,No
Http://opendatacommunities.org/id/metropolitan-district-council/leeds,Leeds City Council,30/09/2018,Adults and Health,Services For Older People - 65 And Over,Third Party Payments,Nursing Care Dementia,574,19-Sep-2018,1809-00169,0.00,1714.68,R,Acorn Nursing Home,No
Http://opendatacommunities.org/id/metropolitan-district-council/leeds,Leeds City Council,30/09/2018,City Development,Libraries  Arts & Heritage,Supplies and Services,Other Hired And Contracted Services,265,17-Sep-2018,1809-00170,0.00,5190.00,R,Acorn Scaffolding (Yorkshire) Ltd,No
Http://opendatacommunities.org/id/metropolitan-district-council/leeds,Leeds City Council,30/09/2018,City Development,Libraries  Arts & Heritage,Transport,Fuel (Non LCC Supplies),321,17-Sep-2018,1809-00171,0.00,500.00,R,Acorn Scaffolding (Yorkshire) Ltd,No
Http://opendatacommunities.org/id/metropolitan-district-council/leeds,Leeds City Council,30/09/2018,City Development,Libraries  Arts & Heritage,Supplies and Services,Operational Furniture And Equipment,203,18-Sep-2018,1809-00172,0.00,9066.44,R,Acorn Scaffolding (Yorkshire) Ltd,No
Http://opendatacommunities.org/id/metropolitan-district-council/leeds,Leeds City Council,30/09/2018,City Development,Libraries  Arts & Heritage,Supplies and Services,Commissioned Services,264,28-Sep-2018,1809-00173,0.00,5207.00,R,Acorn Scaffolding (Yorkshire) Ltd,No
Http://opendatacommunities.org/id/metropolitan-district-council/leeds,Leeds City Council,30/09/2018,Children and Families,Social Care,Third Party Payments,Services Rendered By Other Organisations,511,19-Sep-2018,1809-00174,0.00,111.10,R,Acorns Nursery,No
Http://opendatacommunities.org/id/metropolitan-district-council/leeds,Leeds City Council,30/09/2018,Children and Families,Social Care,Third Party Payments,Services Rendered By Other Organisations,511,21-Sep-2018,1809-00175,0.00,11267.03,R,Acorns Nursery,No
Http://opendatacommunities.org/id/metropolitan-district-council/leeds,Leeds City Council,30/09/2018,Children and Families,Social Care,Third Party Payments,Services Rendered By Voluntary Sector,505,21-Sep-2018,1809-00176,0.00,4736.84,R,Acorns Nursery,No
Http://opendatacommunities.org/id/metropolitan-district-council/leeds,Leeds City Council,30/09/2018,Adults and Health,Services For Older People - 65 And Over,Third Party Payments,Nursing Home,570,19-Sep-2018,1809-00177,0.00,61780.34,R,Acre Green,No
Http://opendatacommunities.org/id/metropolitan-district-council/leeds,Leeds City Council,30/09/2018,Adults and Health,Services For Older People - 65 And Over,Third Party Payments,Residential,580,19-Sep-2018,1809-00178,0.00,-13812.82,R,Acre Green,No
Http://opendatacommunities.org/id/metropolitan-district-council/leeds,Leeds City Council,30/09/2018,Adults and Health,Services For Older People Under 65 P/Dis,Third Party Payments,Nursing Home,570,19-Sep-2018,1809-00179,0.00,2200.00,R,Acre Green,No
Http://opendatacommunities.org/id/metropolitan-district-council/leeds,Leeds City Council,30/09/2018,Adults and Health,Services For Older People Under 65 P/Dis,Third Party Payments,Residential,580,19-Sep-2018,1809-00180,0.00,1898.80,R,Acre Green,No
Http://opendatacommunities.org/id/metropolitan-district-council/leeds,Leeds City Council,30/09/2018,Children and Families,Social Care,Third Party Payments,Services Rendered By Other Organisations,511,19-Sep-2018,1809-00181,0.00,4284.00,R,Acre Wood Day Nursery,No
Http://opendatacommunities.org/id/metropolitan-district-council/leeds,Leeds City Council,30/09/2018,Children and Families,Social Care,Third Party Payments,Services Rendered By Other Organisations,511,21-Sep-2018,1809-00182,0.00,8478.75,R,Acre Wood Day Nursery,No
Http://opendatacommunities.org/id/metropolitan-district-council/leeds,Leeds City Council,30/09/2018,City Development,Highways,Supplies and Services,Operational Materials,205,14-Sep-2018,1809-00183,0.00,537.50,R,Actavo (Leeds H & S),No
Http://opendatacommunities.org/id/metropolitan-district-council/leeds,Leeds City Council As Accountable Body,30/09/2018,Social Services Pooled Budgets,Leeds Community Equip Store Pooled Budgt,Supplies and Services,Other Equipment,203,25-Sep-2018,1809-00184,0.00,165.00,R,Action Assist Ltd,No
Http://opendatacommunities.org/id/metropolitan-district-council/leeds,Leeds City Council As Accountable Body,30/09/2018,Social Services Pooled Budgets,Leeds Community Equip Store Pooled Budgt,Supplies and Services,Other Equipment,203,27-Sep-2018,1809-00185,0.00,165.00,R,Action Assist Ltd,No
Http://opendatacommunities.org/id/metropolitan-district-council/leeds,Leeds City Council,30/09/2018,Adults and Health,Services For Adults Under 65 Mental/Dis,Third Party Payments,Fees - Level 4,520,11-Sep-2018,1809-00186,0.00,220.00,R,Action First Recruitment Ltd,No
Http://opendatacommunities.org/id/metropolitan-district-council/leeds,Leeds City Council,30/09/2018,Adults and Health,Services For Adults Under 65 Mental/Dis,Third Party Payments,Fees - Level 4,520,11-Sep-2018,1809-00187,0.00,220.00,R,Action First Recruitment Ltd,No
Http://opendatacommunities.org/id/metropolitan-district-council/leeds,Leeds City Council,30/09/2018,Adults and Health,Services For Adults Under 65 Mental/Dis,Third Party Payments,Fees - Level 4,520,11-Sep-2018,1809-00188,0.00,220.00,R,Action First Recruitment Ltd,No
Http://opendatacommunities.org/id/metropolitan-district-council/leeds,Leeds City Council,30/09/2018,Children and Families,Social Care,Third Party Payments,Independent Fostering Agencies,509,14-Sep-2018,1809-00189,0.00,4776.48,R,Action For Children,No
Http://opendatacommunities.org/id/metropolitan-district-council/leeds,Leeds City Council,30/09/2018,Children and Families,Social Care,Third Party Payments,Independent Fostering Agencies,509,14-Sep-2018,1809-00190,0.00,4776.48,R,Action For Children,No
Http://opendatacommunities.org/id/metropolitan-district-council/leeds,Leeds City Council,30/09/2018,Children and Families,Social Care,Third Party Payments,Independent Fostering Agencies,509,14-Sep-2018,1809-00191,0.00,4776.48,R,Action For Children,No
Http://opendatacommunities.org/id/metropolitan-district-council/leeds,Leeds City Council,30/09/2018,Children and Families,Social Care,Third Party Payments,Independent Fostering Agencies,509,14-Sep-2018,1809-00192,0.00,4776.48,R,Action For Children,No
Http://opendatacommunities.org/id/metropolitan-district-council/leeds,Leeds City Council,30/09/2018,Children and Families,Social Care,Third Party Payments,Independent Fostering Agencies,509,14-Sep-2018,1809-00193,0.00,5060.44,R,Action For Children Services Ltd,No
Http://opendatacommunities.org/id/metropolitan-district-council/leeds,Leeds City Council,30/09/2018,Adults and Health,Services For Older People - 65 And Over,Third Party Payments,Payments To Voluntary Organisations,561,28-Sep-2018,1809-00194,0.00,44068.00,R,Action For Gipton Elderly,No
Http://opendatacommunities.org/id/metropolitan-district-council/leeds,Leeds City Council,30/09/2018,Children and Families,Social Care,Third Party Payments,Services Rendered By Other Organisations,511,19-Sep-2018,1809-00195,0.00,803.25,R,Active Kids Yeadon Llp,No
Http://opendatacommunities.org/id/metropolitan-district-council/leeds,Leeds City Council,30/09/2018,Children and Families,Social Care,Third Party Payments,Services Rendered By Other Organisations,511,21-Sep-2018,1809-00196,0.00,13605.60,R,Active Kids Yeadon Llp,No
Http://opendatacommunities.org/id/metropolitan-district-council/leeds,Leeds City Council,30/09/2018,Children and Families,Social Care,Employees,Training & Development,70,25-Sep-2018,1809-00197,0.00,438.00,R,Activia Ltd,No
Http://opendatacommunities.org/id/metropolitan-district-council/leeds,Leeds City Council,30/09/2018,Communities and Environment,Cleaner Neighbourhood Teams,Premises,Removal Of Workplace Waste,126,07-Sep-2018,1809-00198,0.00,110.00,R,Acumen Waste Services Ltd,No
Http://opendatacommunities.org/id/metropolitan-district-council/leeds,Leeds City Council,30/09/2018,Communities and Environment,Cleaner Neighbourhood Teams,Premises,Removal Of Workplace Waste,126,07-Sep-2018,1809-00199,0.00,110.00,R,Acumen Waste Services Ltd,No
Http://opendatacommunities.org/id/metropolitan-district-council/leeds,Leeds City Council,30/09/2018,Communities and Environment,Cleaner Neighbourhood Teams,Premises,Removal Of Workplace Waste,126,07-Sep-2018,1809-00200,0.00,110.00,R,Acumen Waste Services Ltd,No
Http://opendatacommunities.org/id/metropolitan-district-council/leeds,Leeds City Council,30/09/2018,Communities and Environment,Cleaner Neighbourhood Teams,Premises,Removal Of Workplace Waste,126,07-Sep-2018,1809-00201,0.00,110.00,R,Acumen Waste Services Ltd,No
Http://opendatacommunities.org/id/metropolitan-district-council/leeds,Leeds City Council,30/09/2018,Communities and Environment,Waste Management,Supplies and Services,Recycling & Reuse Charges,234,07-Sep-2018,1809-00202,0.00,4748.29,R,Acumen Waste Services Ltd,No
Http://opendatacommunities.org/id/metropolitan-district-council/leeds,Leeds City Council,30/09/2018,Communities and Environment,Cleaner Neighbourhood Teams,Premises,Removal Of Workplace Waste,126,11-Sep-2018,1809-00203,0.00,110.00,R,Acumen Waste Services Ltd,No
Http://opendatacommunities.org/id/metropolitan-district-council/leeds,Leeds City Council,30/09/2018,Communities and Environment,Cleaner Neighbourhood Teams,Premises,Removal Of Workplace Waste,126,11-Sep-2018,1809-00204,0.00,110.00,R,Acumen Waste Services Ltd,No
Http://opendatacommunities.org/id/metropolitan-district-council/leeds,Leeds City Council,30/09/2018,Communities and Environment,Cleaner Neighbourhood Teams,Premises,Removal Of Workplace Waste,126,11-Sep-2018,1809-00205,0.00,110.00,R,Acumen Waste Services Ltd,No
Http://opendatacommunities.org/id/metropolitan-district-council/leeds,Leeds City Council,30/09/2018,Communities and Environment,Cleaner Neighbourhood Teams,Premises,Removal Of Workplace Waste,126,11-Sep-2018,1809-00206,0.00,110.00,R,Acumen Waste Services Ltd,No
Http://opendatacommunities.org/id/metropolitan-district-council/leeds,Leeds City Council,30/09/2018,Communities and Environment,Cleaner Neighbourhood Teams,Premises,Removal Of Workplace Waste,126,11-Sep-2018,1809-00207,0.00,110.00,R,Acumen Waste Services Ltd,No
Http://opendatacommunities.org/id/metropolitan-district-council/leeds,Leeds City Council,30/09/2018,Communities and Environment,Cleaner Neighbourhood Teams,Premises,Removal Of Workplace Waste,126,11-Sep-2018,1809-00208,0.00,110.00,R,Acumen Waste Services Ltd,No
Http://opendatacommunities.org/id/metropolitan-district-council/leeds,Leeds City Council,30/09/2018,Communities and Environment,Cleaner Neighbourhood Teams,Premises,Removal Of Workplace Waste,126,11-Sep-2018,1809-00209,0.00,110.00,R,Acumen Waste Services Ltd,No
Http://opendatacommunities.org/id/metropolitan-district-council/leeds,Leeds City Council,30/09/2018,Communities and Environment,Cleaner Neighbourhood Teams,Premises,Removal Of Workplace Waste,126,11-Sep-2018,1809-00210,0.00,110.00,R,Acumen Waste Services Ltd,No
Http://opendatacommunities.org/id/metropolitan-district-council/leeds,Leeds City Council,30/09/2018,Communities and Environment,Cleaner Neighbourhood Teams,Premises,Removal Of Workplace Waste,126,11-Sep-2018,1809-00211,0.00,110.00,R,Acumen Waste Services Ltd,No
Http://opendatacommunities.org/id/metropolitan-district-council/leeds,Leeds City Council,30/09/2018,Communities and Environment,Cleaner Neighbourhood Teams,Premises,Removal Of Workplace Waste,126,11-Sep-2018,1809-00212,0.00,110.00,R,Acumen Waste Services Ltd,No
Http://opendatacommunities.org/id/metropolitan-district-council/leeds,Leeds City Council,30/09/2018,Communities and Environment,Cleaner Neighbourhood Teams,Premises,Removal Of Workplace Waste,126,11-Sep-2018,1809-00213,0.00,110.00,R,Acumen Waste Services Ltd,No
Http://opendatacommunities.org/id/metropolitan-district-council/leeds,Leeds City Council,30/09/2018,Communities and Environment,Cleaner Neighbourhood Teams,Premises,Removal Of Workplace Waste,126,11-Sep-2018,1809-00214,0.00,110.00,R,Acumen Waste Services Ltd,No
Http://opendatacommunities.org/id/metropolitan-district-council/leeds,Leeds City Council,30/09/2018,Communities and Environment,Cleaner Neighbourhood Teams,Premises,Removal Of Workplace Waste,126,11-Sep-2018,1809-00215,0.00,110.00,R,Acumen Waste Services Ltd,No
Http://opendatacommunities.org/id/metropolitan-district-council/leeds,Leeds City Council,30/09/2018,Communities and Environment,Cleaner Neighbourhood Teams,Premises,Removal Of Workplace Waste,126,14-Sep-2018,1809-00216,0.00,110.00,R,Acumen Waste Services Ltd,No
Http://opendatacommunities.org/id/metropolitan-district-council/leeds,Leeds City Council,30/09/2018,Communities and Environment,Cleaner Neighbourhood Teams,Premises,Removal Of Workplace Waste,126,14-Sep-2018,1809-00217,0.00,110.00,R,Acumen Waste Services Ltd,No
Http://opendatacommunities.org/id/metropolitan-district-council/leeds,Leeds City Council,30/09/2018,Communities and Environment,Cleaner Neighbourhood Teams,Premises,Removal Of Workplace Waste,126,14-Sep-2018,1809-00218,0.00,110.00,R,Acumen Waste Services Ltd,No
Http://opendatacommunities.org/id/metropolitan-district-council/leeds,Leeds City Council,30/09/2018,Communities and Environment,Cleaner Neighbourhood Teams,Premises,Removal Of Workplace Waste,126,14-Sep-2018,1809-00219,0.00,110.00,R,Acumen Waste Services Ltd,No
Http://opendatacommunities.org/id/metropolitan-district-council/leeds,Leeds City Council,30/09/2018,Communities and Environment,Cleaner Neighbourhood Teams,Premises,Removal Of Workplace Waste,126,14-Sep-2018,1809-00220,0.00,110.00,R,Acumen Waste Services Ltd,No
Http://opendatacommunities.org/id/metropolitan-district-council/leeds,Leeds City Council,30/09/2018,Communities and Environment,Cleaner Neighbourhood Teams,Premises,Removal Of Workplace Waste,126,18-Sep-2018,1809-00221,0.00,110.00,R,Acumen Waste Services Ltd,No
Http://opendatacommunities.org/id/metropolitan-district-council/leeds,Leeds City Council,30/09/2018,Communities and Environment,Cleaner Neighbourhood Teams,Premises,Removal Of Workplace Waste,126,19-Sep-2018,1809-00222,0.00,110.00,R,Acumen Waste Services Ltd,No
Http://opendatacommunities.org/id/metropolitan-district-council/leeds,Leeds City Council,30/09/2018,Communities and Environment,Waste Management,Supplies and Services,Recycling & Reuse Charges,234,19-Sep-2018,1809-00223,0.00,3816.97,R,Acumen Waste Services Ltd,No
Http://opendatacommunities.org/id/metropolitan-district-council/leeds,Leeds City Council,30/09/2018,Communities and Environment,Cleaner Neighbourhood Teams,Premises,Removal Of Workplace Waste,126,21-Sep-2018,1809-00224,0.00,110.00,R,Acumen Waste Services Ltd,No
Http://opendatacommunities.org/id/metropolitan-district-council/leeds,Leeds City Council,30/09/2018,Communities and Environment,Cleaner Neighbourhood Teams,Premises,Removal Of Workplace Waste,126,21-Sep-2018,1809-00225,0.00,110.00,R,Acumen Waste Services Ltd,No
Http://opendatacommunities.org/id/metropolitan-district-council/leeds,Leeds City Council,30/09/2018,Communities and Environment,Cleaner Neighbourhood Teams,Premises,Removal Of Workplace Waste,126,21-Sep-2018,1809-00226,0.00,110.00,R,Acumen Waste Services Ltd,No
Http://opendatacommunities.org/id/metropolitan-district-council/leeds,Leeds City Council,30/09/2018,Communities and Environment,Cleaner Neighbourhood Teams,Premises,Removal Of Workplace Waste,126,21-Sep-2018,1809-00227,0.00,110.00,R,Acumen Waste Services Ltd,No
Http://opendatacommunities.org/id/metropolitan-district-council/leeds,Leeds City Council,30/09/2018,Communities and Environment,Cleaner Neighbourhood Teams,Premises,Removal Of Workplace Waste,126,21-Sep-2018,1809-00228,0.00,110.00,R,Acumen Waste Services Ltd,No
Http://opendatacommunities.org/id/metropolitan-district-council/leeds,Leeds City Council,30/09/2018,Communities and Environment,Waste Management,Supplies and Services,Recycling & Reuse Charges,234,28-Sep-2018,1809-00229,0.00,6727.47,R,Acumen Waste Services Ltd,No
Http://opendatacommunities.org/id/metropolitan-district-council/leeds,Leeds City Council,30/09/2018,Communities and Environment,Parks and Countryside,Supplies and Services,Resaleable Materials,204,14-Sep-2018,1809-00230,0.00,102.10,R,Acushnet Europe Limited,No
Http://opendatacommunities.org/id/metropolitan-district-council/leeds,Leeds City Council,30/09/2018,Resources and Housing,Shared Services,Supplies and Services,Operational Materials,205,07-Sep-2018,1809-00231,0.00,705.00,R,Ad3 Envelope Printers Limited,No
Http://opendatacommunities.org/id/metropolitan-district-council/leeds,Leeds City Council,30/09/2018,Resources and Housing,Shared Services,Supplies and Services,Other Hired And Contracted Services,265,07-Sep-2018,1809-00232,0.00,292.25,R,Ad3 Envelope Printers Limited,No
Http://opendatacommunities.org/id/metropolitan-district-council/leeds,Leeds City Council,30/09/2018,Insurance,Insurance,Supplies and Services,Insurance Claims,248,17-Sep-2018,1809-00233,0.00,350.00,R,REDACTED PERSONAL DATA,No
Http://opendatacommunities.org/id/metropolitan-district-council/leeds,Leeds City Council,30/09/2018,Resources and Housing,Shared Services  ,Supplies and Services,Computer Software & Equipment,214,16-Aug-2018,1809-00234,0.00,196.94,R,Adapt-It,Yes
Http://opendatacommunities.org/id/metropolitan-district-council/leeds,Leeds City Council,30/09/2018,Adults and Health,Services For Older People - 65 And Over,Third Party Payments,Nursing Home,570,19-Sep-2018,1809-00235,0.00,3897.12,R,Adbolton Hall,No
Http://opendatacommunities.org/id/metropolitan-district-council/leeds,Leeds City Council,30/09/2018,Resources and Housing,Sustainable Energy & Climate Change,Capital,Other Costs,7,03-Sep-2018,1809-00236,0.00,1817.00,C,Addleshaw Goddard Llp,No
Http://opendatacommunities.org/id/metropolitan-district-council/leeds,Leeds City Council,30/09/2018,Resources and Housing,Sustainable Energy & Climate Change,Capital,Other Costs,7,03-Sep-2018,1809-00237,0.00,1260.50,C,Addleshaw Goddard Llp,No
Http://opendatacommunities.org/id/metropolitan-district-council/leeds,Leeds City Council,30/09/2018,Communities and Environment,Parks and Countryside,Supplies and Services,Other Hired And Contracted Services,265,20-Sep-2018,1809-00238,0.00,7714.00,R,Addlestone & Partners,No
Http://opendatacommunities.org/id/metropolitan-district-council/leeds,Leeds City Council,30/09/2018,Resources and Housing,Technology  ,Employees,Agency Staff,8,09-Aug-2018,1809-00239,0.00,60054.75,R,Adecco Alfred Marks,Yes
Http://opendatacommunities.org/id/metropolitan-district-council/leeds,Leeds City Council,30/09/2018,Children and Families,Social Care,Third Party Payments,Services Rendered By Voluntary Sector,505,21-Sep-2018,1809-00240,0.00,3703.88,R,Adel Pre School,No
Http://opendatacommunities.org/id/metropolitan-district-council/leeds,Leeds City Council,30/09/2018,Children and Families,Social Care,Third Party Payments,Services Rendered By Other Organisations,511,21-Sep-2018,1809-00241,0.00,223.13,R,REDACTED PERSONAL DATA,No
Http://opendatacommunities.org/id/metropolitan-district-council/leeds,Leeds City Council,30/09/2018,Children and Families,Social Care,Third Party Payments,Services Rendered By Other Organisations,511,21-Sep-2018,1809-00242,0.00,148.75,R,REDACTED PERSONAL DATA,No
Http://opendatacommunities.org/id/metropolitan-district-council/leeds,Leeds City Council,30/09/2018,Children and Families,Social Care,Third Party Payments,Services Rendered By Other Organisations,511,21-Sep-2018,1809-00243,0.00,357.00,R,REDACTED PERSONAL DATA,No
Http://opendatacommunities.org/id/metropolitan-district-council/leeds,Leeds City Council,30/09/2018,Resources and Housing,Human Resources,Employees,Training & Development,70,19-Sep-2018,1809-00244,0.00,150.00,R,REDACTED PERSONAL DATA,No
Http://opendatacommunities.org/id/metropolitan-district-council/leeds,Leeds City Council,30/09/2018,Adults and Health,Services For Older People - 65 And Over,Third Party Payments,Nursing Home,570,19-Sep-2018,1809-00245,0.00,1184.76,R,Aden House,No
Http://opendatacommunities.org/id/metropolitan-district-council/leeds,Leeds City Council,30/09/2018,Communities and Environment,Community Safety,Supplies and Services,Other Hired And Contracted Services,265,14-Sep-2018,1809-00246,0.00,1260.75,R,Adi Global,No
Http://opendatacommunities.org/id/metropolitan-district-council/leeds,Leeds City Council,30/09/2018,Communities and Environment,Community Safety,Supplies and Services,Other Hired And Contracted Services,265,14-Sep-2018,1809-00247,0.00,1260.75,R,Adi Global,No
Http://opendatacommunities.org/id/metropolitan-district-council/leeds,Leeds City Council,30/09/2018,Communities and Environment,Community Safety,Supplies and Services,Other Hired And Contracted Services,265,14-Sep-2018,1809-00248,0.00,-1260.75,R,Adi Global,No
Http://opendatacommunities.org/id/metropolitan-district-council/leeds,Leeds City Council,30/09/2018,Resources and Housing,Leeds Building Services,Supplies and Services,Operational Materials,205,26-Sep-2018,1809-00249,0.00,2728.27,R,Adi Global,No
Http://opendatacommunities.org/id/metropolitan-district-council/leeds,Leeds City Council,30/09/2018,Adults and Health,Services For Older People - 65 And Over,Third Party Payments,Home Care,568,05-Sep-2018,1809-00250,0.00,1045.50,R,Adjuvo (North) Support For Living Ltd,No
Http://opendatacommunities.org/id/metropolitan-district-council/leeds,Leeds City Council,30/09/2018,Adults and Health,Services For Adults Under 65 Mental/Dis,Third Party Payments,Home Care,568,06-Sep-2018,1809-00251,0.00,272.00,R,Adjuvo (North) Support For Living Ltd,No
Http://opendatacommunities.org/id/metropolitan-district-council/leeds,Leeds City Council,30/09/2018,Children and Families,Social Care,Third Party Payments,Independent Fostering Agencies,509,07-Sep-2018,1809-00252,0.00,2945.00,R,Adolescent And Childrens Trust,No
Http://opendatacommunities.org/id/metropolitan-district-council/leeds,Leeds City Council,30/09/2018,Children and Families,Social Care,Third Party Payments,Independent Fostering Agencies,509,07-Sep-2018,1809-00253,0.00,2945.00,R,Adolescent And Childrens Trust,No
Http://opendatacommunities.org/id/metropolitan-district-council/leeds,Leeds City Council,30/09/2018,Children and Families,Social Care,Third Party Payments,Independent Fostering Agencies,509,07-Sep-2018,1809-00254,0.00,2945.00,R,Adolescent And Childrens Trust,No
Http://opendatacommunities.org/id/metropolitan-district-council/leeds,Leeds City Council,30/09/2018,Children and Families,Social Care,Third Party Payments,Independent Fostering Agencies,509,07-Sep-2018,1809-00255,0.00,2945.00,R,Adolescent And Childrens Trust,No
Http://opendatacommunities.org/id/metropolitan-district-council/leeds,Leeds City Council,30/09/2018,Children and Families,Social Care,Third Party Payments,Independent Fostering Agencies,509,07-Sep-2018,1809-00256,0.00,3224.00,R,Adolescent And Childrens Trust,No
Http://opendatacommunities.org/id/metropolitan-district-council/leeds,Leeds City Council,30/09/2018,Children and Families,Social Care,Third Party Payments,Independent Fostering Agencies,509,07-Sep-2018,1809-00257,0.00,2884.00,R,Adolescent And Childrens Trust,No
Http://opendatacommunities.org/id/metropolitan-district-council/leeds,Leeds City Council,30/09/2018,Children and Families,Social Care,Third Party Payments,Placement Support,550,07-Sep-2018,1809-00258,0.00,142.86,R,REDACTED PERSONAL DATA,No
Http://opendatacommunities.org/id/metropolitan-district-council/leeds,Leeds City Council,30/09/2018,Children and Families,Social Care,Third Party Payments,Placement Support,550,14-Sep-2018,1809-00259,0.00,142.86,R,REDACTED PERSONAL DATA,No
Http://opendatacommunities.org/id/metropolitan-district-council/leeds,Leeds City Council,30/09/2018,Children and Families,Social Care,Third Party Payments,Placement Support,550,21-Sep-2018,1809-00260,0.00,142.86,R,REDACTED PERSONAL DATA,No
Http://opendatacommunities.org/id/metropolitan-district-council/leeds,Leeds City Council,30/09/2018,Children and Families,Social Care,Third Party Payments,Placement Support,550,28-Sep-2018,1809-00261,0.00,142.86,R,REDACTED PERSONAL DATA,No
Http://opendatacommunities.org/id/metropolitan-district-council/leeds,Leeds City Council As Accountable Body,30/09/2018,Social Services Pooled Budgets,Jcs For People With Learning Disabilitie,Third Party Payments,Residential,580,06-Sep-2018,1809-00262,0.00,2609.36,R,Adrian House,No
Http://opendatacommunities.org/id/metropolitan-district-council/leeds,Leeds City Council,30/09/2018,Adults and Health,Social Services Support Services,Supplies and Services,Conference Meetings,253,26-Sep-2018,1809-00263,0.00,230.00,R,Adrian Waite,No
Http://opendatacommunities.org/id/metropolitan-district-council/leeds,Leeds City Council,30/09/2018,Strategic Landlord,Housing Management  ,Supplies and Services,Operational Furniture And Equipment,203,08-Aug-2018,1809-00264,0.00,38.00,R,Adrienne Florist,Yes
Http://opendatacommunities.org/id/metropolitan-district-council/leeds,Leeds City Council As Accountable Body,30/09/2018,Social Services Pooled Budgets,Jcs For People With Learning Disabilitie,Third Party Payments,Sheltered Accommodation,569,07-Sep-2018,1809-00265,0.00,1332.20,R,Adult Placement Services,No
Http://opendatacommunities.org/id/metropolitan-district-council/leeds,Leeds City Council As Accountable Body,30/09/2018,Social Services Pooled Budgets,Jcs For People With Learning Disabilitie,Third Party Payments,Sheltered Accommodation,569,27-Sep-2018,1809-00266,0.00,1332.20,R,Adult Placement Services,No
Http://opendatacommunities.org/id/metropolitan-district-council/leeds,Leeds City Council As Accountable Body,30/09/2018,Social Services Pooled Budgets,Jcs For People With Learning Disabilitie,Third Party Payments,Residential,580,19-Sep-2018,1809-00267,0.00,17782.08,R,Advitam Ltd,No
Http://opendatacommunities.org/id/metropolitan-district-council/leeds,Leeds City Council,30/09/2018,Adults and Health,Services For Older People - 65 And Over,Third Party Payments,Payments To Voluntary Organisations,561,06-Sep-2018,1809-00268,0.00,103916.67,R,Advonet,No
Http://opendatacommunities.org/id/metropolitan-district-council/leeds,Leeds City Council As Accountable Body,30/09/2018,Social Services Pooled Budgets,Jcs For People With Learning Disabilitie,Third Party Payments,Other Agency Services,561,18-Sep-2018,1809-00269,0.00,15.00,R,Advonet,No
Http://opendatacommunities.org/id/metropolitan-district-council/leeds,Leeds City Council As Accountable Body,30/09/2018,Social Services Pooled Budgets,Jcs For People With Learning Disabilitie,Third Party Payments,Other Agency Services,561,21-Sep-2018,1809-00270,0.00,72.60,R,Advonet,No
Http://opendatacommunities.org/id/metropolitan-district-council/leeds,Leeds City Council As Accountable Body,30/09/2018,Social Services Pooled Budgets,Jcs For People With Learning Disabilitie,Third Party Payments,Other Agency Services,561,21-Sep-2018,1809-00271,0.00,7.50,R,Advonet,No
Http://opendatacommunities.org/id/metropolitan-district-council/leeds,Leeds City Council,30/09/2018,City Development,Asset Management Services,Supplies and Services,Other Hired And Contracted Services,265,12-Sep-2018,1809-00272,0.00,28714.00,R,Aecom Limited,No
Http://opendatacommunities.org/id/metropolitan-district-council/leeds,Leeds City Council,30/09/2018,City Development,Economic Development,Capital,Other Costs,7,21-Sep-2018,1809-00273,0.00,3000.00,C,Aecom Limited,No
Http://opendatacommunities.org/id/metropolitan-district-council/leeds,Leeds City Council,30/09/2018,City Development,Highways,Capital,Other Costs,7,26-Sep-2018,1809-00274,0.00,35765.85,C,Aecom Limited,No
Http://opendatacommunities.org/id/metropolitan-district-council/leeds,Leeds City Council As Accountable Body,30/09/2018,Social Services Pooled Budgets,Jcs For People With Learning Disabilitie,Third Party Payments,Home Care,568,06-Sep-2018,1809-00275,0.00,3058.50,R,Affinity Trust,No
Http://opendatacommunities.org/id/metropolitan-district-council/leeds,Leeds City Council,30/09/2018,Adults and Health,Services For Older People Under 65 P/Dis,Third Party Payments,Home Care,568,21-Sep-2018,1809-00276,0.00,134.56,R,Affinity Trust,No
Http://opendatacommunities.org/id/metropolitan-district-council/leeds,Leeds City Council,30/09/2018,Adults and Health,Services For Older People Under 65 P/Dis,Third Party Payments,Home Care,568,21-Sep-2018,1809-00277,0.00,319.60,R,Affinity Trust,No
Http://opendatacommunities.org/id/metropolitan-district-council/leeds,Leeds City Council,30/09/2018,Adults and Health,Assessment And Care Management,Third Party Payments,Home Care,568,21-Sep-2018,1809-00278,0.00,511.36,R,Affinity Trust,No
Http://opendatacommunities.org/id/metropolitan-district-council/leeds,Leeds City Council,30/09/2018,Adults and Health,Services For Older People - 65 And Over,Third Party Payments,Home Care,568,21-Sep-2018,1809-00279,0.00,1230.46,R,Affinity Trust,No
Http://opendatacommunities.org/id/metropolitan-district-council/leeds,Leeds City Council,30/09/2018,Adults and Health,Services For Older People Under 65 P/Dis,Third Party Payments,Home Care,568,21-Sep-2018,1809-00280,0.00,1310.36,R,Affinity Trust,No
Http://opendatacommunities.org/id/metropolitan-district-council/leeds,Leeds City Council As Accountable Body,30/09/2018,Social Services Pooled Budgets,Jcs For People With Learning Disabilitie,Third Party Payments,Home Care,568,25-Sep-2018,1809-00281,0.00,958.80,R,Affinity Trust,No
Http://opendatacommunities.org/id/metropolitan-district-council/leeds,Leeds City Council As Accountable Body,30/09/2018,Social Services Pooled Budgets,Jcs For People With Learning Disabilitie,Third Party Payments,Home Care,568,25-Sep-2018,1809-00282,0.00,1342.32,R,Affinity Trust,No
Http://opendatacommunities.org/id/metropolitan-district-council/leeds,Leeds City Council As Accountable Body,30/09/2018,Social Services Pooled Budgets,Jcs For People With Learning Disabilitie,Third Party Payments,Home Care,568,25-Sep-2018,1809-00283,0.00,575.28,R,Affinity Trust,No
Http://opendatacommunities.org/id/metropolitan-district-council/leeds,Leeds City Council As Accountable Body,30/09/2018,Social Services Pooled Budgets,Jcs For People With Learning Disabilitie,Third Party Payments,Day Centre,564,25-Sep-2018,1809-00284,0.00,416.64,R,Affinity Trust,No
Http://opendatacommunities.org/id/metropolitan-district-council/leeds,Leeds City Council As Accountable Body,30/09/2018,Social Services Pooled Budgets,Jcs For People With Learning Disabilitie,Third Party Payments,Home Care,568,25-Sep-2018,1809-00285,0.00,1518.00,R,Affinity Trust,No
Http://opendatacommunities.org/id/metropolitan-district-council/leeds,Leeds City Council As Accountable Body,30/09/2018,Social Services Pooled Budgets,Jcs For People With Learning Disabilitie,Third Party Payments,Home Care,568,25-Sep-2018,1809-00286,0.00,941.92,R,Affinity Trust,No
Http://opendatacommunities.org/id/metropolitan-district-council/leeds,Leeds City Council As Accountable Body,30/09/2018,Social Services Pooled Budgets,Jcs For People With Learning Disabilitie,Third Party Payments,Home Care,568,25-Sep-2018,1809-00287,0.00,1430.21,R,Affinity Trust,No
Http://opendatacommunities.org/id/metropolitan-district-council/leeds,Leeds City Council As Accountable Body,30/09/2018,Social Services Pooled Budgets,Jcs For People With Learning Disabilitie,Third Party Payments,Home Care,568,25-Sep-2018,1809-00288,0.00,47.94,R,Affinity Trust,No
Http://opendatacommunities.org/id/metropolitan-district-council/leeds,Leeds City Council As Accountable Body,30/09/2018,Social Services Pooled Budgets,Jcs For People With Learning Disabilitie,Third Party Payments,Home Care,568,25-Sep-2018,1809-00289,0.00,639.20,R,Affinity Trust,No
Http://opendatacommunities.org/id/metropolitan-district-council/leeds,Leeds City Council As Accountable Body,30/09/2018,Social Services Pooled Budgets,Jcs For People With Learning Disabilitie,Third Party Payments,Home Care,568,25-Sep-2018,1809-00290,0.00,408.00,R,Affinity Trust,No
Http://opendatacommunities.org/id/metropolitan-district-council/leeds,Leeds City Council As Accountable Body,30/09/2018,Social Services Pooled Budgets,Jcs For People With Learning Disabilitie,Third Party Payments,Home Care,568,25-Sep-2018,1809-00291,0.00,408.64,R,Affinity Trust,No
Http://opendatacommunities.org/id/metropolitan-district-council/leeds,Leeds City Council As Accountable Body,30/09/2018,Social Services Pooled Budgets,Jcs For People With Learning Disabilitie,Third Party Payments,Home Care,568,25-Sep-2018,1809-00292,0.00,719.10,R,Affinity Trust,No
Http://opendatacommunities.org/id/metropolitan-district-council/leeds,Leeds City Council As Accountable Body,30/09/2018,Social Services Pooled Budgets,Jcs For People With Learning Disabilitie,Third Party Payments,Home Care,568,25-Sep-2018,1809-00293,0.00,511.36,R,Affinity Trust,No
Http://opendatacommunities.org/id/metropolitan-district-council/leeds,Leeds City Council As Accountable Body,30/09/2018,Social Services Pooled Budgets,Jcs For People With Learning Disabilitie,Third Party Payments,Home Care,568,25-Sep-2018,1809-00294,0.00,703.12,R,Affinity Trust,No
Http://opendatacommunities.org/id/metropolitan-district-council/leeds,Leeds City Council As Accountable Body,30/09/2018,Social Services Pooled Budgets,Jcs For People With Learning Disabilitie,Third Party Payments,Home Care,568,25-Sep-2018,1809-00295,0.00,255.68,R,Affinity Trust,No
Http://opendatacommunities.org/id/metropolitan-district-council/leeds,Leeds City Council As Accountable Body,30/09/2018,Social Services Pooled Budgets,Jcs For People With Learning Disabilitie,Third Party Payments,Home Care,568,25-Sep-2018,1809-00296,0.00,1250.44,R,Affinity Trust,No
Http://opendatacommunities.org/id/metropolitan-district-council/leeds,Leeds City Council As Accountable Body,30/09/2018,Social Services Pooled Budgets,Jcs For People With Learning Disabilitie,Third Party Payments,Home Care,568,25-Sep-2018,1809-00297,0.00,319.60,R,Affinity Trust,No
Http://opendatacommunities.org/id/metropolitan-district-council/leeds,Leeds City Council As Accountable Body,30/09/2018,Social Services Pooled Budgets,Jcs For People With Learning Disabilitie,Third Party Payments,Home Care,568,26-Sep-2018,1809-00298,0.00,1086.64,R,Affinity Trust,No
Http://opendatacommunities.org/id/metropolitan-district-council/leeds,Leeds City Council As Accountable Body,30/09/2018,Social Services Pooled Budgets,Jcs For People With Learning Disabilitie,Third Party Payments,Home Care,568,26-Sep-2018,1809-00299,0.00,2900.37,R,Affinity Trust,No
Http://opendatacommunities.org/id/metropolitan-district-council/leeds,Leeds City Council As Accountable Body,30/09/2018,Social Services Pooled Budgets,Jcs For People With Learning Disabilitie,Third Party Payments,Day Centre,564,26-Sep-2018,1809-00300,0.00,255.68,R,Affinity Trust,No
Http://opendatacommunities.org/id/metropolitan-district-council/leeds,Leeds City Council As Accountable Body,30/09/2018,Social Services Pooled Budgets,Jcs For People With Learning Disabilitie,Third Party Payments,Home Care,568,26-Sep-2018,1809-00301,0.00,335.58,R,Affinity Trust,No
Http://opendatacommunities.org/id/metropolitan-district-council/leeds,Leeds City Council As Accountable Body,30/09/2018,Social Services Pooled Budgets,Jcs For People With Learning Disabilitie,Third Party Payments,Home Care,568,26-Sep-2018,1809-00302,0.00,95.88,R,Affinity Trust,No
Http://opendatacommunities.org/id/metropolitan-district-council/leeds,Leeds City Council,30/09/2018,Adults and Health,Services For Older People - 65 And Over,Third Party Payments,Home Care,568,28-Sep-2018,1809-00303,0.00,359.55,R,Affinity Trust,No
Http://opendatacommunities.org/id/metropolitan-district-council/leeds,Leeds City Council As Accountable Body,30/09/2018,Social Services Pooled Budgets,Jcs For People With Learning Disabilitie,Third Party Payments,Home Care,568,28-Sep-2018,1809-00304,0.00,343.57,R,Affinity Trust,No
Http://opendatacommunities.org/id/metropolitan-district-council/leeds,Leeds City Council As Accountable Body,30/09/2018,Social Services Pooled Budgets,Jcs For People With Learning Disabilitie,Third Party Payments,Day Centre,564,28-Sep-2018,1809-00305,0.00,1440.00,R,Affinity Trust,No
Http://opendatacommunities.org/id/metropolitan-district-council/leeds,Leeds City Council As Accountable Body,30/09/2018,Social Services Pooled Budgets,Jcs For People With Learning Disabilitie,Third Party Payments,Day Centre,564,28-Sep-2018,1809-00306,0.00,1021.32,R,Affinity Trust,No
Http://opendatacommunities.org/id/metropolitan-district-council/leeds,Leeds City Council As Accountable Body,30/09/2018,Social Services Pooled Budgets,Jcs For People With Learning Disabilitie,Third Party Payments,Home Care,568,28-Sep-2018,1809-00307,0.00,1050.00,R,Affinity Trust,No
Http://opendatacommunities.org/id/metropolitan-district-council/leeds,Leeds City Council As Accountable Body,30/09/2018,Social Services Pooled Budgets,Jcs For People With Learning Disabilitie,Third Party Payments,Home Care,568,28-Sep-2018,1809-00308,0.00,587.97,R,Affinity Trust,No
Http://opendatacommunities.org/id/metropolitan-district-council/leeds,Leeds City Council As Accountable Body,30/09/2018,Social Services Pooled Budgets,Jcs For People With Learning Disabilitie,Third Party Payments,Home Care,568,28-Sep-2018,1809-00309,0.00,390.00,R,Affinity Trust,No
Http://opendatacommunities.org/id/metropolitan-district-council/leeds,Leeds City Council As Accountable Body,30/09/2018,Social Services Pooled Budgets,Jcs For People With Learning Disabilitie,Third Party Payments,Home Care,568,28-Sep-2018,1809-00310,0.00,2752.80,R,Affinity Trust,No
Http://opendatacommunities.org/id/metropolitan-district-council/leeds,Leeds City Council As Accountable Body,30/09/2018,Social Services Pooled Budgets,Jcs For People With Learning Disabilitie,Third Party Payments,Home Care,568,28-Sep-2018,1809-00311,0.00,1891.50,R,Affinity Trust,No
Http://opendatacommunities.org/id/metropolitan-district-council/leeds,Leeds City Council As Accountable Body,30/09/2018,Social Services Pooled Budgets,Jcs For People With Learning Disabilitie,Third Party Payments,Home Care,568,28-Sep-2018,1809-00312,0.00,960.66,R,Affinity Trust,No
Http://opendatacommunities.org/id/metropolitan-district-council/leeds,Leeds City Council As Accountable Body,30/09/2018,Social Services Pooled Budgets,Jcs For People With Learning Disabilitie,Third Party Payments,Home Care,568,28-Sep-2018,1809-00313,0.00,3446.80,R,Affinity Trust,No
Http://opendatacommunities.org/id/metropolitan-district-council/leeds,Leeds City Council As Accountable Body,30/09/2018,Social Services Pooled Budgets,Jcs For People With Learning Disabilitie,Third Party Payments,Day Centre,564,28-Sep-2018,1809-00314,0.00,402.24,R,Affinity Trust,No
Http://opendatacommunities.org/id/metropolitan-district-council/leeds,Leeds City Council As Accountable Body,30/09/2018,Social Services Pooled Budgets,Jcs For People With Learning Disabilitie,Third Party Payments,Home Care,568,28-Sep-2018,1809-00315,0.00,535.72,R,Affinity Trust,No
Http://opendatacommunities.org/id/metropolitan-district-council/leeds,Leeds City Council As Accountable Body,30/09/2018,Social Services Pooled Budgets,Jcs For People With Learning Disabilitie,Third Party Payments,Day Centre,564,28-Sep-2018,1809-00316,0.00,2058.72,R,Affinity Trust,No
Http://opendatacommunities.org/id/metropolitan-district-council/leeds,Leeds City Council As Accountable Body,30/09/2018,Social Services Pooled Budgets,Jcs For People With Learning Disabilitie,Third Party Payments,Home Care,568,28-Sep-2018,1809-00317,0.00,804.48,R,Affinity Trust,No
Http://opendatacommunities.org/id/metropolitan-district-council/leeds,Leeds City Council As Accountable Body,30/09/2018,Social Services Pooled Budgets,Jcs For People With Learning Disabilitie,Third Party Payments,Home Care,568,28-Sep-2018,1809-00318,0.00,1106.21,R,Affinity Trust,No
Http://opendatacommunities.org/id/metropolitan-district-council/leeds,Leeds City Council As Accountable Body,30/09/2018,Social Services Pooled Budgets,Jcs For People With Learning Disabilitie,Third Party Payments,Home Care,568,28-Sep-2018,1809-00319,0.00,1500.66,R,Affinity Trust,No
Http://opendatacommunities.org/id/metropolitan-district-council/leeds,Leeds City Council As Accountable Body,30/09/2018,Social Services Pooled Budgets,Jcs For People With Learning Disabilitie,Third Party Payments,Home Care,568,28-Sep-2018,1809-00320,0.00,1005.60,R,Affinity Trust,No
Http://opendatacommunities.org/id/metropolitan-district-council/leeds,Leeds City Council As Accountable Body,30/09/2018,Social Services Pooled Budgets,Jcs For People With Learning Disabilitie,Third Party Payments,Home Care,568,28-Sep-2018,1809-00321,0.00,360.00,R,Affinity Trust,No
Http://opendatacommunities.org/id/metropolitan-district-council/leeds,Leeds City Council As Accountable Body,30/09/2018,Social Services Pooled Budgets,Jcs For People With Learning Disabilitie,Third Party Payments,Day Centre,564,28-Sep-2018,1809-00322,0.00,648.95,R,Affinity Trust,No
Http://opendatacommunities.org/id/metropolitan-district-council/leeds,Leeds City Council As Accountable Body,30/09/2018,Social Services Pooled Budgets,Jcs For People With Learning Disabilitie,Third Party Payments,Day Centre,564,28-Sep-2018,1809-00323,0.00,2346.40,R,Affinity Trust,No
Http://opendatacommunities.org/id/metropolitan-district-council/leeds,Leeds City Council As Accountable Body,30/09/2018,Social Services Pooled Budgets,Jcs For People With Learning Disabilitie,Third Party Payments,Day Centre,564,28-Sep-2018,1809-00324,0.00,1234.62,R,Affinity Trust,No
Http://opendatacommunities.org/id/metropolitan-district-council/leeds,Leeds City Council As Accountable Body,30/09/2018,Social Services Pooled Budgets,Jcs For People With Learning Disabilitie,Third Party Payments,Day Centre,564,28-Sep-2018,1809-00325,0.00,2031.48,R,Affinity Trust,No
Http://opendatacommunities.org/id/metropolitan-district-council/leeds,Leeds City Council As Accountable Body,30/09/2018,Social Services Pooled Budgets,Jcs For People With Learning Disabilitie,Third Party Payments,Home Care,568,28-Sep-2018,1809-00326,0.00,1610.36,R,Affinity Trust,No
Http://opendatacommunities.org/id/metropolitan-district-council/leeds,Leeds City Council As Accountable Body,30/09/2018,Social Services Pooled Budgets,Jcs For People With Learning Disabilitie,Third Party Payments,Home Care,568,28-Sep-2018,1809-00327,0.00,319.60,R,Affinity Trust,No
Http://opendatacommunities.org/id/metropolitan-district-council/leeds,Leeds City Council As Accountable Body,30/09/2018,Social Services Pooled Budgets,Jcs For People With Learning Disabilitie,Third Party Payments,Sheltered Accommodation,569,19-Sep-2018,1809-00328,0.00,113866.89,R,Affinity Trust North Divisional Office,No
Http://opendatacommunities.org/id/metropolitan-district-council/leeds,Leeds City Council,30/09/2018,Communities and Environment,Parks And Countryside  ,Transport,Hire Of Movable Plant & Machinery,315,31-Jul-2018,1809-00329,0.00,2850.00,R,Afi Uplift Ltd,Yes
Http://opendatacommunities.org/id/metropolitan-district-council/leeds,Leeds City Council,30/09/2018,Communities and Environment,Parks And Countryside  ,Transport,Hire Of Movable Plant & Machinery,315,24-Aug-2018,1809-00330,0.00,1900.00,R,Afi Uplift Ltd,Yes
Http://opendatacommunities.org/id/metropolitan-district-council/leeds,Leeds City Council,30/09/2018,Communities and Environment,Parks And Countryside  ,Transport,External Hire -Occasional,304,30-Aug-2018,1809-00331,0.00,1900.00,R,Afi Uplift Ltd,Yes
Http://opendatacommunities.org/id/metropolitan-district-council/leeds,Leeds City Council,30/09/2018,Communities and Environment,Parks And Countryside  ,Transport,External Hire -Occasional,304,30-Aug-2018,1809-00332,0.00,1900.00,R,Afi Uplift Ltd,Yes
Http://opendatacommunities.org/id/metropolitan-district-council/leeds,Leeds City Council,30/09/2018,City Development,Libraries  Arts & Heritage,Supplies and Services,Other Hired And Contracted Services,265,25-Sep-2018,1809-00333,0.00,362.00,R,Afi-Uplift Limited,No
Http://opendatacommunities.org/id/metropolitan-district-council/leeds,Leeds City Council,30/09/2018,City Development,Highways,Premises,Maintenance Of Traffic Signals,108,28-Sep-2018,1809-00334,0.00,5999.00,R,Agd Systems Ltd,No
Http://opendatacommunities.org/id/metropolitan-district-council/leeds,Leeds City Council,30/09/2018,City Development,Employment & Skills,Supplies and Services,College Contracts,276,13-Sep-2018,1809-00335,0.00,8100.00,R,Age Uk Leeds,No
Http://opendatacommunities.org/id/metropolitan-district-council/leeds,Leeds City Council,30/09/2018,Adults and Health,Services For Older People - 65 And Over,Third Party Payments,Payments To Voluntary Organisations,561,27-Sep-2018,1809-00336,0.00,10599.75,R,Age Uk Leeds,No
Http://opendatacommunities.org/id/metropolitan-district-council/leeds,Leeds City Council,30/09/2018,City Development,Recreation,Supplies and Services,Other Hired And Contracted Services,265,28-Sep-2018,1809-00337,0.00,1972.41,R,Age Uk Leeds,No
Http://opendatacommunities.org/id/metropolitan-district-council/leeds,Leeds City Council,30/09/2018,City Development,Employment & Skills,Supplies and Services,Commissioned Services,264,28-Sep-2018,1809-00338,0.00,4000.00,R,Ahead Partnership Ltd,No
Http://opendatacommunities.org/id/metropolitan-district-council/leeds,Leeds City Council,30/09/2018,Communities and Environment,Elections  Licensing and Registration,Income,Admissions  Booking Fees & Ticket Sales,933,13-Sep-2018,1809-00339,0.00,155.00,R,REDACTED PERSONAL DATA,No
Http://opendatacommunities.org/id/metropolitan-district-council/leeds,Leeds City Council,30/09/2018,Children and Families,Learning,Supplies and Services,Teaching Materials,202,17-Sep-2018,1809-00340,0.00,36.02,R,Aid Training & Operations Ltd,No
Http://opendatacommunities.org/id/metropolitan-district-council/leeds,Leeds City Council As Accountable Body,30/09/2018,Social Services Pooled Budgets,Leeds Community Equip Store Pooled Budgt,Supplies and Services,Other Equipment,203,05-Sep-2018,1809-00341,0.00,1639.05,R,Aidapt Bathrooms Ltd,No
Http://opendatacommunities.org/id/metropolitan-district-council/leeds,Leeds City Council As Accountable Body,30/09/2018,Social Services Pooled Budgets,Leeds Community Equip Store Pooled Budgt,Supplies and Services,Other Equipment,203,05-Sep-2018,1809-00342,0.00,1099.40,R,Aidapt Bathrooms Ltd,No
Http://opendatacommunities.org/id/metropolitan-district-council/leeds,Leeds City Council As Accountable Body,30/09/2018,Social Services Pooled Budgets,Leeds Community Equip Store Pooled Budgt,Supplies and Services,Other Equipment,203,07-Sep-2018,1809-00343,0.00,1569.25,R,Aidapt Bathrooms Ltd,No
Http://opendatacommunities.org/id/metropolitan-district-council/leeds,Leeds City Council As Accountable Body,30/09/2018,Social Services Pooled Budgets,Leeds Community Equip Store Pooled Budgt,Supplies and Services,Other Equipment,203,07-Sep-2018,1809-00344,0.00,626.70,R,Aidapt Bathrooms Ltd,No
Http://opendatacommunities.org/id/metropolitan-district-council/leeds,Leeds City Council As Accountable Body,30/09/2018,Social Services Pooled Budgets,Leeds Community Equip Store Pooled Budgt,Supplies and Services,Other Equipment,203,14-Sep-2018,1809-00345,0.00,205.20,R,Aidapt Bathrooms Ltd,No
Http://opendatacommunities.org/id/metropolitan-district-council/leeds,Leeds City Council As Accountable Body,30/09/2018,Social Services Pooled Budgets,Leeds Community Equip Store Pooled Budgt,Supplies and Services,Other Equipment,203,28-Sep-2018,1809-00346,0.00,549.70,R,Aidapt Bathrooms Ltd,No
Http://opendatacommunities.org/id/metropolitan-district-council/leeds,Leeds City Council As Accountable Body,30/09/2018,Social Services Pooled Budgets,Leeds Community Equip Store Pooled Budgt,Supplies and Services,Other Equipment,203,28-Sep-2018,1809-00347,0.00,302.00,R,Aidapt Bathrooms Ltd,No
Http://opendatacommunities.org/id/metropolitan-district-council/leeds,Leeds City Council As Accountable Body,30/09/2018,Social Services Pooled Budgets,Leeds Community Equip Store Pooled Budgt,Supplies and Services,Other Equipment,203,28-Sep-2018,1809-00348,0.00,1274.50,R,Aidapt Bathrooms Ltd,No
Http://opendatacommunities.org/id/metropolitan-district-council/leeds,Leeds City Council As Accountable Body,30/09/2018,Social Services Pooled Budgets,Leeds Community Equip Store Pooled Budgt,Supplies and Services,Other Equipment,203,28-Sep-2018,1809-00349,0.00,547.60,R,Aidapt Bathrooms Ltd,No
Http://opendatacommunities.org/id/metropolitan-district-council/leeds,Leeds City Council,30/09/2018,Children and Families,Partnerships & Health,Supplies and Services,Teaching Materials,202,06-Sep-2018,1809-00350,0.00,136.00,R,Aim Project,No
Http://opendatacommunities.org/id/metropolitan-district-council/leeds,Leeds City Council,30/09/2018,Resources and Housing,Leeds Building Services,Supplies and Services,Operational Materials,205,03-Sep-2018,1809-00351,0.00,110.88,R,Air Conditioning Accessories,No
Http://opendatacommunities.org/id/metropolitan-district-council/leeds,Leeds City Council,30/09/2018,Resources and Housing,Leeds Building Services,Supplies and Services,Operational Materials,205,03-Sep-2018,1809-00352,0.00,46.09,R,Air Conditioning Accessories,No
Http://opendatacommunities.org/id/metropolitan-district-council/leeds,Leeds City Council,30/09/2018,Resources and Housing,Leeds Building Services,Supplies and Services,Operational Materials,205,07-Sep-2018,1809-00353,0.00,17.71,R,Air Conditioning Accessories,No
Http://opendatacommunities.org/id/metropolitan-district-council/leeds,Leeds City Council,30/09/2018,Resources and Housing,Leeds Building Services,Supplies and Services,Operational Materials,205,14-Sep-2018,1809-00354,0.00,2036.94,R,Air Conditioning Accessories,No
Http://opendatacommunities.org/id/metropolitan-district-council/leeds,Leeds City Council,30/09/2018,Resources and Housing,Leeds Building Services,Supplies and Services,Operational Materials,205,14-Sep-2018,1809-00355,0.00,1266.60,R,Air Conditioning Accessories,No
Http://opendatacommunities.org/id/metropolitan-district-council/leeds,Leeds City Council,30/09/2018,Resources and Housing,Leeds Building Services,Supplies and Services,Operational Materials,205,14-Sep-2018,1809-00356,0.00,59.49,R,Air Conditioning Accessories,No
Http://opendatacommunities.org/id/metropolitan-district-council/leeds,Leeds City Council,30/09/2018,Resources and Housing,Leeds Building Services,Supplies and Services,Operational Materials,205,14-Sep-2018,1809-00357,0.00,2633.00,R,Air Conditioning Accessories,No
Http://opendatacommunities.org/id/metropolitan-district-council/leeds,Leeds City Council,30/09/2018,Resources and Housing,Leeds Building Services,Supplies and Services,Operational Materials,205,14-Sep-2018,1809-00358,0.00,29.75,R,Air Conditioning Accessories,No
Http://opendatacommunities.org/id/metropolitan-district-council/leeds,Leeds City Council,30/09/2018,Resources and Housing,Leeds Building Services,Supplies and Services,Operational Materials,205,18-Sep-2018,1809-00359,0.00,80.00,R,Air Conditioning Accessories,No
Http://opendatacommunities.org/id/metropolitan-district-council/leeds,Leeds City Council,30/09/2018,Resources and Housing,Leeds Building Services,Supplies and Services,Operational Materials,205,18-Sep-2018,1809-00360,0.00,41.43,R,Air Conditioning Accessories,No
Http://opendatacommunities.org/id/metropolitan-district-council/leeds,Leeds City Council,30/09/2018,Resources and Housing,Leeds Building Services,Supplies and Services,Operational Materials,205,18-Sep-2018,1809-00361,0.00,737.52,R,Air Conditioning Accessories,No
Http://opendatacommunities.org/id/metropolitan-district-council/leeds,Leeds City Council,30/09/2018,Resources and Housing,Leeds Building Services,Supplies and Services,Operational Materials,205,18-Sep-2018,1809-00362,0.00,171.82,R,Air Conditioning Accessories,No
Http://opendatacommunities.org/id/metropolitan-district-council/leeds,Leeds City Council,30/09/2018,Resources and Housing,Leeds Building Services,Supplies and Services,Operational Materials,205,28-Sep-2018,1809-00363,0.00,381.73,R,Air Conditioning Accessories,No
Http://opendatacommunities.org/id/metropolitan-district-council/leeds,Leeds City Council,30/09/2018,Communities and Environment,Environmental Health,Supplies and Services,Other Hired And Contracted Services,265,06-Sep-2018,1809-00364,0.00,9.86,R,Air Liquide Uk,No
Http://opendatacommunities.org/id/metropolitan-district-council/leeds,Leeds City Council,30/09/2018,Communities and Environment,Environmental Health,Supplies and Services,Other Hired And Contracted Services,265,06-Sep-2018,1809-00365,0.00,9.86,R,Air Liquide Uk,No
Http://opendatacommunities.org/id/metropolitan-district-council/leeds,Leeds City Council,30/09/2018,Communities and Environment,Environmental Health,Supplies and Services,Other Hired And Contracted Services,265,06-Sep-2018,1809-00366,0.00,15.03,R,Air Liquide Uk,No
Http://opendatacommunities.org/id/metropolitan-district-council/leeds,Leeds City Council,30/09/2018,Communities and Environment,Environmental Health,Supplies and Services,Other Hired And Contracted Services,265,06-Sep-2018,1809-00367,0.00,69.02,R,Air Liquide Uk,No
Http://opendatacommunities.org/id/metropolitan-district-council/leeds,Leeds City Council,30/09/2018,Resources and Housing,Leeds Building Services,Supplies and Services,Operational Materials,205,28-Sep-2018,1809-00368,0.00,46.78,R,Air Liquide Uk,No
Http://opendatacommunities.org/id/metropolitan-district-council/leeds,Leeds City Council,30/09/2018,Resources and Housing,Leeds Building Services,Supplies and Services,Operational Materials,205,28-Sep-2018,1809-00369,0.00,12.00,R,Air Liquide Uk,No
Http://opendatacommunities.org/id/metropolitan-district-council/leeds,Leeds City Council,30/09/2018,City Development,Libraries  Arts & Heritage,Supplies and Services,Other Hired And Contracted Services,265,07-Sep-2018,1809-00370,0.00,144.76,R,Aire Valley Gas Ltd,No
Http://opendatacommunities.org/id/metropolitan-district-council/leeds,Leeds City Council,30/09/2018,Communities and Environment,Parks And Countryside  ,Supplies and Services,Operational Materials,205,31-Jul-2018,1809-00371,0.00,1895.00,R,Aire Valley Tree Servi,Yes
Http://opendatacommunities.org/id/metropolitan-district-council/leeds,Leeds City Council,30/09/2018,Communities and Environment,Parks and Countryside,Supplies and Services,Other Hired And Contracted Services,265,10-Sep-2018,1809-00372,0.00,475.00,R,Aire Valley Tree Services Ltd,No
Http://opendatacommunities.org/id/metropolitan-district-council/leeds,Leeds City Council,30/09/2018,Adults and Health,Services For Older People - 65 And Over,Third Party Payments,Residential Care Dementia,571,19-Sep-2018,1809-00373,0.00,64478.09,R,Aire View Residential Home,No
Http://opendatacommunities.org/id/metropolitan-district-council/leeds,Leeds City Council,30/09/2018,Adults and Health,Services For Older People - 65 And Over,Third Party Payments,Residential,580,19-Sep-2018,1809-00374,0.00,26726.92,R,Aire View Residential Home,No
Http://opendatacommunities.org/id/metropolitan-district-council/leeds,Leeds City Council,30/09/2018,Adults and Health,Services For Older People - 65 And Over,Third Party Payments,Residential Care Dementia,571,19-Sep-2018,1809-00375,0.00,4014.30,R,Airedale Care Home,No
Http://opendatacommunities.org/id/metropolitan-district-council/leeds,Leeds City Council,30/09/2018,Adults and Health,Services For Older People - 65 And Over,Third Party Payments,Residential,580,19-Sep-2018,1809-00376,0.00,11496.60,R,Airedale Care Home,No
Http://opendatacommunities.org/id/metropolitan-district-council/leeds,Leeds City Council,30/09/2018,Adults and Health,Assessment And Care Management,Employees,Training Costs,71,12-Sep-2018,1809-00377,0.00,120.00,R,Airedale Community Trading (Act) Ltd,No
Http://opendatacommunities.org/id/metropolitan-district-council/leeds,Leeds City Council,30/09/2018,Adults and Health,Assessment And Care Management,Employees,Training Costs,71,12-Sep-2018,1809-00378,0.00,120.00,R,Airedale Community Trading (Act) Ltd,No
Http://opendatacommunities.org/id/metropolitan-district-council/leeds,Leeds City Council,30/09/2018,Communities and Environment,Environmental Health,Supplies and Services,Other Hired And Contracted Services,265,27-Sep-2018,1809-00379,0.00,520.39,R,Aireworth Vets,No
Http://opendatacommunities.org/id/metropolitan-district-council/leeds,Leeds City Council,30/09/2018,Communities and Environment,Environmental Health,Supplies and Services,Other Hired And Contracted Services,265,27-Sep-2018,1809-00380,0.00,234.06,R,Aireworth Vets,No
Http://opendatacommunities.org/id/metropolitan-district-council/leeds,Leeds City Council,30/09/2018,Adults and Health,Services For Adults Under 65 Mental/Dis,Third Party Payments,Services Provided By Other NHS Bodies,522,05-Sep-2018,1809-00381,0.00,175.00,R,Ait Mitra Limited,No
Http://opendatacommunities.org/id/metropolitan-district-council/leeds,Leeds City Council,30/09/2018,Adults and Health,Services For Adults Under 65 Mental/Dis,Third Party Payments,Services Provided By Other NHS Bodies,522,05-Sep-2018,1809-00382,0.00,175.00,R,Ait Mitra Limited,No
Http://opendatacommunities.org/id/metropolitan-district-council/leeds,Leeds City Council,30/09/2018,Adults and Health,Services For Adults Under 65 Mental/Dis,Third Party Payments,Services Provided By Other NHS Bodies,522,05-Sep-2018,1809-00383,0.00,175.00,R,Ait Mitra Limited,No
Http://opendatacommunities.org/id/metropolitan-district-council/leeds,Leeds City Council,30/09/2018,Adults and Health,Services For Adults Under 65 Mental/Dis,Third Party Payments,Services Provided By Other NHS Bodies,522,05-Sep-2018,1809-00384,0.00,175.00,R,Ait Mitra Limited,No
Http://opendatacommunities.org/id/metropolitan-district-council/leeds,Leeds City Council,30/09/2018,Adults and Health,Services For Adults Under 65 Mental/Dis,Third Party Payments,Services Provided By Other NHS Bodies,522,05-Sep-2018,1809-00385,0.00,175.00,R,Ait Mitra Limited,No
Http://opendatacommunities.org/id/metropolitan-district-council/leeds,Leeds City Council,30/09/2018,Adults and Health,Services For Adults Under 65 Mental/Dis,Third Party Payments,Services Provided By Other NHS Bodies,522,05-Sep-2018,1809-00386,0.00,175.00,R,Ait Mitra Limited,No
Http://opendatacommunities.org/id/metropolitan-district-council/leeds,Leeds City Council,30/09/2018,Adults and Health,Services For Adults Under 65 Mental/Dis,Third Party Payments,Services Provided By Other NHS Bodies,522,05-Sep-2018,1809-00387,0.00,175.00,R,Ait Mitra Limited,No
Http://opendatacommunities.org/id/metropolitan-district-council/leeds,Leeds City Council,30/09/2018,Adults and Health,Services For Adults Under 65 Mental/Dis,Third Party Payments,Services Provided By Other NHS Bodies,522,05-Sep-2018,1809-00388,0.00,175.00,R,Ait Mitra Limited,No
Http://opendatacommunities.org/id/metropolitan-district-council/leeds,Leeds City Council,30/09/2018,Adults and Health,Services For Adults Under 65 Mental/Dis,Third Party Payments,Services Provided By Other NHS Bodies,522,05-Sep-2018,1809-00389,0.00,175.00,R,Ait Mitra Limited,No
Http://opendatacommunities.org/id/metropolitan-district-council/leeds,Leeds City Council,30/09/2018,Adults and Health,Services For Adults Under 65 Mental/Dis,Third Party Payments,Services Provided By Other NHS Bodies,522,05-Sep-2018,1809-00390,0.00,175.00,R,Ait Mitra Limited,No
Http://opendatacommunities.org/id/metropolitan-district-council/leeds,Leeds City Council,30/09/2018,Adults and Health,Services For Adults Under 65 Mental/Dis,Third Party Payments,Services Provided By Other NHS Bodies,522,05-Sep-2018,1809-00391,0.00,175.00,R,Ait Mitra Limited,No
Http://opendatacommunities.org/id/metropolitan-district-council/leeds,Leeds City Council,30/09/2018,Adults and Health,Services For Adults Under 65 Mental/Dis,Third Party Payments,Services Provided By Other NHS Bodies,522,05-Sep-2018,1809-00392,0.00,230.90,R,Ait Mitra Limited,No
Http://opendatacommunities.org/id/metropolitan-district-council/leeds,Leeds City Council As Accountable Body,30/09/2018,Social Services Pooled Budgets,Jcs For People With Learning Disabilitie,Third Party Payments,Residential,580,19-Sep-2018,1809-00393,0.00,6173.24,R,Aitch Care Homes,No
Http://opendatacommunities.org/id/metropolitan-district-council/leeds,Leeds City Council,30/09/2018,Communities and Environment,Parks and Countryside,Supplies and Services,Operational Materials,205,14-Sep-2018,1809-00394,0.00,798.00,R,Aitkens Sportsturf Ltd,No
Http://opendatacommunities.org/id/metropolitan-district-council/leeds,Leeds City Council,30/09/2018,City Development,Recreation,Supplies and Services,Operational Materials,205,19-Sep-2018,1809-00395,0.00,515.10,R,Aitkens Sportsturf Ltd,No
Http://opendatacommunities.org/id/metropolitan-district-council/leeds,Leeds City Council,30/09/2018,Communities and Environment,Parks and Countryside,Supplies and Services,Operational Materials,205,19-Sep-2018,1809-00396,0.00,286.20,R,Aitkens Sportsturf Ltd,No
Http://opendatacommunities.org/id/metropolitan-district-council/leeds,Leeds City Council,30/09/2018,Communities and Environment,Parks and Countryside,Supplies and Services,Operational Materials,205,28-Sep-2018,1809-00397,0.00,1494.00,R,Aitkens Sportsturf Ltd,No
Http://opendatacommunities.org/id/metropolitan-district-council/leeds,Leeds City Council,30/09/2018,Adults and Health,Services For Older People Under 65 P/Dis,Third Party Payments,Home Care,568,12-Sep-2018,1809-00398,0.00,16.59,R,Aj Community Care Ltd,No
Http://opendatacommunities.org/id/metropolitan-district-council/leeds,Leeds City Council,30/09/2018,Adults and Health,Services For Older People - 65 And Over,Third Party Payments,Home Care,568,20-Sep-2018,1809-00399,0.00,497.70,R,Aj Community Care Ltd,No
Http://opendatacommunities.org/id/metropolitan-district-council/leeds,Leeds City Council,30/09/2018,Adults and Health,Services For Older People - 65 And Over,Third Party Payments,Home Care,568,21-Sep-2018,1809-00400,0.00,4827.70,R,Aj Community Care Ltd,No
Http://opendatacommunities.org/id/metropolitan-district-council/leeds,Leeds City Council,30/09/2018,Adults and Health,Services For Older People Under 65 P/Dis,Third Party Payments,Home Care,568,21-Sep-2018,1809-00401,0.00,3168.69,R,Aj Community Care Ltd,No
Http://opendatacommunities.org/id/metropolitan-district-council/leeds,Leeds City Council,30/09/2018,Adults and Health,Services For Older People - 65 And Over,Third Party Payments,Home Care,568,21-Sep-2018,1809-00402,0.00,16856.80,R,Aj Community Care Ltd,No
Http://opendatacommunities.org/id/metropolitan-district-council/leeds,Leeds City Council,30/09/2018,Adults and Health,Services For Older People Under 65 P/Dis,Third Party Payments,Home Care,568,21-Sep-2018,1809-00403,0.00,7201.08,R,Aj Community Care Ltd,No
Http://opendatacommunities.org/id/metropolitan-district-council/leeds,Leeds City Council,30/09/2018,Adults and Health,Services For Older People - 65 And Over,Third Party Payments,Home Care,568,28-Sep-2018,1809-00404,0.00,11075.70,R,Aj Community Care Ltd,No
Http://opendatacommunities.org/id/metropolitan-district-council/leeds,Leeds City Council,30/09/2018,Resources and Housing,Leeds Building Services,Supplies and Services,Operational Furniture And Equipment,203,06-Sep-2018,1809-00405,0.00,95.00,R,Ajm Fixings & Power Tools Ltd,No
Http://opendatacommunities.org/id/metropolitan-district-council/leeds,Leeds City Council,30/09/2018,Resources and Housing,Leeds Building Services,Supplies and Services,Stores - Central And Other Depots,005,06-Sep-2018,1809-00406,0.00,377.00,R,Ajm Fixings & Power Tools Ltd,No
Http://opendatacommunities.org/id/metropolitan-district-council/leeds,Leeds City Council,30/09/2018,Resources and Housing,Leeds Building Services,Supplies and Services,Operational Furniture And Equipment,203,14-Sep-2018,1809-00407,0.00,2129.00,R,Ajm Fixings & Power Tools Ltd,No
Http://opendatacommunities.org/id/metropolitan-district-council/leeds,Leeds City Council,30/09/2018,Resources and Housing,Leeds Building Services,Supplies and Services,Operational Materials,205,14-Sep-2018,1809-00408,0.00,23.40,R,Ajm Fixings & Power Tools Ltd,No
Http://opendatacommunities.org/id/metropolitan-district-council/leeds,Leeds City Council,30/09/2018,Resources and Housing,Leeds Building Services,Supplies and Services,Operational Materials,205,25-Sep-2018,1809-00409,0.00,335.00,R,Ajm Fixings & Power Tools Ltd,No
Http://opendatacommunities.org/id/metropolitan-district-council/leeds,Leeds City Council,30/09/2018,Resources and Housing,Leeds Building Services,Supplies and Services,Stores - Central And Other Depots,005,25-Sep-2018,1809-00410,0.00,251.10,R,Ajm Fixings & Power Tools Ltd,No
Http://opendatacommunities.org/id/metropolitan-district-council/leeds,Leeds City Council,30/09/2018,Resources and Housing,Leeds Building Services,Supplies and Services,Operational Materials,205,25-Sep-2018,1809-00411,0.00,71.00,R,Ajm Fixings & Power Tools Ltd,No
Http://opendatacommunities.org/id/metropolitan-district-council/leeds,Leeds City Council,30/09/2018,Resources and Housing,Leeds Building Services,Supplies and Services,Operational Materials,205,25-Sep-2018,1809-00412,0.00,319.00,R,Ajm Fixings & Power Tools Ltd,No
Http://opendatacommunities.org/id/metropolitan-district-council/leeds,Leeds City Council,30/09/2018,Resources and Housing,Leeds Building Services,Supplies and Services,Operational Materials,205,25-Sep-2018,1809-00413,0.00,109.00,R,Ajm Fixings & Power Tools Ltd,No
Http://opendatacommunities.org/id/metropolitan-district-council/leeds,Leeds City Council,30/09/2018,Resources and Housing,Leeds Building Services,Supplies and Services,Stores - Central And Other Depots,005,26-Sep-2018,1809-00414,0.00,510.00,R,Ajm Fixings & Power Tools Ltd,No
Http://opendatacommunities.org/id/metropolitan-district-council/leeds,Leeds City Council,30/09/2018,Resources and Housing,Leeds Building Services,Supplies and Services,Operational Furniture And Equipment,203,26-Sep-2018,1809-00415,0.00,384.42,R,Ajm Fixings & Power Tools Ltd,No
Http://opendatacommunities.org/id/metropolitan-district-council/leeds,Leeds City Council,30/09/2018,Resources and Housing,Leeds Building Services,Supplies and Services,Operational Furniture And Equipment,203,28-Sep-2018,1809-00416,0.00,5754.37,R,Ajm Fixings & Power Tools Ltd,No
Http://opendatacommunities.org/id/metropolitan-district-council/leeds,Leeds City Council,30/09/2018,Children and Families,Social Care,Supplies and Services,General Amenity For Clients/Residents,285,03-Sep-2018,1809-00417,0.00,103.00,R,REDACTED PERSONAL DATA,No
Http://opendatacommunities.org/id/metropolitan-district-council/leeds,Leeds City Council,30/09/2018,Children and Families,Social Care,Transport,Public Transport Expenses,310,03-Sep-2018,1809-00418,0.00,78.40,R,REDACTED PERSONAL DATA,No
Http://opendatacommunities.org/id/metropolitan-district-council/leeds,Leeds City Council,30/09/2018,Children and Families,Social Care,Supplies and Services,General Amenity For Clients/Residents,285,10-Sep-2018,1809-00419,0.00,39.00,R,REDACTED PERSONAL DATA,No
Http://opendatacommunities.org/id/metropolitan-district-council/leeds,Leeds City Council,30/09/2018,Children and Families,Social Care,Transport,Public Transport Expenses,310,10-Sep-2018,1809-00420,0.00,32.00,R,REDACTED PERSONAL DATA,No
Http://opendatacommunities.org/id/metropolitan-district-council/leeds,Leeds City Council,30/09/2018,City Development,Libraries  Arts & Heritage,Supplies and Services,Non-Recurring Grants,227,05-Sep-2018,1809-00421,0.00,1000.00,R,REDACTED PERSONAL DATA,No
Http://opendatacommunities.org/id/metropolitan-district-council/leeds,Leeds City Council,30/09/2018,Adults and Health,Services For Older People - 65 And Over,Third Party Payments,Payments To Voluntary Organisations,561,28-Sep-2018,1809-00422,0.00,3000.00,R,Al Khidmat Centre,No
Http://opendatacommunities.org/id/metropolitan-district-council/leeds,Leeds City Council,30/09/2018,City Development,Libraries  Arts & Heritage,Supplies and Services,Non-Recurring Grants,227,26-Sep-2018,1809-00423,0.00,10000.00,R,Alan Lyddiard,No
Http://opendatacommunities.org/id/metropolitan-district-council/leeds,Leeds City Council,30/09/2018,Children and Families,Social Care  ,Transfer Payments,Leaving Care Allowances,634,10-Aug-2018,1809-00424,0.00,6.00,R,Albaba,Yes
Http://opendatacommunities.org/id/metropolitan-district-council/leeds,Leeds City Council,30/09/2018,Adults and Health,Services For Older People - 65 And Over,Third Party Payments,Residential Care Dementia,571,19-Sep-2018,1809-00425,0.00,1088.80,R,Albemarle,No
Http://opendatacommunities.org/id/metropolitan-district-council/leeds,Leeds City Council,30/09/2018,Children and Families,Social Care  ,Supplies and Services,Food & Drink,231,06-Aug-2018,1809-00426,0.00,43.51,R,Aldi,Yes
Http://opendatacommunities.org/id/metropolitan-district-council/leeds,Leeds City Council,30/09/2018,Children and Families,Social Care  ,Premises,Cleaning Maintenance & Toiletries,127,14-Aug-2018,1809-00427,0.00,5.23,R,Aldi,Yes
Http://opendatacommunities.org/id/metropolitan-district-council/leeds,Leeds City Council,30/09/2018,Children and Families,Social Care  ,Supplies and Services,Food & Drink,231,14-Aug-2018,1809-00428,0.00,39.63,R,Aldi,Yes
Http://opendatacommunities.org/id/metropolitan-district-council/leeds,Leeds City Council,30/09/2018,Children and Families,Social Care  ,Premises,Cleaning Maintenance & Toiletries,127,30-Aug-2018,1809-00429,0.00,5.69,R,Aldi,Yes
Http://opendatacommunities.org/id/metropolitan-district-council/leeds,Leeds City Council,30/09/2018,Children and Families,Social Care  ,Supplies and Services,Food & Drink,231,30-Aug-2018,1809-00430,0.00,52.12,R,Aldi,Yes
Http://opendatacommunities.org/id/metropolitan-district-council/leeds,Leeds City Council,30/09/2018,Children and Families,Social Care  ,Transfer Payments,Leaving Care Allowances,634,15-Aug-2018,1809-00431,0.00,5.00,R,Aldi 40 779,Yes
Http://opendatacommunities.org/id/metropolitan-district-council/leeds,Leeds City Council,30/09/2018,Children and Families,Social Care  ,Third Party Payments,Placement Support,550,07-Aug-2018,1809-00432,0.00,5.21,R,Aldi 49 779,Yes
Http://opendatacommunities.org/id/metropolitan-district-council/leeds,Leeds City Council,30/09/2018,Resources and Housing,Strategic Housing Partnership & Support  ,Supplies and Services,Other Hired And Contracted Services,265,29-Aug-2018,1809-00433,0.00,8.77,R,Aldi 49 779,Yes
Http://opendatacommunities.org/id/metropolitan-district-council/leeds,Leeds City Council,30/09/2018,Children and Families,Social Care  ,Transfer Payments,Leaving Care Allowances,634,30-Aug-2018,1809-00434,0.00,17.37,R,Aldi 71 779,Yes
Http://opendatacommunities.org/id/metropolitan-district-council/leeds,Leeds City Council,30/09/2018,City Development,Libraries  Arts & Heritage  ,Supplies and Services,Food & Drink,231,01-Aug-2018,1809-00435,0.00,5.72,R,Aldi 88 779,Yes
Http://opendatacommunities.org/id/metropolitan-district-council/leeds,Leeds City Council,30/09/2018,Strategic Landlord,Housing Management  ,Supplies and Services,Grants To Voluntary Organisations,293,01-Aug-2018,1809-00436,0.00,22.91,R,Aldi 88 779,Yes
Http://opendatacommunities.org/id/metropolitan-district-council/leeds,Leeds City Council,30/09/2018,Children and Families,Social Care  ,Supplies and Services,Food & Drink,231,07-Aug-2018,1809-00437,0.00,24.67,R,Aldi 88 779,Yes
Http://opendatacommunities.org/id/metropolitan-district-council/leeds,Leeds City Council,30/09/2018,Children and Families,Social Care  ,Supplies and Services,Food & Drink,231,13-Aug-2018,1809-00438,0.00,116.78,R,Aldi 88 779,Yes
Http://opendatacommunities.org/id/metropolitan-district-council/leeds,Leeds City Council,30/09/2018,Children and Families,Social Care  ,Supplies and Services,Food & Drink,231,29-Aug-2018,1809-00439,0.00,11.66,R,Aldi 88 779,Yes
Http://opendatacommunities.org/id/metropolitan-district-council/leeds,Leeds City Council,30/09/2018,Children and Families,Social Care  ,Supplies and Services,Food & Drink,231,04-Aug-2018,1809-00440,0.00,12.57,R,Aldi Stores,Yes
Http://opendatacommunities.org/id/metropolitan-district-council/leeds,Leeds City Council,30/09/2018,Resources and Housing,Strategic Housing Partnership & Support  ,Supplies and Services,Food & Drink,231,13-Aug-2018,1809-00441,0.00,20.97,R,Aldi Stores,Yes
Http://opendatacommunities.org/id/metropolitan-district-council/leeds,Leeds City Council,30/09/2018,Communities and Environment,Customer Access,Supplies and Services,Other Hired And Contracted Services,265,04-Sep-2018,1809-00442,0.00,157.50,R,Alena Zueva,No
Http://opendatacommunities.org/id/metropolitan-district-council/leeds,Leeds City Council,30/09/2018,Children and Families,Social Care,Support Services,Legal Disbursements,411,07-Sep-2018,1809-00443,0.00,131.75,R,Alere Toxicology Plc,No
Http://opendatacommunities.org/id/metropolitan-district-council/leeds,Leeds City Council,30/09/2018,Children and Families,Social Care,Support Services,Legal Disbursements,411,07-Sep-2018,1809-00444,0.00,131.75,R,Alere Toxicology Plc,No
Http://opendatacommunities.org/id/metropolitan-district-council/leeds,Leeds City Council,30/09/2018,Children and Families,Social Care,Support Services,Legal Disbursements,411,18-Sep-2018,1809-00445,0.00,131.75,R,Alere Toxicology Plc,No
Http://opendatacommunities.org/id/metropolitan-district-council/leeds,Leeds City Council,30/09/2018,Children and Families,Social Care,Third Party Payments,Allowances,546,07-Sep-2018,1809-00446,0.00,100.00,R,REDACTED PERSONAL DATA,No
Http://opendatacommunities.org/id/metropolitan-district-council/leeds,Leeds City Council,30/09/2018,Children and Families,Social Care,Support Services,Legal Disbursements,411,03-Sep-2018,1809-00447,0.00,361.00,R,Alex Taylor,No
Http://opendatacommunities.org/id/metropolitan-district-council/leeds,Leeds City Council,30/09/2018,Resources and Housing,Commercial Services,Supplies and Services,Other Hired And Contracted Services,265,06-Sep-2018,1809-00448,0.00,565.00,R,Alex Wagg,No
Http://opendatacommunities.org/id/metropolitan-district-council/leeds,Leeds City Council,30/09/2018,Resources and Housing,Commercial Services,Supplies and Services,Other Hired And Contracted Services,265,06-Sep-2018,1809-00449,0.00,300.00,R,Alex Wagg,No
Http://opendatacommunities.org/id/metropolitan-district-council/leeds,Leeds City Council,30/09/2018,Resources and Housing,Commercial Services,Supplies and Services,Other Hired And Contracted Services,265,13-Sep-2018,1809-00450,0.00,210.00,R,Alex Wagg,No
Http://opendatacommunities.org/id/metropolitan-district-council/leeds,Leeds City Council,30/09/2018,Resources and Housing,Commercial Services,Supplies and Services,Other Hired And Contracted Services,265,13-Sep-2018,1809-00451,0.00,60.00,R,Alex Wagg,No
Http://opendatacommunities.org/id/metropolitan-district-council/leeds,Leeds City Council,30/09/2018,Resources and Housing,Commercial Services,Transport,Vehicle Spares,345,13-Sep-2018,1809-00452,0.00,126.00,R,Alex Wagg,No
Http://opendatacommunities.org/id/metropolitan-district-council/leeds,Leeds City Council,30/09/2018,Resources and Housing,Commercial Services,Transport,Vehicle Spares,345,13-Sep-2018,1809-00453,0.00,380.00,R,Alex Wagg,No
Http://opendatacommunities.org/id/metropolitan-district-council/leeds,Leeds City Council,30/09/2018,Resources and Housing,Commercial Services,Supplies and Services,Other Hired And Contracted Services,265,13-Sep-2018,1809-00454,0.00,80.00,R,Alex Wagg,No
Http://opendatacommunities.org/id/metropolitan-district-council/leeds,Leeds City Council,30/09/2018,Resources and Housing,Commercial Services,Supplies and Services,Other Hired And Contracted Services,265,13-Sep-2018,1809-00455,0.00,585.00,R,Alex Wagg,No
Http://opendatacommunities.org/id/metropolitan-district-council/leeds,Leeds City Council,30/09/2018,Resources and Housing,Commercial Services,Supplies and Services,Other Hired And Contracted Services,265,13-Sep-2018,1809-00456,0.00,260.00,R,Alex Wagg,No
Http://opendatacommunities.org/id/metropolitan-district-council/leeds,Leeds City Council,30/09/2018,Resources and Housing,Commercial Services,Supplies and Services,Other Hired And Contracted Services,265,20-Sep-2018,1809-00457,0.00,310.00,R,Alex Wagg,No
Http://opendatacommunities.org/id/metropolitan-district-council/leeds,Leeds City Council,30/09/2018,Children and Families,Social Care,Supplies and Services,Insurance Claims,248,27-Sep-2018,1809-00458,0.00,100.00,R,REDACTED PERSONAL DATA,No
Http://opendatacommunities.org/id/metropolitan-district-council/leeds,Leeds City Council,30/09/2018,Insurance,Insurance,Supplies and Services,Insurance Claims,248,27-Sep-2018,1809-00459,0.00,0.00,R,REDACTED PERSONAL DATA,No
Http://opendatacommunities.org/id/metropolitan-district-council/leeds,Leeds City Council,30/09/2018,Adults and Health,Services For Older People - 65 And Over,Third Party Payments,Residential Care Dementia,571,19-Sep-2018,1809-00460,0.00,19343.68,R,Alexander Residential Home,No
Http://opendatacommunities.org/id/metropolitan-district-council/leeds,Leeds City Council,30/09/2018,Adults and Health,Services For Older People - 65 And Over,Third Party Payments,Residential,580,19-Sep-2018,1809-00461,0.00,33797.36,R,Alexander Residential Home,No
Http://opendatacommunities.org/id/metropolitan-district-council/leeds,Leeds City Council,30/09/2018,Adults and Health,Services For Older People - 65 And Over,Third Party Payments,Residential,580,19-Sep-2018,1809-00462,0.00,13518.50,R,Alexandra Court,No
Http://opendatacommunities.org/id/metropolitan-district-council/leeds,Leeds City Council,30/09/2018,Adults and Health,Assessment And Care Management,Supplies and Services,Other Hired And Contracted Services,265,13-Sep-2018,1809-00463,0.00,585.65,R,Alexandra Court Residential Home,No
Http://opendatacommunities.org/id/metropolitan-district-council/leeds,Leeds City Council,30/09/2018,City Development,Libraries  Arts & Heritage,Supplies and Services,Other Hired And Contracted Services,265,20-Sep-2018,1809-00464,0.00,300.00,R,Alexandra George,No
Http://opendatacommunities.org/id/metropolitan-district-council/leeds,Leeds City Council,30/09/2018,Communities and Environment,Customer Access,Supplies and Services,Other Hired And Contracted Services,265,04-Sep-2018,1809-00465,0.00,40.75,R,Alexandra Hirst,No
Http://opendatacommunities.org/id/metropolitan-district-council/leeds,Leeds City Council,30/09/2018,Resources and Housing,Strategic Housing Partnership & Support,Supplies and Services,Other Hired And Contracted Services,265,26-Sep-2018,1809-00466,0.00,75.00,R,REDACTED PERSONAL DATA,No
Http://opendatacommunities.org/id/metropolitan-district-council/leeds,Leeds City Council,30/09/2018,Resources and Housing,Leeds Building Services,Supplies and Services,Other Hired And Contracted Services,265,05-Sep-2018,1809-00467,0.00,17764.21,R,Alfred Bagnall & Sons (Leeds) Ltd,No
Http://opendatacommunities.org/id/metropolitan-district-council/leeds,Leeds City Council,30/09/2018,Adults and Health,Services For Older People - 65 And Over,Supplies and Services,Operational Furniture And Equipment,203,05-Sep-2018,1809-00468,0.00,16580.00,R,Alfred Bagnall & Sons (Leeds) Ltd,No
Http://opendatacommunities.org/id/metropolitan-district-council/leeds,Leeds City Council,30/09/2018,City Development,Libraries  Arts & Heritage,Supplies and Services,Operational Materials,205,05-Sep-2018,1809-00469,0.00,3000.00,R,Alfred Bagnall & Sons (Leeds) Ltd,No
Http://opendatacommunities.org/id/metropolitan-district-council/leeds,Leeds City Council,30/09/2018,Resources and Housing,Corporate Property Management,Capital,Construction,3,06-Sep-2018,1809-00470,0.00,3297.00,C,Alfred Bagnall & Sons (Leeds) Ltd,No
Http://opendatacommunities.org/id/metropolitan-district-council/leeds,Leeds City Council,30/09/2018,Resources and Housing,Leeds Building Services,Supplies and Services,Other Hired And Contracted Services,265,14-Sep-2018,1809-00471,0.00,720.00,R,Alfred Bagnall & Sons (Leeds) Ltd,No
Http://opendatacommunities.org/id/metropolitan-district-council/leeds,Leeds City Council,30/09/2018,Resources and Housing,Leeds Building Services,Supplies and Services,Other Hired And Contracted Services,265,14-Sep-2018,1809-00472,0.00,1876.00,R,Alfred Bagnall & Sons (Leeds) Ltd,No
Http://opendatacommunities.org/id/metropolitan-district-council/leeds,Leeds City Council,30/09/2018,Resources and Housing,Leeds Building Services,Supplies and Services,Other Hired And Contracted Services,265,14-Sep-2018,1809-00473,0.00,1966.00,R,Alfred Bagnall & Sons (Leeds) Ltd,No
Http://opendatacommunities.org/id/metropolitan-district-council/leeds,Leeds City Council,30/09/2018,Resources and Housing,Leeds Building Services,Supplies and Services,Other Hired And Contracted Services,265,14-Sep-2018,1809-00474,0.00,5269.00,R,Alfred Bagnall & Sons (Leeds) Ltd,No
Http://opendatacommunities.org/id/metropolitan-district-council/leeds,Leeds City Council,30/09/2018,Resources and Housing,Leeds Building Services,Supplies and Services,Other Hired And Contracted Services,265,14-Sep-2018,1809-00475,0.00,9009.90,R,Alfred Bagnall & Sons (Leeds) Ltd,No
Http://opendatacommunities.org/id/metropolitan-district-council/leeds,Leeds City Council,30/09/2018,Resources and Housing,Leeds Building Services,Supplies and Services,Other Hired And Contracted Services,265,14-Sep-2018,1809-00476,0.00,5516.00,R,Alfred Bagnall & Sons (Leeds) Ltd,No
Http://opendatacommunities.org/id/metropolitan-district-council/leeds,Leeds City Council,30/09/2018,Resources and Housing,Leeds Building Services,Supplies and Services,Other Hired And Contracted Services,265,14-Sep-2018,1809-00477,0.00,350.00,R,Alfred Bagnall & Sons (Leeds) Ltd,No
Http://opendatacommunities.org/id/metropolitan-district-council/leeds,Leeds City Council,30/09/2018,Resources and Housing,Leeds Building Services,Supplies and Services,Other Hired And Contracted Services,265,14-Sep-2018,1809-00478,0.00,384.00,R,Alfred Bagnall & Sons (Leeds) Ltd,No
Http://opendatacommunities.org/id/metropolitan-district-council/leeds,Leeds City Council,30/09/2018,Resources and Housing,Leeds Building Services,Supplies and Services,Other Hired And Contracted Services,265,14-Sep-2018,1809-00479,0.00,2043.18,R,Alfred Bagnall & Sons (Leeds) Ltd,No
Http://opendatacommunities.org/id/metropolitan-district-council/leeds,Leeds City Council,30/09/2018,Resources and Housing,Leeds Building Services,Supplies and Services,Other Hired And Contracted Services,265,14-Sep-2018,1809-00480,0.00,3165.00,R,Alfred Bagnall & Sons (Leeds) Ltd,No
Http://opendatacommunities.org/id/metropolitan-district-council/leeds,Leeds City Council,30/09/2018,Resources and Housing,Leeds Building Services,Supplies and Services,Other Hired And Contracted Services,265,14-Sep-2018,1809-00481,0.00,5020.00,R,Alfred Bagnall & Sons (Leeds) Ltd,No
Http://opendatacommunities.org/id/metropolitan-district-council/leeds,Leeds City Council,30/09/2018,Resources and Housing,Leeds Building Services,Supplies and Services,Other Hired And Contracted Services,265,14-Sep-2018,1809-00482,0.00,2232.00,R,Alfred Bagnall & Sons (Leeds) Ltd,No
Http://opendatacommunities.org/id/metropolitan-district-council/leeds,Leeds City Council,30/09/2018,Resources and Housing,Leeds Building Services,Supplies and Services,Other Hired And Contracted Services,265,28-Sep-2018,1809-00483,0.00,800.00,R,Alfred Bagnall & Sons (Leeds) Ltd,No
Http://opendatacommunities.org/id/metropolitan-district-council/leeds,Leeds City Council,30/09/2018,Resources and Housing,Leeds Building Services,Supplies and Services,Other Hired And Contracted Services,265,28-Sep-2018,1809-00484,0.00,800.00,R,Alfred Bagnall & Sons (Leeds) Ltd,No
Http://opendatacommunities.org/id/metropolitan-district-council/leeds,Leeds City Council,30/09/2018,Resources and Housing,Leeds Building Services,Supplies and Services,Other Hired And Contracted Services,265,28-Sep-2018,1809-00485,0.00,800.00,R,Alfred Bagnall & Sons (Leeds) Ltd,No
Http://opendatacommunities.org/id/metropolitan-district-council/leeds,Leeds City Council,30/09/2018,Resources and Housing,Leeds Building Services,Supplies and Services,Other Hired And Contracted Services,265,28-Sep-2018,1809-00486,0.00,300.00,R,Alfred Bagnall & Sons (Leeds) Ltd,No
Http://opendatacommunities.org/id/metropolitan-district-council/leeds,Leeds City Council,30/09/2018,Resources and Housing,Leeds Building Services,Supplies and Services,Other Hired And Contracted Services,265,28-Sep-2018,1809-00487,0.00,400.00,R,Alfred Bagnall & Sons (Leeds) Ltd,No
Http://opendatacommunities.org/id/metropolitan-district-council/leeds,Leeds City Council,30/09/2018,Resources and Housing,Leeds Building Services,Supplies and Services,Other Hired And Contracted Services,265,28-Sep-2018,1809-00488,0.00,400.00,R,Alfred Bagnall & Sons (Leeds) Ltd,No
Http://opendatacommunities.org/id/metropolitan-district-council/leeds,Leeds City Council,30/09/2018,Resources and Housing,Leeds Building Services,Supplies and Services,Other Hired And Contracted Services,265,28-Sep-2018,1809-00489,0.00,1200.00,R,Alfred Bagnall & Sons (Leeds) Ltd,No
Http://opendatacommunities.org/id/metropolitan-district-council/leeds,Leeds City Council,30/09/2018,Resources and Housing,Leeds Building Services,Supplies and Services,Other Hired And Contracted Services,265,28-Sep-2018,1809-00490,0.00,400.00,R,Alfred Bagnall & Sons (Leeds) Ltd,No
Http://opendatacommunities.org/id/metropolitan-district-council/leeds,Leeds City Council,30/09/2018,Resources and Housing,Leeds Building Services,Supplies and Services,Other Hired And Contracted Services,265,28-Sep-2018,1809-00491,0.00,300.00,R,Alfred Bagnall & Sons (Leeds) Ltd,No
Http://opendatacommunities.org/id/metropolitan-district-council/leeds,Leeds City Council,30/09/2018,Resources and Housing,Leeds Building Services,Supplies and Services,Other Hired And Contracted Services,265,28-Sep-2018,1809-00492,0.00,200.00,R,Alfred Bagnall & Sons (Leeds) Ltd,No
Http://opendatacommunities.org/id/metropolitan-district-council/leeds,Leeds City Council,30/09/2018,Resources and Housing,Leeds Building Services,Supplies and Services,Other Hired And Contracted Services,265,28-Sep-2018,1809-00493,0.00,200.00,R,Alfred Bagnall & Sons (Leeds) Ltd,No
Http://opendatacommunities.org/id/metropolitan-district-council/leeds,Leeds City Council,30/09/2018,Resources and Housing,Leeds Building Services,Supplies and Services,Other Hired And Contracted Services,265,28-Sep-2018,1809-00494,0.00,200.00,R,Alfred Bagnall & Sons (Leeds) Ltd,No
Http://opendatacommunities.org/id/metropolitan-district-council/leeds,Leeds City Council,30/09/2018,City Development,Libraries  Arts & Heritage,Supplies and Services,Other Hired And Contracted Services,265,28-Sep-2018,1809-00495,0.00,764.00,R,Alfred Bagnall & Sons (Leeds) Ltd,No
Http://opendatacommunities.org/id/metropolitan-district-council/leeds,Leeds City Council,30/09/2018,Adults and Health,Services For Older People - 65 And Over,Supplies and Services,Operational Furniture And Equipment,203,28-Sep-2018,1809-00496,0.00,718.00,R,Alfred Bagnall & Sons (Leeds) Ltd,No
Http://opendatacommunities.org/id/metropolitan-district-council/leeds,Leeds City Council,30/09/2018,City Development,Libraries  Arts & Heritage,Supplies and Services,Other Hired And Contracted Services,265,28-Sep-2018,1809-00497,0.00,10667.00,R,Alfred Bagnall & Sons (Leeds) Ltd,No
Http://opendatacommunities.org/id/metropolitan-district-council/leeds,Leeds City Council,30/09/2018,Resources and Housing,Leeds Building Services,Supplies and Services,Other Hired And Contracted Services,265,28-Sep-2018,1809-00498,0.00,1160.00,R,Alfred Bagnall & Sons (Leeds) Ltd,No
Http://opendatacommunities.org/id/metropolitan-district-council/leeds,Leeds City Council,30/09/2018,Resources and Housing,Leeds Building Services,Supplies and Services,Other Hired And Contracted Services,265,28-Sep-2018,1809-00499,0.00,400.00,R,Alfred Bagnall & Sons (Leeds) Ltd,No
Http://opendatacommunities.org/id/metropolitan-district-council/leeds,Leeds City Council,30/09/2018,Resources and Housing,Leeds Building Services,Supplies and Services,Other Hired And Contracted Services,265,28-Sep-2018,1809-00500,0.00,800.00,R,Alfred Bagnall & Sons (Leeds) Ltd,No
Http://opendatacommunities.org/id/metropolitan-district-council/leeds,Leeds City Council,30/09/2018,Resources and Housing,Leeds Building Services,Supplies and Services,Other Hired And Contracted Services,265,28-Sep-2018,1809-00501,0.00,300.00,R,Alfred Bagnall & Sons (Leeds) Ltd,No
Http://opendatacommunities.org/id/metropolitan-district-council/leeds,Leeds City Council,30/09/2018,Resources and Housing,Leeds Building Services,Supplies and Services,Other Hired And Contracted Services,265,28-Sep-2018,1809-00502,0.00,800.00,R,Alfred Bagnall & Sons (Leeds) Ltd,No
Http://opendatacommunities.org/id/metropolitan-district-council/leeds,Leeds City Council,30/09/2018,Resources and Housing,Leeds Building Services,Supplies and Services,Other Hired And Contracted Services,265,28-Sep-2018,1809-00503,0.00,600.00,R,Alfred Bagnall & Sons (Leeds) Ltd,No
Http://opendatacommunities.org/id/metropolitan-district-council/leeds,Leeds City Council,30/09/2018,Resources and Housing,Leeds Building Services,Supplies and Services,Other Hired And Contracted Services,265,28-Sep-2018,1809-00504,0.00,800.00,R,Alfred Bagnall & Sons (Leeds) Ltd,No
Http://opendatacommunities.org/id/metropolitan-district-council/leeds,Leeds City Council,30/09/2018,Resources and Housing,Leeds Building Services,Supplies and Services,Other Hired And Contracted Services,265,28-Sep-2018,1809-00505,0.00,400.00,R,Alfred Bagnall & Sons (Leeds) Ltd,No
Http://opendatacommunities.org/id/metropolitan-district-council/leeds,Leeds City Council,30/09/2018,Resources and Housing,Leeds Building Services,Supplies and Services,Other Hired And Contracted Services,265,28-Sep-2018,1809-00506,0.00,600.00,R,Alfred Bagnall & Sons (Leeds) Ltd,No
Http://opendatacommunities.org/id/metropolitan-district-council/leeds,Leeds City Council,30/09/2018,Resources and Housing,Leeds Building Services,Supplies and Services,Other Hired And Contracted Services,265,28-Sep-2018,1809-00507,0.00,600.00,R,Alfred Bagnall & Sons (Leeds) Ltd,No
Http://opendatacommunities.org/id/metropolitan-district-council/leeds,Leeds City Council,30/09/2018,Resources and Housing,Leeds Building Services,Supplies and Services,Other Hired And Contracted Services,265,28-Sep-2018,1809-00508,0.00,800.00,R,Alfred Bagnall & Sons (Leeds) Ltd,No
Http://opendatacommunities.org/id/metropolitan-district-council/leeds,Leeds City Council,30/09/2018,Resources and Housing,Leeds Building Services,Supplies and Services,Other Hired And Contracted Services,265,28-Sep-2018,1809-00509,0.00,200.00,R,Alfred Bagnall & Sons (Leeds) Ltd,No
Http://opendatacommunities.org/id/metropolitan-district-council/leeds,Leeds City Council,30/09/2018,Resources and Housing,Leeds Building Services,Supplies and Services,Other Hired And Contracted Services,265,28-Sep-2018,1809-00510,0.00,800.00,R,Alfred Bagnall & Sons (Leeds) Ltd,No
Http://opendatacommunities.org/id/metropolitan-district-council/leeds,Leeds City Council,30/09/2018,Resources and Housing,Leeds Building Services,Supplies and Services,Other Hired And Contracted Services,265,28-Sep-2018,1809-00511,0.00,1200.00,R,Alfred Bagnall & Sons (Leeds) Ltd,No
Http://opendatacommunities.org/id/metropolitan-district-council/leeds,Leeds City Council,30/09/2018,Communities and Environment,Customer Access,Supplies and Services,Other Hired And Contracted Services,265,04-Sep-2018,1809-00512,0.00,427.25,R,Ali Pourakaberian,No
Http://opendatacommunities.org/id/metropolitan-district-council/leeds,Leeds City Council,30/09/2018,Children and Families,Partnerships & Health,Employees,Training & Development,70,14-Sep-2018,1809-00513,0.00,1416.64,R,REDACTED PERSONAL DATA,No
Http://opendatacommunities.org/id/metropolitan-district-council/leeds,Leeds City Council,30/09/2018,Children and Families,Social Care,Third Party Payments,Services Rendered By Other Organisations,511,19-Sep-2018,1809-00514,0.00,267.75,R,REDACTED PERSONAL DATA,No
Http://opendatacommunities.org/id/metropolitan-district-council/leeds,Leeds City Council,30/09/2018,Children and Families,Social Care,Third Party Payments,Services Rendered By Other Organisations,511,19-Sep-2018,1809-00515,0.00,267.75,R,REDACTED PERSONAL DATA,No
Http://opendatacommunities.org/id/metropolitan-district-council/leeds,Leeds City Council,30/09/2018,City Development,Libraries  Arts & Heritage,Supplies and Services,Bought In Professional Services,277,14-Sep-2018,1809-00516,0.00,150.00,R,Alison Mcintyre,No
Http://opendatacommunities.org/id/metropolitan-district-council/leeds,Leeds City Council,30/09/2018,Insurance,Insurance,Supplies and Services,Insurance Claims,248,24-Sep-2018,1809-00517,0.00,100.00,R,REDACTED PERSONAL DATA,No
Http://opendatacommunities.org/id/metropolitan-district-council/leeds,Leeds City Council,30/09/2018,Communities and Environment,Communities,Supplies and Services,Other Hired And Contracted Services,265,13-Sep-2018,1809-00518,0.00,300.00,R,REDACTED PERSONAL DATA,No
Http://opendatacommunities.org/id/metropolitan-district-council/leeds,Leeds City Council,30/09/2018,Resources and Housing,Leeds Building Services,Supplies and Services,Other Hired And Contracted Services,265,05-Sep-2018,1809-00519,0.00,195.00,R,All Clear Solutions Ltd,No
Http://opendatacommunities.org/id/metropolitan-district-council/leeds,Leeds City Council,30/09/2018,Resources and Housing,Leeds Building Services,Supplies and Services,Other Hired And Contracted Services,265,05-Sep-2018,1809-00520,0.00,195.00,R,All Clear Solutions Ltd,No
Http://opendatacommunities.org/id/metropolitan-district-council/leeds,Leeds City Council,30/09/2018,Resources and Housing,Leeds Building Services,Supplies and Services,Other Hired And Contracted Services,265,05-Sep-2018,1809-00521,0.00,195.00,R,All Clear Solutions Ltd,No
Http://opendatacommunities.org/id/metropolitan-district-council/leeds,Leeds City Council,30/09/2018,Resources and Housing,Leeds Building Services,Supplies and Services,Other Hired And Contracted Services,265,07-Sep-2018,1809-00522,0.00,390.00,R,All Clear Solutions Ltd,No
Http://opendatacommunities.org/id/metropolitan-district-council/leeds,Leeds City Council,30/09/2018,Resources and Housing,Leeds Building Services,Supplies and Services,Other Hired And Contracted Services,265,07-Sep-2018,1809-00523,0.00,545.00,R,All Clear Solutions Ltd,No
Http://opendatacommunities.org/id/metropolitan-district-council/leeds,Leeds City Council,30/09/2018,Resources and Housing,Leeds Building Services,Supplies and Services,Other Hired And Contracted Services,265,07-Sep-2018,1809-00524,0.00,195.00,R,All Clear Solutions Ltd,No
Http://opendatacommunities.org/id/metropolitan-district-council/leeds,Leeds City Council,30/09/2018,Resources and Housing,Leeds Building Services,Supplies and Services,Other Hired And Contracted Services,265,07-Sep-2018,1809-00525,0.00,195.00,R,All Clear Solutions Ltd,No
Http://opendatacommunities.org/id/metropolitan-district-council/leeds,Leeds City Council,30/09/2018,Resources and Housing,Leeds Building Services,Supplies and Services,Other Hired And Contracted Services,265,07-Sep-2018,1809-00526,0.00,195.00,R,All Clear Solutions Ltd,No
Http://opendatacommunities.org/id/metropolitan-district-council/leeds,Leeds City Council,30/09/2018,Resources and Housing,Leeds Building Services,Supplies and Services,Other Hired And Contracted Services,265,07-Sep-2018,1809-00527,0.00,195.00,R,All Clear Solutions Ltd,No
Http://opendatacommunities.org/id/metropolitan-district-council/leeds,Leeds City Council,30/09/2018,Resources and Housing,Leeds Building Services,Supplies and Services,Other Hired And Contracted Services,265,18-Sep-2018,1809-00528,0.00,1090.00,R,All Clear Solutions Ltd,No
Http://opendatacommunities.org/id/metropolitan-district-council/leeds,Leeds City Council,30/09/2018,Resources and Housing,Leeds Building Services,Supplies and Services,Other Hired And Contracted Services,265,18-Sep-2018,1809-00529,0.00,390.00,R,All Clear Solutions Ltd,No
Http://opendatacommunities.org/id/metropolitan-district-council/leeds,Leeds City Council,30/09/2018,Resources and Housing,Leeds Building Services,Supplies and Services,Other Hired And Contracted Services,265,18-Sep-2018,1809-00530,0.00,195.00,R,All Clear Solutions Ltd,No
Http://opendatacommunities.org/id/metropolitan-district-council/leeds,Leeds City Council,30/09/2018,Resources and Housing,Leeds Building Services,Supplies and Services,Other Hired And Contracted Services,265,18-Sep-2018,1809-00531,0.00,195.00,R,All Clear Solutions Ltd,No
Http://opendatacommunities.org/id/metropolitan-district-council/leeds,Leeds City Council,30/09/2018,Resources and Housing,Leeds Building Services,Supplies and Services,Other Hired And Contracted Services,265,18-Sep-2018,1809-00532,0.00,195.00,R,All Clear Solutions Ltd,No
Http://opendatacommunities.org/id/metropolitan-district-council/leeds,Leeds City Council,30/09/2018,Resources and Housing,Leeds Building Services,Supplies and Services,Other Hired And Contracted Services,265,18-Sep-2018,1809-00533,0.00,390.00,R,All Clear Solutions Ltd,No
Http://opendatacommunities.org/id/metropolitan-district-council/leeds,Leeds City Council,30/09/2018,Resources and Housing,Leeds Building Services,Supplies and Services,Other Hired And Contracted Services,265,25-Sep-2018,1809-00534,0.00,195.00,R,All Clear Solutions Ltd,No
Http://opendatacommunities.org/id/metropolitan-district-council/leeds,Leeds City Council,30/09/2018,Resources and Housing,Leeds Building Services,Supplies and Services,Other Hired And Contracted Services,265,25-Sep-2018,1809-00535,0.00,545.00,R,All Clear Solutions Ltd,No
Http://opendatacommunities.org/id/metropolitan-district-council/leeds,Leeds City Council,30/09/2018,Resources and Housing,Leeds Building Services,Supplies and Services,Other Hired And Contracted Services,265,25-Sep-2018,1809-00536,0.00,195.00,R,All Clear Solutions Ltd,No
Http://opendatacommunities.org/id/metropolitan-district-council/leeds,Leeds City Council,30/09/2018,Resources and Housing,Leeds Building Services,Supplies and Services,Other Hired And Contracted Services,265,25-Sep-2018,1809-00537,0.00,195.00,R,All Clear Solutions Ltd,No
Http://opendatacommunities.org/id/metropolitan-district-council/leeds,Leeds City Council,30/09/2018,Children and Families,Social Care,Third Party Payments,Services Rendered By Other Organisations,511,19-Sep-2018,1809-00538,0.00,1606.50,R,All Stars Childcare,No
Http://opendatacommunities.org/id/metropolitan-district-council/leeds,Leeds City Council,30/09/2018,Children and Families,Social Care,Third Party Payments,Services Rendered By Other Organisations,511,21-Sep-2018,1809-00539,0.00,9052.50,R,All Stars Childcare,No
Http://opendatacommunities.org/id/metropolitan-district-council/leeds,Leeds City Council As Accountable Body,30/09/2018,Social Services Pooled Budgets,Jcs For People With Learning Disabilitie,Third Party Payments,Sheltered Accommodation,569,19-Sep-2018,1809-00540,0.00,13578.36,R,Allerton Avenue,No
Http://opendatacommunities.org/id/metropolitan-district-council/leeds,Leeds City Council,30/09/2018,Strategic Accounts,Miscellaneous,Supplies and Services,Non-Recurring Grants,227,25-Sep-2018,1809-00541,0.00,200.00,R,Allerton Bywater Parish Council,No
Http://opendatacommunities.org/id/metropolitan-district-council/leeds,Leeds City Council,30/09/2018,Adults and Health,Services For Older People - 65 And Over,Third Party Payments,Nursing Care Dementia,574,19-Sep-2018,1809-00542,0.00,2094.28,R,Allerton Park N H,No
Http://opendatacommunities.org/id/metropolitan-district-council/leeds,Leeds City Council,30/09/2018,Resources and Housing,Finance,Supplies and Services,Bank Charges,263,03-Sep-2018,1809-00543,0.00,-110.59,R,Alliance & Leicester Commercial Bank,No
Http://opendatacommunities.org/id/metropolitan-district-council/leeds,Leeds City Council,30/09/2018,Resources and Housing,Finance,Supplies and Services,Bank Charges,263,05-Sep-2018,1809-00544,0.00,297.47,R,Alliance & Leicester Commercial Bank,No
Http://opendatacommunities.org/id/metropolitan-district-council/leeds,Leeds City Council,30/09/2018,Resources and Housing,Finance,Supplies and Services,Bank Charges,263,05-Sep-2018,1809-00545,0.00,100.00,R,Alliance & Leicester Commercial Bank,No
Http://opendatacommunities.org/id/metropolitan-district-council/leeds,Leeds City Council,30/09/2018,City Development,Highways,Supplies and Services,Other Hired And Contracted Services,265,18-Sep-2018,1809-00546,0.00,4262.70,R,Allied Exploration & Geotechnics Ltd,No
Http://opendatacommunities.org/id/metropolitan-district-council/leeds,Leeds City Council,30/09/2018,City Development,Highways,Supplies and Services,Other Hired And Contracted Services,265,18-Sep-2018,1809-00547,0.00,1256.40,R,Allied Exploration & Geotechnics Ltd,No
Http://opendatacommunities.org/id/metropolitan-district-council/leeds,Leeds City Council,30/09/2018,City Development,Highways,Supplies and Services,Other Hired And Contracted Services,265,21-Sep-2018,1809-00548,0.00,279.20,R,Allied Exploration & Geotechnics Ltd,No
Http://opendatacommunities.org/id/metropolitan-district-council/leeds,Leeds City Council As Accountable Body,30/09/2018,Social Services Pooled Budgets,Jcs For People With Learning Disabilitie,Third Party Payments,Home Care,568,05-Sep-2018,1809-00549,0.00,166.80,R,Allied Healthcare,No
Http://opendatacommunities.org/id/metropolitan-district-council/leeds,Leeds City Council As Accountable Body,30/09/2018,Social Services Pooled Budgets,Jcs For People With Learning Disabilitie,Third Party Payments,Home Care,568,05-Sep-2018,1809-00550,0.00,32.44,R,Allied Healthcare,No
Http://opendatacommunities.org/id/metropolitan-district-council/leeds,Leeds City Council As Accountable Body,30/09/2018,Social Services Pooled Budgets,Jcs For People With Learning Disabilitie,Third Party Payments,Home Care,568,12-Sep-2018,1809-00551,0.00,13343.75,R,Allied Healthcare,No
Http://opendatacommunities.org/id/metropolitan-district-council/leeds,Leeds City Council As Accountable Body,30/09/2018,Social Services Pooled Budgets,Jcs For People With Learning Disabilitie,Third Party Payments,Home Care,568,13-Sep-2018,1809-00552,0.00,16664.03,R,Allied Healthcare,No
Http://opendatacommunities.org/id/metropolitan-district-council/leeds,Leeds City Council As Accountable Body,30/09/2018,Social Services Pooled Budgets,Jcs For People With Learning Disabilitie,Third Party Payments,Home Care,568,18-Sep-2018,1809-00553,0.00,271.87,R,Allied Healthcare,No
Http://opendatacommunities.org/id/metropolitan-district-council/leeds,Leeds City Council As Accountable Body,30/09/2018,Social Services Pooled Budgets,Jcs For People With Learning Disabilitie,Third Party Payments,Home Care,568,18-Sep-2018,1809-00554,0.00,432.04,R,Allied Healthcare,No
Http://opendatacommunities.org/id/metropolitan-district-council/leeds,Leeds City Council As Accountable Body,30/09/2018,Social Services Pooled Budgets,Jcs For People With Learning Disabilitie,Third Party Payments,Home Care,568,18-Sep-2018,1809-00555,0.00,1050.56,R,Allied Healthcare,No
Http://opendatacommunities.org/id/metropolitan-district-council/leeds,Leeds City Council As Accountable Body,30/09/2018,Social Services Pooled Budgets,Jcs For People With Learning Disabilitie,Third Party Payments,Home Care,568,18-Sep-2018,1809-00556,0.00,746.14,R,Allied Healthcare,No
Http://opendatacommunities.org/id/metropolitan-district-council/leeds,Leeds City Council As Accountable Body,30/09/2018,Social Services Pooled Budgets,Jcs For People With Learning Disabilitie,Third Party Payments,Home Care,568,18-Sep-2018,1809-00557,0.00,990.12,R,Allied Healthcare,No
Http://opendatacommunities.org/id/metropolitan-district-council/leeds,Leeds City Council As Accountable Body,30/09/2018,Social Services Pooled Budgets,Jcs For People With Learning Disabilitie,Third Party Payments,Home Care,568,20-Sep-2018,1809-00558,0.00,17.50,R,Allied Healthcare,No
Http://opendatacommunities.org/id/metropolitan-district-council/leeds,Leeds City Council,30/09/2018,Adults and Health,Services For Older People - 65 And Over,Third Party Payments,Home Care,568,25-Sep-2018,1809-00559,0.00,8292.15,R,Allied Healthcare,No
Http://opendatacommunities.org/id/metropolitan-district-council/leeds,Leeds City Council,30/09/2018,Adults and Health,Services For Older People Under 65 P/Dis,Third Party Payments,Home Care,568,25-Sep-2018,1809-00560,0.00,1613.97,R,Allied Healthcare,No
Http://opendatacommunities.org/id/metropolitan-district-council/leeds,Leeds City Council,30/09/2018,Adults and Health,Services For Older People - 65 And Over,Third Party Payments,Home Care,568,25-Sep-2018,1809-00561,0.00,225.96,R,Allied Healthcare,No
Http://opendatacommunities.org/id/metropolitan-district-council/leeds,Leeds City Council,30/09/2018,Adults and Health,Services For Older People - 65 And Over,Third Party Payments,Home Care,568,25-Sep-2018,1809-00562,0.00,13686.83,R,Allied Healthcare,No
Http://opendatacommunities.org/id/metropolitan-district-council/leeds,Leeds City Council,30/09/2018,Adults and Health,Services For Older People Under 65 P/Dis,Third Party Payments,Home Care,568,25-Sep-2018,1809-00563,0.00,866.22,R,Allied Healthcare,No
Http://opendatacommunities.org/id/metropolitan-district-council/leeds,Leeds City Council,30/09/2018,Adults and Health,Services For Older People - 65 And Over,Third Party Payments,Home Care,568,25-Sep-2018,1809-00564,0.00,10561.08,R,Allied Healthcare,No
Http://opendatacommunities.org/id/metropolitan-district-council/leeds,Leeds City Council,30/09/2018,Adults and Health,Services For Older People Under 65 P/Dis,Third Party Payments,Home Care,568,25-Sep-2018,1809-00565,0.00,6479.33,R,Allied Healthcare,No
Http://opendatacommunities.org/id/metropolitan-district-council/leeds,Leeds City Council,30/09/2018,Adults and Health,Services For Older People - 65 And Over,Third Party Payments,Home Care,568,25-Sep-2018,1809-00566,0.00,1728.51,R,Allied Healthcare,No
Http://opendatacommunities.org/id/metropolitan-district-council/leeds,Leeds City Council As Accountable Body,30/09/2018,Social Services Pooled Budgets,Jcs For People With Learning Disabilitie,Third Party Payments,Home Care,568,26-Sep-2018,1809-00567,0.00,15063.24,R,Allied Healthcare,No
Http://opendatacommunities.org/id/metropolitan-district-council/leeds,Leeds City Council,30/09/2018,Children and Families,Social Care,Third Party Payments,Services Rendered By Other Organisations,511,21-Sep-2018,1809-00568,0.00,223.13,R,REDACTED PERSONAL DATA,No
Http://opendatacommunities.org/id/metropolitan-district-council/leeds,Leeds City Council,30/09/2018,Resources and Housing,Strategic Housing Partnership & Support  ,Supplies and Services,Other Hired And Contracted Services,265,23-Aug-2018,1809-00569,0.00,170.00,R,Allpay *yorkshire Housing,Yes
Http://opendatacommunities.org/id/metropolitan-district-council/leeds,Leeds City Council,30/09/2018,Strategic Landlord,Housing Management,Supplies and Services,Other Hired And Contracted Services,265,07-Sep-2018,1809-00570,0.00,16.51,R,Allpay Limted,No
Http://opendatacommunities.org/id/metropolitan-district-council/leeds,Leeds City Council,30/09/2018,Strategic Landlord,Housing Management,Supplies and Services,Other Hired And Contracted Services,265,07-Sep-2018,1809-00571,0.00,441.33,R,Allpay Limted,No
Http://opendatacommunities.org/id/metropolitan-district-council/leeds,Leeds City Council,30/09/2018,Resources and Housing,Democratic Services,Transport,Fuel (Non LCC Supplies),321,07-Sep-2018,1809-00572,0.00,4.18,R,Allstar Business Solutions Ltd,No
Http://opendatacommunities.org/id/metropolitan-district-council/leeds,Leeds City Council,30/09/2018,Communities and Environment,Parks and Countryside,Transport,Fuel (Non LCC Supplies),321,07-Sep-2018,1809-00573,0.00,468.93,R,Allstar Business Solutions Ltd,No
Http://opendatacommunities.org/id/metropolitan-district-council/leeds,Leeds City Council,30/09/2018,City Development,Highways,Transport,Fuel (Non LCC Supplies),321,07-Sep-2018,1809-00574,0.00,362.70,R,Allstar Business Solutions Ltd,No
Http://opendatacommunities.org/id/metropolitan-district-council/leeds,Leeds City Council,30/09/2018,Children and Families,Learning,Transport,Fuel (Non LCC Supplies),321,07-Sep-2018,1809-00575,0.00,704.38,R,Allstar Business Solutions Ltd,No
Http://opendatacommunities.org/id/metropolitan-district-council/leeds,Leeds City Council,30/09/2018,Resources and Housing,Leeds Building Services,Transport,Fuel (Non LCC Supplies),321,12-Sep-2018,1809-00576,0.00,52.22,R,Allstar Business Solutions Ltd,No
Http://opendatacommunities.org/id/metropolitan-district-council/leeds,Leeds City Council,30/09/2018,Resources and Housing,Leeds Building Services,Transport,Fuel (Non LCC Supplies),321,28-Sep-2018,1809-00577,0.00,41.68,R,Allstar Business Solutions Ltd,No
Http://opendatacommunities.org/id/metropolitan-district-council/leeds,Leeds City Council,30/09/2018,City Development,Libraries  Arts & Heritage,Supplies and Services,Other Hired And Contracted Services,265,14-Sep-2018,1809-00578,0.00,320.00,R,Allure Dancers Ltd,No
Http://opendatacommunities.org/id/metropolitan-district-council/leeds,Leeds City Council,30/09/2018,City Development,Libraries  Arts & Heritage,Income,Admissions  Booking Fees & Ticket Sales,933,20-Sep-2018,1809-00579,0.00,2664.50,R,Almasty Brewing Co,No
Http://opendatacommunities.org/id/metropolitan-district-council/leeds,Leeds City Council,30/09/2018,City Development,Libraries  Arts & Heritage,Income,Non Dwelling Rents,952,20-Sep-2018,1809-00580,0.00,-532.90,R,Almasty Brewing Co,No
Http://opendatacommunities.org/id/metropolitan-district-council/leeds,Leeds City Council,30/09/2018,Strategic Landlord,Housing Management,Supplies and Services,Grants To Voluntary Organisations,293,19-Sep-2018,1809-00581,0.00,51.50,R,Alpha Awards Ltd,No
Http://opendatacommunities.org/id/metropolitan-district-council/leeds,Leeds City Council,30/09/2018,Children and Families,Social Care,Support Services,Legal Disbursements,411,07-Sep-2018,1809-00582,0.00,210.01,R,Alphabiolabs,No
Http://opendatacommunities.org/id/metropolitan-district-council/leeds,Leeds City Council,30/09/2018,Children and Families,Social Care,Support Services,Legal Disbursements,411,07-Sep-2018,1809-00583,0.00,98.75,R,Alphabiolabs,No
Http://opendatacommunities.org/id/metropolitan-district-council/leeds,Leeds City Council,30/09/2018,Children and Families,Social Care,Support Services,Legal Disbursements,411,07-Sep-2018,1809-00584,0.00,221.00,R,Alphabiolabs,No
Http://opendatacommunities.org/id/metropolitan-district-council/leeds,Leeds City Council,30/09/2018,Children and Families,Social Care,Support Services,Legal Disbursements,411,07-Sep-2018,1809-00585,0.00,143.50,R,Alphabiolabs,No
Http://opendatacommunities.org/id/metropolitan-district-council/leeds,Leeds City Council,30/09/2018,Children and Families,Social Care,Support Services,Legal Disbursements,411,14-Sep-2018,1809-00586,0.00,156.34,R,Alphabiolabs,No
Http://opendatacommunities.org/id/metropolitan-district-council/leeds,Leeds City Council,30/09/2018,Children and Families,Social Care,Support Services,Legal Disbursements,411,18-Sep-2018,1809-00587,0.00,133.75,R,Alphabiolabs,No
Http://opendatacommunities.org/id/metropolitan-district-council/leeds,Leeds City Council,30/09/2018,Children and Families,Social Care,Support Services,Legal Disbursements,411,18-Sep-2018,1809-00588,0.00,133.75,R,Alphabiolabs,No
Http://opendatacommunities.org/id/metropolitan-district-council/leeds,Leeds City Council,30/09/2018,Children and Families,Social Care,Third Party Payments,Placement Support,550,18-Sep-2018,1809-00589,0.00,390.00,R,Alphabiolabs,No
Http://opendatacommunities.org/id/metropolitan-district-council/leeds,Leeds City Council,30/09/2018,Children and Families,Social Care,Support Services,Legal Disbursements,411,18-Sep-2018,1809-00590,0.00,162.25,R,Alphabiolabs,No
Http://opendatacommunities.org/id/metropolitan-district-council/leeds,Leeds City Council,30/09/2018,Children and Families,Social Care,Support Services,Legal Disbursements,411,28-Sep-2018,1809-00591,0.00,63.34,R,Alphabiolabs,No
Http://opendatacommunities.org/id/metropolitan-district-council/leeds,Leeds City Council,30/09/2018,Communities and Environment,Community Safety  ,Supplies and Services,Other Hired And Contracted Services,265,07-Aug-2018,1809-00592,0.00,671.00,R,Altron Comm Equip,Yes
Http://opendatacommunities.org/id/metropolitan-district-council/leeds,Leeds City Council,30/09/2018,Communities and Environment,Customer Access,Supplies and Services,Other Hired And Contracted Services,265,04-Sep-2018,1809-00593,0.00,525.00,R,Amad Mezori,No
Http://opendatacommunities.org/id/metropolitan-district-council/leeds,Leeds City Council,30/09/2018,Children and Families,Social Care,Third Party Payments,Services Rendered By Other Organisations,511,21-Sep-2018,1809-00594,0.00,334.69,R,REDACTED PERSONAL DATA,No
Http://opendatacommunities.org/id/metropolitan-district-council/leeds,Leeds City Council,30/09/2018,Children and Families,Social Care,Third Party Payments,Services Rendered By Other Organisations,511,19-Sep-2018,1809-00595,0.00,535.50,R,REDACTED PERSONAL DATA,No
Http://opendatacommunities.org/id/metropolitan-district-council/leeds,Leeds City Council,30/09/2018,Resources and Housing,Leeds Building Services,Supplies and Services,Operational Materials,205,06-Sep-2018,1809-00596,0.00,109.83,R,Amari Plastics Plc,No
Http://opendatacommunities.org/id/metropolitan-district-council/leeds,Leeds City Council,30/09/2018,Resources and Housing,Leeds Building Services,Supplies and Services,Operational Materials,205,14-Sep-2018,1809-00597,0.00,745.52,R,Amari Plastics Plc,No
Http://opendatacommunities.org/id/metropolitan-district-council/leeds,Leeds City Council,30/09/2018,Resources and Housing,Shared Services,Supplies and Services,Operational Materials,205,21-Sep-2018,1809-00598,0.00,48.00,R,Amari Plastics Plc,No
Http://opendatacommunities.org/id/metropolitan-district-council/leeds,Leeds City Council,30/09/2018,Resources and Housing,Shared Services,Supplies and Services,Operational Materials,205,21-Sep-2018,1809-00599,0.00,48.00,R,Amari Plastics Plc,No
Http://opendatacommunities.org/id/metropolitan-district-council/leeds,Leeds City Council,30/09/2018,Resources and Housing,Leeds Building Services,Supplies and Services,Operational Materials,205,25-Sep-2018,1809-00600,0.00,59.40,R,Amari Plastics Plc,No
Http://opendatacommunities.org/id/metropolitan-district-council/leeds,Leeds City Council,30/09/2018,Children and Families,Social Care,Third Party Payments,Services Rendered By Other Organisations,511,19-Sep-2018,1809-00601,0.00,1071.00,R,Amazing Grace Early Years Childcare,No
Http://opendatacommunities.org/id/metropolitan-district-council/leeds,Leeds City Council,30/09/2018,Children and Families,Social Care,Third Party Payments,Services Rendered By Other Organisations,511,21-Sep-2018,1809-00602,0.00,6247.50,R,Amazing Grace Early Years Childcare,No
Http://opendatacommunities.org/id/metropolitan-district-council/leeds,Leeds City Council,30/09/2018,Adults and Health,Public Health  ,Employees,Best Value Training,70,16-Aug-2018,1809-00603,0.00,9.99,R,Amazon Digital Svcs,Yes
Http://opendatacommunities.org/id/metropolitan-district-council/leeds,Leeds City Council,30/09/2018,City Development,Recreation,Supplies and Services,Operational Furniture And Equipment,203,06-Sep-2018,1809-00604,0.00,127.50,R,Amazon Leisure Uk Ltd,No
Http://opendatacommunities.org/id/metropolitan-district-council/leeds,Leeds City Council,30/09/2018,City Development,Recreation,Supplies and Services,Operational Furniture And Equipment,203,06-Sep-2018,1809-00605,0.00,105.00,R,Amazon Leisure Uk Ltd,No
Http://opendatacommunities.org/id/metropolitan-district-council/leeds,Leeds City Council,30/09/2018,City Development,Recreation,Supplies and Services,Operational Furniture And Equipment,203,06-Sep-2018,1809-00606,0.00,194.89,R,Amazon Leisure Uk Ltd,No
Http://opendatacommunities.org/id/metropolitan-district-council/leeds,Leeds City Council,30/09/2018,City Development,Recreation,Supplies and Services,Operational Furniture And Equipment,203,06-Sep-2018,1809-00607,0.00,87.89,R,Amazon Leisure Uk Ltd,No
Http://opendatacommunities.org/id/metropolitan-district-council/leeds,Leeds City Council,30/09/2018,City Development,Recreation,Supplies and Services,Operational Furniture And Equipment,203,06-Sep-2018,1809-00608,0.00,127.50,R,Amazon Leisure Uk Ltd,No
Http://opendatacommunities.org/id/metropolitan-district-council/leeds,Leeds City Council,30/09/2018,City Development,Recreation,Supplies and Services,Operational Furniture And Equipment,203,07-Sep-2018,1809-00609,0.00,609.67,R,Amazon Leisure Uk Ltd,No
Http://opendatacommunities.org/id/metropolitan-district-council/leeds,Leeds City Council,30/09/2018,City Development,Recreation,Supplies and Services,Operational Furniture And Equipment,203,07-Sep-2018,1809-00610,0.00,1092.12,R,Amazon Leisure Uk Ltd,No
Http://opendatacommunities.org/id/metropolitan-district-council/leeds,Leeds City Council,30/09/2018,City Development,Recreation,Supplies and Services,Operational Furniture And Equipment,203,12-Sep-2018,1809-00611,0.00,105.00,R,Amazon Leisure Uk Ltd,No
Http://opendatacommunities.org/id/metropolitan-district-council/leeds,Leeds City Council,30/09/2018,City Development,Recreation,Supplies and Services,Other Hired And Contracted Services,265,13-Sep-2018,1809-00612,0.00,1168.56,R,Amazon Leisure Uk Ltd,No
Http://opendatacommunities.org/id/metropolitan-district-council/leeds,Leeds City Council,30/09/2018,City Development,Recreation,Supplies and Services,Operational Furniture And Equipment,203,13-Sep-2018,1809-00613,0.00,39.39,R,Amazon Leisure Uk Ltd,No
Http://opendatacommunities.org/id/metropolitan-district-council/leeds,Leeds City Council,30/09/2018,City Development,Recreation,Supplies and Services,Operational Furniture And Equipment,203,13-Sep-2018,1809-00614,0.00,105.00,R,Amazon Leisure Uk Ltd,No
Http://opendatacommunities.org/id/metropolitan-district-council/leeds,Leeds City Council,30/09/2018,City Development,Recreation,Supplies and Services,Operational Furniture And Equipment,203,13-Sep-2018,1809-00615,0.00,141.69,R,Amazon Leisure Uk Ltd,No
Http://opendatacommunities.org/id/metropolitan-district-council/leeds,Leeds City Council,30/09/2018,City Development,Recreation,Supplies and Services,Operational Furniture And Equipment,203,14-Sep-2018,1809-00616,0.00,414.08,R,Amazon Leisure Uk Ltd,No
Http://opendatacommunities.org/id/metropolitan-district-council/leeds,Leeds City Council,30/09/2018,City Development,Recreation,Supplies and Services,Operational Furniture And Equipment,203,21-Sep-2018,1809-00617,0.00,266.74,R,Amazon Leisure Uk Ltd,No
Http://opendatacommunities.org/id/metropolitan-district-council/leeds,Leeds City Council,30/09/2018,City Development,Libraries  Arts & Heritage  ,Supplies and Services,Operational Materials,205,07-Aug-2018,1809-00618,0.00,0.99,R,Amazon Prime,Yes
Http://opendatacommunities.org/id/metropolitan-district-council/leeds,Leeds City Council,30/09/2018,Communities and Environment,Benefits  Wlefare And Poverty  ,Supplies and Services,Other Hired And Contracted Services,265,07-Aug-2018,1809-00619,0.00,79.00,R,Amazon Prime,Yes
Http://opendatacommunities.org/id/metropolitan-district-council/leeds,Leeds City Council,30/09/2018,City Development,Libraries  Arts & Heritage  ,Supplies and Services,Operational Materials,205,09-Aug-2018,1809-00620,0.00,7.99,R,Amazon Prime,Yes
Http://opendatacommunities.org/id/metropolitan-district-council/leeds,Leeds City Council,30/09/2018,City Development,Libraries  Arts & Heritage  ,Supplies and Services,Operational Materials,205,14-Aug-2018,1809-00621,0.00,7.99,R,Amazon Prime,Yes
Http://opendatacommunities.org/id/metropolitan-district-council/leeds,Leeds City Council,30/09/2018,Communities and Environment,Parks And Countryside  ,Supplies and Services,Office Consumables,210,19-Aug-2018,1809-00622,0.00,7.99,R,Amazon Prime,Yes
Http://opendatacommunities.org/id/metropolitan-district-council/leeds,Leeds City Council,30/09/2018,Children and Families,Social Care  ,Supplies and Services,Office Consumables,210,24-Aug-2018,1809-00623,0.00,7.99,R,Amazon Prime,Yes
Http://opendatacommunities.org/id/metropolitan-district-council/leeds,Leeds City Council,30/09/2018,Resources and Housing,Commercial Services  ,Supplies and Services,Operational Materials,205,27-Aug-2018,1809-00624,0.00,7.99,R,Amazon Prime,Yes
Http://opendatacommunities.org/id/metropolitan-district-council/leeds,Leeds City Council,30/09/2018,Children and Families,Social Care  ,Supplies and Services,Operational Furniture And Equipment,203,30-Aug-2018,1809-00625,0.00,7.99,R,Amazon Prime,Yes
Http://opendatacommunities.org/id/metropolitan-district-council/leeds,Leeds City Council,30/09/2018,Children and Families,Social Care  ,Transfer Payments,Leaving Care Grants,635,13-Aug-2018,1809-00626,0.00,-7.99,R,Amazon Prime Amzn.Co.Uk/P,Yes
Http://opendatacommunities.org/id/metropolitan-district-council/leeds,Leeds City Council,30/09/2018,Communities and Environment,Parks And Countryside  ,Supplies and Services,Operational Furniture And Equipment,203,31-Jul-2018,1809-00627,0.00,5.98,R,Amazon UK Marketplace,Yes
Http://opendatacommunities.org/id/metropolitan-district-council/leeds,Leeds City Council,30/09/2018,Children and Families,Social Care  ,Supplies and Services,Operational Furniture And Equipment,203,31-Jul-2018,1809-00628,0.00,6.96,R,Amazon UK Retail,Yes
Http://opendatacommunities.org/id/metropolitan-district-council/leeds,Leeds City Council,30/09/2018,Communities and Environment,Parks And Countryside  ,Supplies and Services,Operational Furniture And Equipment,203,31-Jul-2018,1809-00629,0.00,11.79,R,Amazon.Co.Uk,Yes
Http://opendatacommunities.org/id/metropolitan-district-council/leeds,Leeds City Council,30/09/2018,Children and Families,Social Care  ,Supplies and Services,Operational Furniture And Equipment,203,01-Aug-2018,1809-00630,0.00,19.40,R,Amazon.Co.Uk,Yes
Http://opendatacommunities.org/id/metropolitan-district-council/leeds,Leeds City Council,30/09/2018,City Development,Libraries  Arts & Heritage  ,Supplies and Services,Computer Software & Equipment,214,01-Aug-2018,1809-00631,0.00,60.13,R,Amazon.Co.Uk,Yes
Http://opendatacommunities.org/id/metropolitan-district-council/leeds,Leeds City Council,30/09/2018,Communities and Environment,Benefits  Wlefare And Poverty  ,Supplies and Services,Office Furniture & Equipment,201,02-Aug-2018,1809-00632,0.00,7.60,R,Amazon.Co.Uk,Yes
Http://opendatacommunities.org/id/metropolitan-district-council/leeds,Leeds City Council,30/09/2018,Communities and Environment,Benefits  Wlefare And Poverty  ,Supplies and Services,Office Furniture & Equipment,201,02-Aug-2018,1809-00633,0.00,7.49,R,Amazon.Co.Uk,Yes
Http://opendatacommunities.org/id/metropolitan-district-council/leeds,Leeds City Council,30/09/2018,Children and Families,Social Care  ,Supplies and Services,Other Hired And Contracted Services,265,02-Aug-2018,1809-00634,0.00,58.33,R,Amazon.Co.Uk,Yes
Http://opendatacommunities.org/id/metropolitan-district-council/leeds,Leeds City Council,30/09/2018,Children and Families,Social Care  ,Supplies and Services,Teaching Materials,202,03-Aug-2018,1809-00635,0.00,6.48,R,Amazon.Co.Uk,Yes
Http://opendatacommunities.org/id/metropolitan-district-council/leeds,Leeds City Council,30/09/2018,Resources and Housing,Commercial Services  ,Supplies and Services,Office Furniture & Equipment,201,05-Aug-2018,1809-00636,0.00,40.53,R,Amazon.Co.Uk,Yes
Http://opendatacommunities.org/id/metropolitan-district-council/leeds,Leeds City Council,30/09/2018,Communities and Environment,Cleaner Neighbourhood Teams  ,Supplies and Services,Computer Software & Equipment,214,06-Aug-2018,1809-00637,0.00,13.73,R,Amazon.Co.Uk,Yes
Http://opendatacommunities.org/id/metropolitan-district-council/leeds,Leeds City Council,30/09/2018,Children and Families,Social Care  ,Supplies and Services,Other Hired And Contracted Services,265,06-Aug-2018,1809-00638,0.00,4.99,R,Amazon.Co.Uk,Yes
Http://opendatacommunities.org/id/metropolitan-district-council/leeds,Leeds City Council,30/09/2018,Adults and Health,Home Care Services  ,Supplies and Services,Operational Materials,205,06-Aug-2018,1809-00639,0.00,11.83,R,Amazon.Co.Uk,Yes
Http://opendatacommunities.org/id/metropolitan-district-council/leeds,Leeds City Council,30/09/2018,Resources and Housing,Commercial Services  ,Transport,Miscellaneous Transport Related Costs,324,07-Aug-2018,1809-00640,0.00,11.79,R,Amazon.Co.Uk,Yes
Http://opendatacommunities.org/id/metropolitan-district-council/leeds,Leeds City Council,30/09/2018,Resources and Housing,Technology  ,Supplies and Services,Operational Furniture And Equipment,203,08-Aug-2018,1809-00641,0.00,4.72,R,Amazon.Co.Uk,Yes
Http://opendatacommunities.org/id/metropolitan-district-council/leeds,Leeds City Council,30/09/2018,Adults and Health,Services For Older People - 65 And Over  ,Premises,First Aid Requisites,128,08-Aug-2018,1809-00642,0.00,13.81,R,Amazon.Co.Uk,Yes
Http://opendatacommunities.org/id/metropolitan-district-council/leeds,Leeds City Council,30/09/2018,Resources and Housing,Strategy And Improvement  ,Supplies and Services,Office Consumables,210,09-Aug-2018,1809-00643,0.00,236.21,R,Amazon.Co.Uk,Yes
Http://opendatacommunities.org/id/metropolitan-district-council/leeds,Leeds City Council,30/09/2018,Strategic Landlord,Housing Management  ,Supplies and Services,Operational Materials,205,09-Aug-2018,1809-00644,0.00,48.59,R,Amazon.Co.Uk,Yes
Http://opendatacommunities.org/id/metropolitan-district-council/leeds,Leeds City Council,30/09/2018,City Development,Recreation  ,Supplies and Services,Operational Furniture And Equipment,203,09-Aug-2018,1809-00645,0.00,19.21,R,Amazon.Co.Uk,Yes
Http://opendatacommunities.org/id/metropolitan-district-council/leeds,Leeds City Council,30/09/2018,Children and Families,Social Care  ,Supplies and Services,Teaching Materials,202,11-Aug-2018,1809-00646,0.00,7.90,R,Amazon.Co.Uk,Yes
Http://opendatacommunities.org/id/metropolitan-district-council/leeds,Leeds City Council,30/09/2018,Children and Families,Social Care  ,Supplies and Services,Office Consumables,210,12-Aug-2018,1809-00647,0.00,59.48,R,Amazon.Co.Uk,Yes
Http://opendatacommunities.org/id/metropolitan-district-council/leeds,Leeds City Council,30/09/2018,City Development,Libraries  Arts & Heritage  ,Supplies and Services,Books & Audio-Visual Materials,206,13-Aug-2018,1809-00648,0.00,17.21,R,Amazon.Co.Uk,Yes
Http://opendatacommunities.org/id/metropolitan-district-council/leeds,Leeds City Council,30/09/2018,Resources and Housing,Shared Services  ,Supplies and Services,Operational Materials,205,14-Aug-2018,1809-00649,0.00,79.16,R,Amazon.Co.Uk,Yes
Http://opendatacommunities.org/id/metropolitan-district-council/leeds,Leeds City Council,30/09/2018,Communities and Environment,Community Safety  ,Supplies and Services,Operational Furniture And Equipment,203,14-Aug-2018,1809-00650,0.00,134.40,R,Amazon.Co.Uk,Yes
Http://opendatacommunities.org/id/metropolitan-district-council/leeds,Leeds City Council,30/09/2018,Communities and Environment,Customer Access  ,Supplies and Services,Office Furniture & Equipment,201,15-Aug-2018,1809-00651,0.00,28.52,R,Amazon.Co.Uk,Yes
Http://opendatacommunities.org/id/metropolitan-district-council/leeds,Leeds City Council,30/09/2018,Children and Families,Social Care  ,Supplies and Services,Books & Audio-Visual Materials,206,16-Aug-2018,1809-00652,0.00,47.97,R,Amazon.Co.Uk,Yes
Http://opendatacommunities.org/id/metropolitan-district-council/leeds,Leeds City Council,30/09/2018,Resources and Housing,Finance  ,Supplies and Services,Office Furniture & Equipment,201,16-Aug-2018,1809-00653,0.00,17.00,R,Amazon.Co.Uk,Yes
Http://opendatacommunities.org/id/metropolitan-district-council/leeds,Leeds City Council,30/09/2018,Children and Families,Social Care  ,Supplies and Services,Operational Materials,205,16-Aug-2018,1809-00654,0.00,54.33,R,Amazon.Co.Uk,Yes
Http://opendatacommunities.org/id/metropolitan-district-council/leeds,Leeds City Council,30/09/2018,Children and Families,Social Care  ,Supplies and Services,Office Consumables,210,17-Aug-2018,1809-00655,0.00,10.97,R,Amazon.Co.Uk,Yes
Http://opendatacommunities.org/id/metropolitan-district-council/leeds,Leeds City Council,30/09/2018,Children and Families,Social Care  ,Supplies and Services,Office Consumables,210,17-Aug-2018,1809-00656,0.00,111.85,R,Amazon.Co.Uk,Yes
Http://opendatacommunities.org/id/metropolitan-district-council/leeds,Leeds City Council,30/09/2018,Resources and Housing,Technology  ,Supplies and Services,Computer Software & Equipment,214,17-Aug-2018,1809-00657,0.00,141.73,R,Amazon.Co.Uk,Yes
Http://opendatacommunities.org/id/metropolitan-district-council/leeds,Leeds City Council,30/09/2018,Strategic Landlord,Housing Management  ,Supplies and Services,Operational Furniture And Equipment,203,18-Aug-2018,1809-00658,0.00,48.73,R,Amazon.Co.Uk,Yes
Http://opendatacommunities.org/id/metropolitan-district-council/leeds,Leeds City Council,30/09/2018,Children and Families,Social Care  ,Supplies and Services,Operational Furniture And Equipment,203,19-Aug-2018,1809-00659,0.00,11.99,R,Amazon.Co.Uk,Yes
Http://opendatacommunities.org/id/metropolitan-district-council/leeds,Leeds City Council,30/09/2018,Resources and Housing,Commercial Services  ,Supplies and Services,Operational Materials,205,20-Aug-2018,1809-00660,0.00,45.58,R,Amazon.Co.Uk,Yes
Http://opendatacommunities.org/id/metropolitan-district-council/leeds,Leeds City Council,30/09/2018,City Development,Recreation  ,Supplies and Services,Office Consumables,210,20-Aug-2018,1809-00661,0.00,47.35,R,Amazon.Co.Uk,Yes
Http://opendatacommunities.org/id/metropolitan-district-council/leeds,Leeds City Council,30/09/2018,Communities and Environment,Community Safety  ,Supplies and Services,Operational Furniture And Equipment,203,21-Aug-2018,1809-00662,0.00,13.13,R,Amazon.Co.Uk,Yes
Http://opendatacommunities.org/id/metropolitan-district-council/leeds,Leeds City Council,30/09/2018,Children and Families,Social Care  ,Supplies and Services,Books & Audio-Visual Materials,206,21-Aug-2018,1809-00663,0.00,58.16,R,Amazon.Co.Uk,Yes
Http://opendatacommunities.org/id/metropolitan-district-council/leeds,Leeds City Council,30/09/2018,Children and Families,Social Care  ,Supplies and Services,Teaching Materials,202,21-Aug-2018,1809-00664,0.00,7.50,R,Amazon.Co.Uk,Yes
Http://opendatacommunities.org/id/metropolitan-district-council/leeds,Leeds City Council,30/09/2018,Children and Families,Social Care  ,Supplies and Services,Teaching Materials,202,22-Aug-2018,1809-00665,0.00,9.49,R,Amazon.Co.Uk,Yes
Http://opendatacommunities.org/id/metropolitan-district-council/leeds,Leeds City Council,30/09/2018,Children and Families,Social Care  ,Supplies and Services,Operational Furniture And Equipment,203,22-Aug-2018,1809-00666,0.00,9.99,R,Amazon.Co.Uk,Yes
Http://opendatacommunities.org/id/metropolitan-district-council/leeds,Leeds City Council,30/09/2018,Communities and Environment,Parks And Countryside  ,Supplies and Services,Operational Materials,205,23-Aug-2018,1809-00667,0.00,28.40,R,Amazon.Co.Uk,Yes
Http://opendatacommunities.org/id/metropolitan-district-council/leeds,Leeds City Council,30/09/2018,Strategic Landlord,Property And Contracts  ,Supplies and Services,Office Furniture & Equipment,201,23-Aug-2018,1809-00668,0.00,13.74,R,Amazon.Co.Uk,Yes
Http://opendatacommunities.org/id/metropolitan-district-council/leeds,Leeds City Council,30/09/2018,Communities and Environment,Parks And Countryside  ,Supplies and Services,Books & Audio-Visual Materials,206,23-Aug-2018,1809-00669,0.00,14.94,R,Amazon.Co.Uk,Yes
Http://opendatacommunities.org/id/metropolitan-district-council/leeds,Leeds City Council,30/09/2018,City Development,Highways  ,Supplies and Services,Operational Materials,205,23-Aug-2018,1809-00670,0.00,32.08,R,Amazon.Co.Uk,Yes
Http://opendatacommunities.org/id/metropolitan-district-council/leeds,Leeds City Council,30/09/2018,Children and Families,Social Care  ,Supplies and Services,Books & Audio-Visual Materials,206,23-Aug-2018,1809-00671,0.00,90.52,R,Amazon.Co.Uk,Yes
Http://opendatacommunities.org/id/metropolitan-district-council/leeds,Leeds City Council,30/09/2018,Communities and Environment,Cleaner Neighbourhood Teams  ,Supplies and Services,Telephones,213,24-Aug-2018,1809-00672,0.00,27.37,R,Amazon.Co.Uk,Yes
Http://opendatacommunities.org/id/metropolitan-district-council/leeds,Leeds City Council,30/09/2018,Children and Families,Social Care  ,Supplies and Services,Teaching Materials,202,24-Aug-2018,1809-00673,0.00,18.32,R,Amazon.Co.Uk,Yes
Http://opendatacommunities.org/id/metropolitan-district-council/leeds,Leeds City Council,30/09/2018,Children and Families,Partnerships & Health  ,Supplies and Services,Books & Audio-Visual Materials,206,28-Aug-2018,1809-00674,0.00,26.09,R,Amazon.Co.Uk,Yes
Http://opendatacommunities.org/id/metropolitan-district-council/leeds,Leeds City Council,30/09/2018,Adults and Health,Service Strategy  ,Supplies and Services,Publication And Promotion,267,29-Aug-2018,1809-00675,0.00,19.16,R,Amazon.Co.Uk,Yes
Http://opendatacommunities.org/id/metropolitan-district-council/leeds,Leeds City Council,30/09/2018,Resources and Housing,Leeds Building Services  ,Supplies and Services,Office Consumables,210,30-Aug-2018,1809-00676,0.00,798.00,R,Amazon.Co.Uk,Yes
Http://opendatacommunities.org/id/metropolitan-district-council/leeds,Leeds City Council,30/09/2018,Communities and Environment,Benefits  Wlefare And Poverty  ,Supplies and Services,Office Furniture & Equipment,201,30-Aug-2018,1809-00677,0.00,7.60,R,Amazon.Co.Uk,Yes
Http://opendatacommunities.org/id/metropolitan-district-council/leeds,Leeds City Council,30/09/2018,Resources and Housing,Commercial Services  ,Premises,Plant and Machinery,102,31-Jul-2018,1809-00678,0.00,29.00,R,Amazon.Co.Uk Amazon.Co.Uk,Yes
Http://opendatacommunities.org/id/metropolitan-district-council/leeds,Leeds City Council,30/09/2018,Resources and Housing,Commercial Services  ,Supplies and Services,Office Furniture & Equipment,201,02-Aug-2018,1809-00679,0.00,89.96,R,Amazon.Co.Uk Amazon.Co.Uk,Yes
Http://opendatacommunities.org/id/metropolitan-district-council/leeds,Leeds City Council,30/09/2018,Communities and Environment,Parks And Countryside  ,Supplies and Services,Teaching Materials,202,07-Aug-2018,1809-00680,0.00,11.33,R,Amazon.Co.Uk Amazon.Co.Uk,Yes
Http://opendatacommunities.org/id/metropolitan-district-council/leeds,Leeds City Council,30/09/2018,City Development,Libraries  Arts & Heritage  ,Supplies and Services,Office Consumables,210,09-Aug-2018,1809-00681,0.00,29.97,R,Amazon.Co.Uk Amazon.Co.Uk,Yes
Http://opendatacommunities.org/id/metropolitan-district-council/leeds,Leeds City Council,30/09/2018,Children and Families,Learning  ,Supplies and Services,Conference Meetings,253,11-Aug-2018,1809-00682,0.00,9.65,R,Amazon.Co.Uk Amazon.Co.Uk,Yes
Http://opendatacommunities.org/id/metropolitan-district-council/leeds,Leeds City Council,30/09/2018,Communities and Environment,Customer Access  ,Supplies and Services,Office Consumables,210,23-Aug-2018,1809-00683,0.00,36.37,R,Amazon.Co.Uk Amazon.Co.Uk,Yes
Http://opendatacommunities.org/id/metropolitan-district-council/leeds,Leeds City Council,30/09/2018,Resources and Housing,Strategy And Improvement  ,Supplies and Services,Office Consumables,210,23-Aug-2018,1809-00684,0.00,14.74,R,Amazon.Co.Uk Amazon.Co.Uk,Yes
Http://opendatacommunities.org/id/metropolitan-district-council/leeds,Leeds City Council,30/09/2018,Resources and Housing,Strategy And Improvement  ,Supplies and Services,Office Consumables,210,23-Aug-2018,1809-00685,0.00,26.72,R,Amazon.Co.Uk Amazon.Co.Uk,Yes
Http://opendatacommunities.org/id/metropolitan-district-council/leeds,Leeds City Council,30/09/2018,Children and Families,Social Care  ,Supplies and Services,Office Consumables,210,24-Aug-2018,1809-00686,0.00,11.98,R,Amazon.Co.Uk Amazon.Co.Uk,Yes
Http://opendatacommunities.org/id/metropolitan-district-council/leeds,Leeds City Council,30/09/2018,City Development,Recreation  ,Supplies and Services,Office Consumables,210,27-Aug-2018,1809-00687,0.00,19.22,R,Amazon.Co.Uk Amazon.Co.Uk,Yes
Http://opendatacommunities.org/id/metropolitan-district-council/leeds,Leeds City Council,30/09/2018,City Development,Recreation  ,Supplies and Services,Office Consumables,210,27-Aug-2018,1809-00688,0.00,19.21,R,Amazon.Co.Uk Amazon.Co.Uk,Yes
Http://opendatacommunities.org/id/metropolitan-district-council/leeds,Leeds City Council,30/09/2018,Resources and Housing,Technology  ,Supplies and Services,Operational Materials,205,29-Aug-2018,1809-00689,0.00,14.58,R,Amazon.Co.Uk Amazon.Co.Uk,Yes
Http://opendatacommunities.org/id/metropolitan-district-council/leeds,Leeds City Council,30/09/2018,City Development,Libraries  Arts & Heritage  ,Supplies and Services,Operational Furniture And Equipment,203,29-Aug-2018,1809-00690,0.00,-25.28,R,Amazon.Co.Uk Amazon.Co.Uk,Yes
Http://opendatacommunities.org/id/metropolitan-district-council/leeds,Leeds City Council,30/09/2018,Adults and Health,Assessment And Care Management,Transport,Private Hire,360,11-Sep-2018,1809-00691,0.00,35.50,R,Amber Cars,No
Http://opendatacommunities.org/id/metropolitan-district-council/leeds,Leeds City Council,30/09/2018,Strategic Landlord,Housing Management,Transport,Miscellaneous Transport Related Costs,324,14-Sep-2018,1809-00692,0.00,285.40,R,Amber Cars,No
Http://opendatacommunities.org/id/metropolitan-district-council/leeds,Leeds City Council,30/09/2018,Strategic Landlord,Housing Management,Transport,Miscellaneous Transport Related Costs,324,14-Sep-2018,1809-00693,0.00,6.00,R,Amber Cars,No
Http://opendatacommunities.org/id/metropolitan-district-council/leeds,Leeds City Council,30/09/2018,Strategic Landlord,Housing Management,Transport,Miscellaneous Transport Related Costs,324,14-Sep-2018,1809-00694,0.00,27.50,R,Amber Cars,No
Http://opendatacommunities.org/id/metropolitan-district-council/leeds,Leeds City Council,30/09/2018,Resources and Housing,Commercial Services,Transport,Private Hire,360,27-Sep-2018,1809-00695,0.00,30.00,R,Amber Cars,No
Http://opendatacommunities.org/id/metropolitan-district-council/leeds,Leeds City Council,30/09/2018,Resources and Housing,Commercial Services,Transport,Private Hire,360,27-Sep-2018,1809-00696,0.00,255.00,R,Amber Cars,No
Http://opendatacommunities.org/id/metropolitan-district-council/leeds,Leeds City Council,30/09/2018,Resources and Housing,Commercial Services,Transport,Private Hire,360,27-Sep-2018,1809-00697,0.00,1237.50,R,Amber Cars,No
Http://opendatacommunities.org/id/metropolitan-district-council/leeds,Leeds City Council,30/09/2018,Resources and Housing,Commercial Services,Transport,Private Hire,360,27-Sep-2018,1809-00698,0.00,304.64,R,Amber Cars,No
Http://opendatacommunities.org/id/metropolitan-district-council/leeds,Leeds City Council,30/09/2018,Resources and Housing,Commercial Services,Transport,Private Hire,360,27-Sep-2018,1809-00699,0.00,80.00,R,Amber Cars,No
Http://opendatacommunities.org/id/metropolitan-district-council/leeds,Leeds City Council,30/09/2018,Resources and Housing,Commercial Services,Transport,Private Hire,360,27-Sep-2018,1809-00700,0.00,225.00,R,Amber Cars,No
Http://opendatacommunities.org/id/metropolitan-district-council/leeds,Leeds City Council,30/09/2018,Resources and Housing,Commercial Services,Transport,Private Hire,360,27-Sep-2018,1809-00701,0.00,60.00,R,Amber Cars,No
Http://opendatacommunities.org/id/metropolitan-district-council/leeds,Leeds City Council,30/09/2018,Resources and Housing,Commercial Services,Transport,Private Hire,360,27-Sep-2018,1809-00702,0.00,540.00,R,Amber Cars,No
Http://opendatacommunities.org/id/metropolitan-district-council/leeds,Leeds City Council,30/09/2018,Resources and Housing,Commercial Services,Transport,Private Hire,360,27-Sep-2018,1809-00703,0.00,240.00,R,Amber Cars,No
Http://opendatacommunities.org/id/metropolitan-district-council/leeds,Leeds City Council,30/09/2018,Resources and Housing,Commercial Services,Transport,Private Hire,360,27-Sep-2018,1809-00704,0.00,128.80,R,Amber Cars,No
Http://opendatacommunities.org/id/metropolitan-district-council/leeds,Leeds City Council,30/09/2018,Resources and Housing,Commercial Services,Transport,Private Hire,360,27-Sep-2018,1809-00705,0.00,64.54,R,Amber Cars,No
Http://opendatacommunities.org/id/metropolitan-district-council/leeds,Leeds City Council,30/09/2018,Resources and Housing,Commercial Services,Transport,Private Hire,360,27-Sep-2018,1809-00706,0.00,732.00,R,Amber Cars,No
Http://opendatacommunities.org/id/metropolitan-district-council/leeds,Leeds City Council,30/09/2018,Resources and Housing,Commercial Services,Transport,Private Hire,360,27-Sep-2018,1809-00707,0.00,210.00,R,Amber Cars,No
Http://opendatacommunities.org/id/metropolitan-district-council/leeds,Leeds City Council,30/09/2018,Resources and Housing,Commercial Services,Transport,Private Hire,360,27-Sep-2018,1809-00708,0.00,360.00,R,Amber Cars,No
Http://opendatacommunities.org/id/metropolitan-district-council/leeds,Leeds City Council,30/09/2018,Resources and Housing,Commercial Services,Transport,Private Hire,360,27-Sep-2018,1809-00709,0.00,547.80,R,Amber Cars,No
Http://opendatacommunities.org/id/metropolitan-district-council/leeds,Leeds City Council,30/09/2018,Resources and Housing,Commercial Services,Transport,Private Hire,360,27-Sep-2018,1809-00710,0.00,326.40,R,Amber Cars,No
Http://opendatacommunities.org/id/metropolitan-district-council/leeds,Leeds City Council,30/09/2018,Resources and Housing,Commercial Services,Transport,Private Hire,360,27-Sep-2018,1809-00711,0.00,112.00,R,Amber Cars,No
Http://opendatacommunities.org/id/metropolitan-district-council/leeds,Leeds City Council,30/09/2018,Resources and Housing,Commercial Services,Transport,Private Hire,360,27-Sep-2018,1809-00712,0.00,555.00,R,Amber Cars,No
Http://opendatacommunities.org/id/metropolitan-district-council/leeds,Leeds City Council,30/09/2018,Resources and Housing,Commercial Services,Transport,Private Hire,360,27-Sep-2018,1809-00713,0.00,210.00,R,Amber Cars,No
Http://opendatacommunities.org/id/metropolitan-district-council/leeds,Leeds City Council,30/09/2018,Resources and Housing,Commercial Services,Transport,Private Hire,360,27-Sep-2018,1809-00714,0.00,75.00,R,Amber Cars,No
Http://opendatacommunities.org/id/metropolitan-district-council/leeds,Leeds City Council,30/09/2018,Resources and Housing,Commercial Services,Transport,Private Hire,360,27-Sep-2018,1809-00715,0.00,300.00,R,Amber Cars,No
Http://opendatacommunities.org/id/metropolitan-district-council/leeds,Leeds City Council,30/09/2018,Resources and Housing,Commercial Services,Transport,Private Hire,360,27-Sep-2018,1809-00716,0.00,350.00,R,Amber Cars,No
Http://opendatacommunities.org/id/metropolitan-district-council/leeds,Leeds City Council,30/09/2018,Resources and Housing,Commercial Services,Transport,Private Hire,360,27-Sep-2018,1809-00717,0.00,267.58,R,Amber Cars,No
Http://opendatacommunities.org/id/metropolitan-district-council/leeds,Leeds City Council,30/09/2018,Resources and Housing,Commercial Services,Transport,Private Hire,360,27-Sep-2018,1809-00718,0.00,15.00,R,Amber Cars,No
Http://opendatacommunities.org/id/metropolitan-district-council/leeds,Leeds City Council,30/09/2018,Resources and Housing,Commercial Services,Transport,Private Hire,360,27-Sep-2018,1809-00719,0.00,-15.00,R,Amber Cars,No
Http://opendatacommunities.org/id/metropolitan-district-council/leeds,Leeds City Council,30/09/2018,Resources and Housing,Commercial Services,Transport,Private Hire,360,27-Sep-2018,1809-00720,0.00,-79.80,R,Amber Cars,No
Http://opendatacommunities.org/id/metropolitan-district-council/leeds,Leeds City Council,30/09/2018,Resources and Housing,Commercial Services,Transport,Private Hire,360,27-Sep-2018,1809-00721,0.00,-15.00,R,Amber Cars,No
Http://opendatacommunities.org/id/metropolitan-district-council/leeds,Leeds City Council,30/09/2018,Communities and Environment,Customer Access,Supplies and Services,Other Hired And Contracted Services,265,04-Sep-2018,1809-00722,0.00,273.75,R,Ambreen Mohammed,No
Http://opendatacommunities.org/id/metropolitan-district-council/leeds,Leeds City Council,30/09/2018,Communities and Environment,Customer Access,Supplies and Services,Other Hired And Contracted Services,265,04-Sep-2018,1809-00723,0.00,784.50,R,Ameen Al Rasheed,No
Http://opendatacommunities.org/id/metropolitan-district-council/leeds,Leeds City Council,30/09/2018,Children and Families,Social Care,Third Party Payments,Services Rendered By Other Organisations,511,19-Sep-2018,1809-00724,0.00,267.75,R,REDACTED PERSONAL DATA,No
Http://opendatacommunities.org/id/metropolitan-district-council/leeds,Leeds City Council,30/09/2018,Children and Families,Social Care  ,Third Party Payments,Contact,548,10-Aug-2018,1809-00725,0.00,3.00,R,Amf Bowling,Yes
Http://opendatacommunities.org/id/metropolitan-district-council/leeds,Leeds City Council,30/09/2018,Children and Families,Social Care  ,Third Party Payments,Contact,548,10-Aug-2018,1809-00726,0.00,7.04,R,Amf Bowling,Yes
Http://opendatacommunities.org/id/metropolitan-district-council/leeds,Leeds City Council,30/09/2018,Children and Families,Social Care  ,Third Party Payments, Direct Work,549,16-Aug-2018,1809-00727,0.00,12.63,R,Amf Bowling,Yes
Http://opendatacommunities.org/id/metropolitan-district-council/leeds,Leeds City Council,30/09/2018,Children and Families,Social Care  ,Third Party Payments, Direct Work,549,16-Aug-2018,1809-00728,0.00,2.65,R,Amf Bowling,Yes
Http://opendatacommunities.org/id/metropolitan-district-council/leeds,Leeds City Council,30/09/2018,Children and Families,Social Care  ,Third Party Payments,Contact,548,21-Aug-2018,1809-00729,0.00,12.63,R,Amf Bowling,Yes
Http://opendatacommunities.org/id/metropolitan-district-council/leeds,Leeds City Council,30/09/2018,Children and Families,Social Care  ,Third Party Payments,Contact,548,21-Aug-2018,1809-00730,0.00,8.35,R,Amf Bowling,Yes
Http://opendatacommunities.org/id/metropolitan-district-council/leeds,Leeds City Council,30/09/2018,Children and Families,Social Care  ,Third Party Payments,Contact,548,30-Aug-2018,1809-00731,0.00,4.00,R,Amf Bowling,Yes
Http://opendatacommunities.org/id/metropolitan-district-council/leeds,Leeds City Council,30/09/2018,Children and Families,Social Care  ,Third Party Payments,Contact,548,30-Aug-2018,1809-00732,0.00,5.20,R,Amf Bowling,Yes
Http://opendatacommunities.org/id/metropolitan-district-council/leeds,Leeds City Council,30/09/2018,Children and Families,Social Care  ,Third Party Payments,Contact,548,02-Aug-2018,1809-00733,0.00,20.00,R,Amfbowling.Co.Uk,Yes
Http://opendatacommunities.org/id/metropolitan-district-council/leeds,Leeds City Council,30/09/2018,Children and Families,Social Care  ,Third Party Payments,Contact,548,02-Aug-2018,1809-00734,0.00,16.97,R,Amfbowling.Co.Uk,Yes
Http://opendatacommunities.org/id/metropolitan-district-council/leeds,Leeds City Council,30/09/2018,Children and Families,Social Care  ,Third Party Payments,Contact,548,07-Aug-2018,1809-00735,0.00,21.90,R,Amfbowling.Co.Uk,Yes
Http://opendatacommunities.org/id/metropolitan-district-council/leeds,Leeds City Council,30/09/2018,Children and Families,Social Care  ,Third Party Payments,Contact,548,10-Aug-2018,1809-00736,0.00,21.90,R,Amfbowling.Co.Uk,Yes
Http://opendatacommunities.org/id/metropolitan-district-council/leeds,Leeds City Council,30/09/2018,Children and Families,Social Care  ,Third Party Payments,Contact,548,14-Aug-2018,1809-00737,0.00,20.39,R,Amfbowling.Co.Uk,Yes
Http://opendatacommunities.org/id/metropolitan-district-council/leeds,Leeds City Council,30/09/2018,Children and Families,Social Care  ,Third Party Payments,Contact,548,17-Aug-2018,1809-00738,0.00,32.35,R,Amfbowling.Co.Uk,Yes
Http://opendatacommunities.org/id/metropolitan-district-council/leeds,Leeds City Council,30/09/2018,Children and Families,Social Care,Third Party Payments,Section 17,551,07-Sep-2018,1809-00739,0.00,155.80,R,REDACTED PERSONAL DATA,No
Http://opendatacommunities.org/id/metropolitan-district-council/leeds,Leeds City Council,30/09/2018,Communities and Environment,Customer Access,Supplies and Services,Other Hired And Contracted Services,265,04-Sep-2018,1809-00740,0.00,456.75,R,Amrit Bhabra,No
Http://opendatacommunities.org/id/metropolitan-district-council/leeds,Leeds City Council,30/09/2018,Communities and Environment,Customer Access,Supplies and Services,Books & Audio-Visual Materials,206,14-Sep-2018,1809-00741,0.00,45.40,R,Ams Digital Publishing Ltd,No
Http://opendatacommunities.org/id/metropolitan-district-council/leeds,Leeds City Council,30/09/2018,City Development,Highways,Capital,Other Costs,7,06-Sep-2018,1809-00742,0.00,54196.00,C,Amx Solutions Limited,No
Http://opendatacommunities.org/id/metropolitan-district-council/leeds,Leeds City Council,30/09/2018,Children and Families,Social Care,Supplies and Services,General Amenity For Clients/Residents,285,27-Sep-2018,1809-00743,0.00,58.92,R,REDACTED PERSONAL DATA,No
Http://opendatacommunities.org/id/metropolitan-district-council/leeds,Leeds City Council,30/09/2018,Children and Families,Social Care,Third Party Payments,Services Rendered By Other Organisations,511,21-Sep-2018,1809-00744,0.00,446.25,R,REDACTED PERSONAL DATA,No
Http://opendatacommunities.org/id/metropolitan-district-council/leeds,Leeds City Council,30/09/2018,Resources and Housing,Legal Services,Employees,Professional Subscriptions,89,24-Sep-2018,1809-00745,0.00,246.00,R,REDACTED PERSONAL DATA,No
Http://opendatacommunities.org/id/metropolitan-district-council/leeds,Leeds City Council,30/09/2018,Resources and Housing,Finance  ,Supplies and Services,Office Furniture & Equipment,201,03-Aug-2018,1809-00746,0.00,-91.19,R,Amz*amazon.Co.Uk,Yes
Http://opendatacommunities.org/id/metropolitan-district-council/leeds,Leeds City Council,30/09/2018,Resources and Housing,Commercial Services  ,Supplies and Services,Operational Materials,205,06-Aug-2018,1809-00747,0.00,-93.09,R,Amz*ap Motor Store,Yes
Http://opendatacommunities.org/id/metropolitan-district-council/leeds,Leeds City Council,30/09/2018,City Development,Libraries  Arts & Heritage  ,Supplies and Services,Office Consumables,210,23-Aug-2018,1809-00748,0.00,-35.98,R,Amz*biggamehunters,Yes
Http://opendatacommunities.org/id/metropolitan-district-council/leeds,Leeds City Council,30/09/2018,City Development,Libraries  Arts & Heritage  ,Supplies and Services,Office Consumables,210,03-Aug-2018,1809-00749,0.00,-19.32,R,Amz*guilty Gadgets,Yes
Http://opendatacommunities.org/id/metropolitan-district-council/leeds,Leeds City Council,30/09/2018,Children and Families,Social Care  ,Supplies and Services,Operational Furniture And Equipment,203,14-Aug-2018,1809-00750,0.00,-29.94,R,Amz*innox Trading,Yes
Http://opendatacommunities.org/id/metropolitan-district-council/leeds,Leeds City Council,30/09/2018,City Development,Libraries  Arts & Heritage  ,Supplies and Services,Office Consumables,210,31-Jul-2018,1809-00751,0.00,-6.49,R,Amz*mals Supplies,Yes
Http://opendatacommunities.org/id/metropolitan-district-council/leeds,Leeds City Council,30/09/2018,Strategic Landlord,Housing Management  ,Supplies and Services,Operational Materials,205,10-Aug-2018,1809-00752,0.00,-138.00,R,Amz*superior Home And,Yes
Http://opendatacommunities.org/id/metropolitan-district-council/leeds,Leeds City Council,30/09/2018,City Development,Libraries  Arts & Heritage  ,Supplies and Services,Operational Materials,205,22-Aug-2018,1809-00753,0.00,-21.96,R,Amz*uk Home & Garden S,Yes
Http://opendatacommunities.org/id/metropolitan-district-council/leeds,Leeds City Council,30/09/2018,City Development,Recreation  ,Supplies and Services,Operational Furniture And Equipment,203,16-Aug-2018,1809-00754,0.00,-49.99,R,Amz*vkf Renzel UK Ltd,Yes
Http://opendatacommunities.org/id/metropolitan-district-council/leeds,Leeds City Council,30/09/2018,City Development,Libraries  Arts & Heritage  ,Supplies and Services,Operational Materials,205,31-Jul-2018,1809-00755,0.00,0.29,R,Amzn Mktp Uk,Yes
Http://opendatacommunities.org/id/metropolitan-district-council/leeds,Leeds City Council,30/09/2018,Resources and Housing,Commercial Services  ,Supplies and Services,Operational Furniture And Equipment,203,31-Jul-2018,1809-00756,0.00,187.98,R,Amzn Mktp Uk,Yes
Http://opendatacommunities.org/id/metropolitan-district-council/leeds,Leeds City Council,30/09/2018,Communities and Environment,Parks And Countryside  ,Supplies and Services,Operational Materials,205,31-Jul-2018,1809-00757,0.00,21.25,R,Amzn Mktp Uk,Yes
Http://opendatacommunities.org/id/metropolitan-district-council/leeds,Leeds City Council,30/09/2018,Children and Families,Social Care  ,Transfer Payments,Young Peoples Rewards,653,31-Jul-2018,1809-00758,0.00,2.55,R,Amzn Mktp Uk,Yes
Http://opendatacommunities.org/id/metropolitan-district-council/leeds,Leeds City Council,30/09/2018,Resources and Housing,Facilities Management  ,Supplies and Services,Operational Materials,205,31-Jul-2018,1809-00759,0.00,29.17,R,Amzn Mktp Uk,Yes
Http://opendatacommunities.org/id/metropolitan-district-council/leeds,Leeds City Council,30/09/2018,Communities and Environment,Benefits  Wlefare And Poverty  ,Supplies and Services,Office Furniture & Equipment,201,31-Jul-2018,1809-00760,0.00,13.99,R,Amzn Mktp Uk,Yes
Http://opendatacommunities.org/id/metropolitan-district-council/leeds,Leeds City Council,30/09/2018,Children and Families,Social Care  ,Supplies and Services,Books & Audio-Visual Materials,206,31-Jul-2018,1809-00761,0.00,5.79,R,Amzn Mktp Uk,Yes
Http://opendatacommunities.org/id/metropolitan-district-council/leeds,Leeds City Council,30/09/2018,City Development,Libraries  Arts & Heritage  ,Supplies and Services,Operational Materials,205,31-Jul-2018,1809-00762,0.00,4.98,R,Amzn Mktp Uk,Yes
Http://opendatacommunities.org/id/metropolitan-district-council/leeds,Leeds City Council,30/09/2018,Communities and Environment,Parks And Countryside  ,Supplies and Services,Operational Materials,205,31-Jul-2018,1809-00763,0.00,19.55,R,Amzn Mktp Uk,Yes
Http://opendatacommunities.org/id/metropolitan-district-council/leeds,Leeds City Council,30/09/2018,Children and Families,Social Care  ,Third Party Payments,Section 17,551,01-Aug-2018,1809-00764,0.00,66.65,R,Amzn Mktp Uk,Yes
Http://opendatacommunities.org/id/metropolitan-district-council/leeds,Leeds City Council,30/09/2018,Children and Families,Social Care  ,Supplies and Services,Other Hired And Contracted Services,265,01-Aug-2018,1809-00765,0.00,6.50,R,Amzn Mktp Uk,Yes
Http://opendatacommunities.org/id/metropolitan-district-council/leeds,Leeds City Council,30/09/2018,City Development,Planning & Sustainable Development  ,Supplies and Services,Computer Software & Equipment,214,01-Aug-2018,1809-00766,0.00,79.75,R,Amzn Mktp Uk,Yes
Http://opendatacommunities.org/id/metropolitan-district-council/leeds,Leeds City Council,30/09/2018,Strategic Landlord,Housing Management  ,Supplies and Services,Operational Furniture And Equipment,203,01-Aug-2018,1809-00767,0.00,165.83,R,Amzn Mktp Uk,Yes
Http://opendatacommunities.org/id/metropolitan-district-council/leeds,Leeds City Council,30/09/2018,Communities and Environment,Cleaner Neighbourhood Teams  ,Supplies and Services,Operational Materials,205,01-Aug-2018,1809-00768,0.00,14.47,R,Amzn Mktp Uk,Yes
